Workbook

Sheet PlayerStats_Week01
C1: Week | G1: =MAX(G4:G66) -> 10 | H1: =MAX(H4:H66) -> 9 | I1: =MAX(I4:I66) -> 3 | J1: =MAX(J4:J66) -> 15 | AK1: =MAX(AK4:AK66) -> 0 | AL1: 0 | AM1: 0 | AN1: 0 | AO1: 2 | AP1: 1 | AQ1: 2 | AR1: 3 | AS1: 2 | AT1: 1 | AU1: 2 | AV1: 3 | AW1: 3 | AX1: 1 | AY1: 1 | AZ1: 3 | BA1: 3 | BB1: 1 | BC1: 3 | BD1: 3 | BE1: 0 | BF1: 0 | BG1: 0 | BH1: 0 | BI1: 3 | BJ1: 1 | BK1: 3 | BL1: 3 | BM1: 6 | BN1: 2 | BO1: 3 | BP1: 6 | BQ1: 7 | BR1: 2 | BS1: 8 | BT1: 12 | BU1: 0 | BV1: 0 | BW1: 0 | BX1: 0 | BY1: 0 | BZ1: 0 | CA1: 0 | CB1: 0 | CC1: =MAX(CC4:CC66) -> 0 | CD1: =MAX(CD4:CD66) -> 0 | CE1: =MAX(CE4:CE66) -> 0 | CF1: =MAX(CF4:CF66) -> 0 | CG1: =MAX(CG4:CG66) -> 0 | CH1: 0 | CI1: 0 | CJ1: 0 | CK1: 0 | CL1: 0 | CM1: 0 | CN1: 0 | CO1: 0 | CP1: 0 | CQ1: 0 | CR1: 0
C2: Game | G2: With Team | X2: As Spare | AS2: GOALS AGAINST GOALIE….
A3: 1 | B3: 2 | C3: 3 | D3: 4 | E3: 5 | F3: 6 | G3: 7 | H3: 8 | I3: 9 | J3: 10 | K3: 11 | L3: 12 | M3: 13 | N3: 14 | O3: 15 | P3: 16 | Q3: 17 | R3: 18 | S3: 19 | T3: 20 | U3: 21 | V3: 22 | W3: 23 | X3: 24 | Y3: 25 | Z3: 26 | AA3: 27 | AB3: 28 | AC3: 29 | AD3: 30 | AE3: 31 | AF3: 32 | AG3: 33 | AH3: 34 | AI3: 35 | AJ3: 36 | AK3: 37 | AL3: 38 | AM3: 39 | AN3: 40 | AO3: 41 | AP3: 42 | AQ3: 43 | AR3: 44 | AS3: 45 | AT3: 46 | AU3: 47 | AV3: 48 | AW3: 49 | AX3: 50 | AY3: 51 | AZ3: 52 | BA3: 53 | BB3: 54 | BC3: 55 | BD3: 56 | BE3: 57 | BF3: 58 | BG3: 59 | BH3: 60 | BI3: 61 | BJ3: 62 | BK3: 63 | BL3: 64 | BQ3: 65 | BR3: 66 | BS3: 67 | BT3: 68 | BU3: 69 | BV3: 70 | BW3: 71 | BX3: 72 | BY3: 65 | BZ3: 66 | CA3: 67 | CB3: 68 | CC3: 65 | CD3: 66 | CE3: 67 | CF3: 68 | CG3: 65 | CH3: 66 | CI3: 67 | CJ3: 68 | CK3: 65 | CL3: 66 | CM3: 67 | CN3: 68 | CO3: 65 | CP3: 66 | CQ3: 67 | CR3: 68
C4: Number | D4: Name | E4: Team | F4: GP | G4: Goals | H4: 1st Asst | I4: 2nd Asst | J4: Total | K4: GWG | L4: GWA | M4: GTG | N4: GTA | O4: Fluff Goals | P4: Fluff Assts | Q4: Wins | R4: Losses | S4: Ties | T4: Winning% | U4: GF | V4: GA | W4: +/- | X4: GP | Y4: Goals | Z4: 1st Asst | AA4: 2nd Asst | AB4: Total | AC4: Wins | AD4: Losses | AE4: Ties | AF4: Winning% | AG4: GF | AH4: GA | AI4: missing | AJ4: sum | AK4: Mike Bannister | AL4: Games Against | AM4: Assts | AN4: Totals | AO4: Mark Farrell | AP4: Games Against | AQ4: Assts | AR4: Totals | AS4: Brandon Leet-Macfarlane | AT4: Games Against | AU4: Assts | AV4: Totals | AW4: Rick Kent | AX4: Games Against | AY4: Assts | AZ4: Totals | BA4: Paul Richard | BB4: Games Against | BC4: Assts | BD4: Totals | BE4: Dave Hickman | BF4: Games Against | BG4: Assts | BH4: Totals | BI4: Chris Day | BJ4: Games Against | BK4: Assts | BL4: Totals | BM4: Tony Bonnar | BN4: Games Against | BO4: Assts | BP4: Totals | BQ4: Frederic Mailhot Landry | BR4: Games Against | BS4: Assts | BT4: Totals | BU4: Shawn Merrithew | BV4: Games Against | BW4: Assts | BX4: Totals | BY4: Dave MacFarlane | BZ4: Games Against | CA4: Assts | CB4: Totals | CC4: Brandon Moss | CD4: Games Against | CE4: Assts | CF4: Totals | CG4: Bruce Parent | CH4: Games Against | CI4: Assts | CJ4: Totals | CK4: Darryl Moorcroft | CL4: Games Against | CM4: Assts | CN4: Totals | CP4: Games Against | CQ4: Assts | CR4: Totals
A5: 1 | C5: 77 | D5: Ray Chase | E5: Retribution | F5: 3 | G5: 10 | H5: 4 | I5: 1 | J5: =SUM(G5:I5) -> 15 | K5: 1 | O5: 2 | P5: 1 | Q5: 3 | T5: =(Q5*2+S5)/(SUM(Q5:S5)*2) -> 1 | U5: 23 | V5: 11 | AN5: =SUM(AK5,AM5) -> 0 | AR5: =SUM(AO5,AQ5) -> 0 | AV5: =SUM(AS5,AU5) -> 0 | AZ5: =SUM(AW5,AY5) -> 0 | BA5: 3 | BB5: 1 | BC5: 0 | BD5: =SUM(BA5,BC5) -> 3 | BH5: =SUM(BE5,BG5) -> 0 | BL5: =SUM(BI5,BK5) -> 0 | BP5: =SUM(BM5,BO5) -> 0 | BQ5: 7 | BR5: 2 | BS5: 5 | BT5: =SUM(BQ5,BS5) -> 12 | CJ5: =SUM(CG5,CI5) -> 0 | CN5: =SUM(CK5,CM5) -> 0 | CR5: =SUM(CO5,CQ5) -> 0
A6: 2 | C6: 71 | D6: Marc Guitard | E6: Retribution | F6: 3 | G6: 3 | H6: 9 | I6: 2 | J6: 14 | L6: 1 | P6: 3 | Q6: 3 | T6: =(Q6*2+S6)/(SUM(Q6:S6)*2) -> 1 | U6: 23 | V6: 11 | AN6: =SUM(AK6,AM6) -> 0 | AR6: =SUM(AO6,AQ6) -> 0 | AV6: =SUM(AS6,AU6) -> 0 | AZ6: =SUM(AW6,AY6) -> 0 | BA6: 0 | BB6: 1 | BC6: 3 | BD6: =SUM(BA6,BC6) -> 3 | BH6: =SUM(BE6,BG6) -> 0 | BL6: =SUM(BI6,BK6) -> 0 | BP6: =SUM(BM6,BO6) -> 0 | BQ6: 3 | BR6: 2 | BS6: 8 | BT6: =SUM(BQ6,BS6) -> 11 | CJ6: =SUM(CG6,CI6) -> 0 | CN6: =SUM(CK6,CM6) -> 0 | CR6: =SUM(CO6,CQ6) -> 0
A7: 3 | C7: 26 | D7: Richard Kwiatkowski | E7: Slashing Pumpkins | F7: 3 | G7: 7 | H7: 0 | I7: 0 | J7: 7 | K7: 1 | Q7: 3 | T7: 1 | U7: 15 | V7: 9 | AN7: 0 | AR7: 0 | AV7: 0 | AZ7: 0 | BD7: 0 | BH7: 0 | BI7: 1 | BJ7: 1 | BK7: 0 | BL7: 1 | BM7: 6 | BN7: 2 | BO7: 0 | BP7: 6 | BT7: 0 | CJ7: 0 | CN7: 0 | CR7: 0
A8: 4 | C8: 72 | D8: Aaron Cornish | E8: Retribution | F8: 3 | G8: 5 | H8: 3 | I8: 2 | J8: 10 | K8: 1 | O8: 1 | Q8: 3 | T8: 1 | U8: 23 | V8: 11 | AN8: 0 | AR8: 0 | AV8: 0 | AZ8: 0 | BA8: 1 | BB8: 1 | BC8: 0 | BD8: 1 | BH8: 0 | BL8: 0 | BP8: 0 | BQ8: 4 | BR8: 2 | BS8: 5 | BT8: 9 | CJ8: 0 | CN8: 0 | CR8: 0
A9: 5 | C9: 25 | D9: Matt Vautour | E9: Slashing Pumpkins | F9: 3 | G9: 4 | H9: 1 | I9: 1 | J9: 6 | K9: 1 | L9: 1 | Q9: 3 | T9: 1 | U9: 15 | V9: 9 | AN9: 0 | AR9: 0 | AV9: 0 | AZ9: 0 | BD9: 0 | BH9: 0 | BI9: 3 | BJ9: 1 | BK9: 0 | BL9: 3 | BM9: 1 | BN9: 2 | BO9: 2 | BP9: 3 | BT9: 0 | CJ9: 0 | CN9: 0 | CR9: 0
A10: 6 | C10: 55 | D10: Ian Stevens | E10: Golden Panthers | F10: 3 | G10: 2 | H10: 3 | I10: 0 | J10: 5 | Q10: 1 | R10: 2 | T10: 0.3333333333 | U10: 10 | V10: 14 | AN10: 0 | AR10: 0 | AV10: 0 | AW10: 1 | AX10: 1 | AY10: 1 | AZ10: 2 | BA10: 1 | BB10: 1 | BC10: 1 | BD10: 2 | BH10: 0 | BL10: 0 | BP10: 0 | BQ10: 0 | BR10: 1 | BS10: 1 | BT10: 1 | CJ10: 0 | CN10: 0 | CR10: 0
A11: 7 | C11: 81 | D11: Collin Sleep | E11: The Green Machine | F11: 3 | G11: 1 | H11: 0 | I11: 0 | J11: 1 | Q11: 1 | R11: 2 | T11: 0.3333333333 | U11: 9 | V11: 10 | AN11: 0 | AR11: 0 | AV11: 0 | AW11: 0 | AX11: 1 | AY11: 0 | AZ11: 0 | BD11: 0 | BH11: 0 | BL11: 0 | BP11: 0 | BQ11: 1 | BR11: 2 | BS11: 0 | BT11: 1 | CJ11: 0 | CN11: 0 | CR11: 0
A12: 8 | C12: 37 | D12: Joel Thorne | E12: Purple Heys | F12: 3 | G12: 3 | H12: 2 | I12: 0 | J12: 5 | Q12: 2 | R12: 1 | T12: 0.6666666667 | U12: 10 | V12: 7 | AN12: 0 | AO12: 0 | AP12: 1 | AQ12: 0 | AR12: 0 | AS12: 1 | AT12: 1 | AU12: 1 | AV12: 2 | AZ12: 0 | BD12: 0 | BH12: 0 | BL12: 0 | BM12: 2 | BN12: 1 | BO12: 1 | BP12: 3 | BT12: 0 | CJ12: 0 | CN12: 0 | CR12: 0
A13: 9 | C13: 54 | D13: Ian LaPointe | E13: Golden Panthers | F13: 3 | G13: 4 | H13: 0 | I13: 0 | J13: 4 | Q13: 1 | R13: 2 | T13: 0.3333333333 | U13: 10 | V13: 14 | AN13: 0 | AR13: 0 | AV13: 0 | AW13: 1 | AX13: 1 | AY13: 0 | AZ13: 1 | BA13: 1 | BB13: 1 | BC13: 0 | BD13: 1 | BH13: 0 | BL13: 0 | BP13: 0 | BQ13: 2 | BR13: 1 | BS13: 0 | BT13: 2 | CJ13: 0 | CN13: 0 | CR13: 0
A14: 10 | C14: 64 | D14: Jamie Williams | E14: Red Light District | F14: 3 | G14: 2 | H14: 1 | I14: 0 | J14: 3 | Q14: 1 | R14: 2 | T14: 0.3333333333 | U14: 12 | V14: 19 | AN14: 0 | AR14: 0 | AV14: 0 | AW14: 1 | AX14: 1 | AY14: 0 | AZ14: 1 | BA14: 0 | BB14: 1 | BC14: 0 | BD14: 0 | BH14: 0 | BL14: 0 | BP14: 0 | BQ14: 1 | BR14: 1 | BS14: 1 | BT14: 2 | CJ14: 0 | CN14: 0 | CR14: 0
A15: 11 | C15: 83 | D15: Craig Maranda | E15: The Green Machine | F15: 3 | G15: 4 | H15: 0 | I15: 0 | J15: 4 | Q15: 1 | R15: 2 | T15: 0.3333333333 | U15: 9 | V15: 10 | AN15: 0 | AR15: 0 | AV15: 0 | AW15: 3 | AX15: 1 | AY15: 0 | AZ15: 3 | BD15: 0 | BH15: 0 | BL15: 0 | BP15: 0 | BQ15: 1 | BR15: 2 | BS15: 0 | BT15: 1 | CJ15: 0 | CN15: 0 | CR15: 0
A16: 12 | C16: 41 | D16: Michael Moore | E16: Blue Storm | F16: 3 | G16: 4 | H16: 3 | I16: 1 | J16: 8 | K16: 1 | Q16: 1 | R16: 2 | T16: 0.3333333333 | U16: 11 | V16: 15 | AN16: 0 | AO16: 2 | AP16: 1 | AQ16: 1 | AR16: 3 | AS16: 1 | AT16: 1 | AU16: 2 | AV16: 3 | AZ16: 0 | BD16: 0 | BH16: 0 | BI16: 1 | BJ16: 1 | BK16: 1 | BL16: 2 | BP16: 0 | BT16: 0 | CJ16: 0 | CN16: 0 | CR16: 0
A17: 13 | C17: 36 | D17: Jeff Schriver | E17: Purple Heys | F17: 3 | G17: 4 | H17: 2 | I17: 0 | J17: 6 | K17: 1 | Q17: 2 | R17: 1 | T17: 0.6666666667 | U17: 10 | V17: 7 | AN17: 0 | AO17: 1 | AP17: 1 | AQ17: 0 | AR17: 1 | AS17: 2 | AT17: 1 | AU17: 0 | AV17: 2 | AZ17: 0 | BD17: 0 | BH17: 0 | BL17: 0 | BM17: 1 | BN17: 1 | BO17: 2 | BP17: 3 | BT17: 0 | CJ17: 0 | CN17: 0 | CR17: 0
A18: 14 | C18: 73 | D18: Brian Kelly | E18: Retribution | F18: 3 | G18: 2 | H18: 2 | I18: 0 | J18: 4 | K18: 1 | Q18: 3 | T18: 1 | U18: 23 | V18: 11 | AN18: 0 | AR18: 0 | AV18: 0 | AZ18: 0 | BA18: 0 | BB18: 1 | BC18: 0 | BD18: 0 | BH18: 0 | BL18: 0 | BP18: 0 | BQ18: 2 | BR18: 2 | BS18: 2 | BT18: 4 | CJ18: 0 | CN18: 0 | CR18: 0
A19: 15 | C19: 53 | D19: Douglas Taylor | E19: Golden Panthers | F19: 3 | G19: 4 | H19: 0 | I19: 2 | J19: 6 | K19: 1 | Q19: 1 | R19: 2 | T19: 0.3333333333 | U19: 10 | V19: 14 | AN19: 0 | AR19: 0 | AV19: 0 | AW19: 1 | AX19: 1 | AY19: 0 | AZ19: 1 | BA19: 2 | BB19: 1 | BC19: 1 | BD19: 3 | BH19: 0 | BL19: 0 | BP19: 0 | BQ19: 1 | BR19: 1 | BS19: 1 | BT19: 2 | CJ19: 0 | CN19: 0 | CR19: 0
A20: 16 | C20: 51 | D20: Vince MacDonald | E20: Golden Panthers | F20: 3 | G20: 0 | H20: 1 | I20: 0 | J20: 1 | Q20: 1 | R20: 2 | T20: 0.3333333333 | U20: 10 | V20: 14 | AN20: 0 | AR20: 0 | AV20: 0 | AW20: 0 | AX20: 1 | AY20: 1 | AZ20: 1 | BA20: 0 | BB20: 1 | BC20: 0 | BD20: 0 | BH20: 0 | BL20: 0 | BP20: 0 | BQ20: 0 | BR20: 1 | BS20: 0 | BT20: 0 | CJ20: 0 | CN20: 0 | CR20: 0
A21: 17 | C21: 61 | D21: Jon Loubert | E21: Red Light District | F21: 3 | G21: 1 | H21: 0 | I21: 0 | J21: 1 | Q21: 1 | R21: 2 | T21: 0.3333333333 | U21: 12 | V21: 19 | AN21: 0 | AR21: 0 | AV21: 0 | AW21: 1 | AX21: 1 | AY21: 0 | AZ21: 1 | BA21: 0 | BB21: 1 | BC21: 0 | BD21: 0 | BH21: 0 | BL21: 0 | BP21: 0 | BQ21: 0 | BR21: 1 | BS21: 0 | BT21: 0 | CJ21: 0 | CN21: 0 | CR21: 0
A22: 18 | C22: 68 | D22: Troy Doyle | E22: Red Light District | F22: 3 | G22: 5 | H22: 1 | I22: 0 | J22: 6 | K22: 1 | Q22: 1 | R22: 2 | T22: 0.3333333333 | U22: 12 | V22: 19 | AN22: 0 | AR22: 0 | AV22: 0 | AW22: 2 | AX22: 1 | AY22: 1 | AZ22: 3 | BA22: 2 | BB22: 1 | BC22: 0 | BD22: 2 | BH22: 0 | BL22: 0 | BP22: 0 | BQ22: 1 | BR22: 1 | BS22: 0 | BT22: 1 | CJ22: 0 | CN22: 0 | CR22: 0
A23: 19 | C23: 27 | D23: Rick Bartlett | E23: Slashing Pumpkins | F23: 3 | G23: 0 | H23: 3 | I23: 0 | J23: 3 | Q23: 3 | T23: 1 | U23: 15 | V23: 9 | AN23: 0 | AR23: 0 | AV23: 0 | AZ23: 0 | BD23: 0 | BH23: 0 | BI23: 0 | BJ23: 1 | BK23: 0 | BL23: 0 | BM23: 0 | BN23: 2 | BO23: 3 | BP23: 3 | BT23: 0 | CJ23: 0 | CN23: 0 | CR23: 0
A24: 20 | C24: 23 | D24: Jacob Wilson | E24: Slashing Pumpkins | F24: 3 | G24: 4 | H24: 0 | I24: 0 | J24: 4 | K24: 1 | Q24: 3 | T24: 1 | U24: 15 | V24: 9 | AN24: 0 | AR24: 0 | AV24: 0 | AZ24: 0 | BD24: 0 | BH24: 0 | BI24: 0 | BJ24: 1 | BK24: 0 | BL24: 0 | BM24: 4 | BN24: 2 | BO24: 0 | BP24: 4 | BT24: 0 | CJ24: 0 | CN24: 0 | CR24: 0
A25: 21 | C25: 14 | D25: Mark Whitlock | E25: White Lightning | F25: 3 | G25: 2 | H25: 3 | I25: 0 | J25: 5 | R25: 3 | T25: 0 | U25: 8 | V25: 13 | AN25: 0 | AR25: 0 | AS25: 1 | AT25: 1 | AU25: 2 | AV25: 3 | AZ25: 0 | BD25: 0 | BH25: 0 | BI25: 0 | BJ25: 1 | BK25: 1 | BL25: 1 | BM25: 1 | BN25: 1 | BO25: 0 | BP25: 1 | BT25: 0 | CJ25: 0 | CN25: 0 | CR25: 0
A26: 22 | C26: 88 | D26: Stephen Atherton | E26: The Green Machine | F26: 3 | G26: 0 | H26: 2 | I26: 1 | J26: 3 | Q26: 1 | R26: 2 | T26: 0.3333333333 | U26: 9 | V26: 10 | AN26: 0 | AR26: 0 | AV26: 0 | AW26: 0 | AX26: 1 | AY26: 1 | AZ26: 1 | BD26: 0 | BH26: 0 | BL26: 0 | BP26: 0 | BQ26: 0 | BR26: 2 | BS26: 2 | BT26: 2 | CJ26: 0 | CN26: 0 | CR26: 0
A27: 23 | C27: 21 | D27: James Campbell | E27: Slashing Pumpkins | F27: 3 | G27: 0 | H27: 4 | I27: 1 | J27: 5 | L27: 2 | Q27: 3 | T27: 1 | U27: 15 | V27: 9 | AN27: 0 | AR27: 0 | AV27: 0 | AZ27: 0 | BD27: 0 | BH27: 0 | BI27: 0 | BJ27: 1 | BK27: 3 | BL27: 3 | BM27: 0 | BN27: 2 | BO27: 2 | BP27: 2 | BT27: 0 | CJ27: 0 | CN27: 0 | CR27: 0
A28: 24 | C28: 15 | D28: Sean Keenan | E28: White Lightning | F28: 3 | G28: 4 | H28: 1 | I28: 0 | J28: 5 | R28: 3 | T28: 0 | U28: 8 | V28: 13 | AN28: 0 | AR28: 0 | AS28: 2 | AT28: 1 | AU28: 1 | AV28: 3 | AZ28: 0 | BD28: 0 | BH28: 0 | BI28: 1 | BJ28: 1 | BK28: 0 | BL28: 1 | BM28: 1 | BN28: 1 | BO28: 0 | BP28: 1 | BT28: 0 | CJ28: 0 | CN28: 0 | CR28: 0
A29: 25 | C29: 45 | D29: Mike Clarke | E29: Blue Storm | F29: 3 | G29: 2 | H29: 2 | I29: 2 | J29: 6 | Q29: 1 | R29: 2 | T29: 0.3333333333 | U29: 11 | V29: 15 | AN29: 0 | AO29: 1 | AP29: 1 | AQ29: 1 | AR29: 2 | AS29: 1 | AT29: 1 | AU29: 1 | AV29: 2 | AZ29: 0 | BD29: 0 | BH29: 0 | BI29: 0 | BJ29: 1 | BK29: 2 | BL29: 2 | BP29: 0 | BT29: 0 | CJ29: 0 | CN29: 0 | CR29: 0
A30: 26 | C30: 75 | D30: Denis Loubert | E30: Retribution | F30: 3 | G30: 1 | H30: 2 | I30: 1 | J30: 4 | L30: 1 | Q30: 3 | T30: 1 | U30: 23 | V30: 11 | AN30: 0 | AR30: 0 | AV30: 0 | AZ30: 0 | BA30: 0 | BB30: 1 | BC30: 1 | BD30: 1 | BH30: 0 | BL30: 0 | BP30: 0 | BQ30: 1 | BR30: 2 | BS30: 2 | BT30: 3 | CJ30: 0 | CN30: 0 | CR30: 0
A31: 27 | C31: 47 | D31: Stephen Rafuse | E31: Blue Storm | F31: 3 | G31: 2 | H31: 2 | I31: 0 | J31: 4 | L31: 1 | Q31: 1 | R31: 2 | T31: 0.3333333333 | U31: 11 | V31: 15 | AN31: 0 | AO31: 1 | AP31: 1 | AQ31: 1 | AR31: 2 | AS31: 0 | AT31: 1 | AU31: 1 | AV31: 1 | AZ31: 0 | BD31: 0 | BH31: 0 | BI31: 1 | BJ31: 1 | BK31: 0 | BL31: 1 | BP31: 0 | BT31: 0 | CJ31: 0 | CN31: 0 | CR31: 0
A32: 28 | C32: 35 | D32: Jamie Carson | E32: Purple Heys | F32: 3 | G32: 1 | H32: 1 | I32: 0 | J32: 2 | Q32: 2 | R32: 1 | T32: 0.6666666667 | U32: 10 | V32: 7 | AN32: 0 | AO32: 0 | AP32: 1 | AQ32: 0 | AR32: 0 | AS32: 0 | AT32: 1 | AU32: 1 | AV32: 1 | AZ32: 0 | BD32: 0 | BH32: 0 | BL32: 0 | BM32: 1 | BN32: 1 | BO32: 0 | BP32: 1 | BT32: 0 | CJ32: 0 | CN32: 0 | CR32: 0
A33: 29 | C33: 17 | D33: Wayne Helpard | E33: White Lightning | F33: 3 | G33: 0 | H33: 1 | I33: 0 | J33: 1 | R33: 3 | T33: 0 | U33: 8 | V33: 13 | AN33: 0 | AR33: 0 | AS33: 0 | AT33: 1 | AU33: 0 | AV33: 0 | AZ33: 0 | BD33: 0 | BH33: 0 | BI33: 0 | BJ33: 1 | BK33: 0 | BL33: 0 | BM33: 0 | BN33: 1 | BO33: 1 | BP33: 1 | BT33: 0 | CJ33: 0 | CN33: 0 | CR33: 0
A34: 30 | C34: 67 | D34: Tim O'Leary | E34: Red Light District | F34: 3 | G34: 2 | H34: 2 | I34: 1 | J34: 5 | L34: 1 | Q34: 1 | R34: 2 | T34: 0.3333333333 | U34: 12 | V34: 19 | AN34: 0 | AR34: 0 | AV34: 0 | AW34: 1 | AX34: 1 | AY34: 0 | AZ34: 1 | BA34: 0 | BB34: 1 | BC34: 1 | BD34: 1 | BH34: 0 | BL34: 0 | BP34: 0 | BQ34: 1 | BR34: 1 | BS34: 2 | BT34: 3 | CJ34: 0 | CN34: 0 | CR34: 0
A35: 31 | C35: 31 | D35: Mike Connor | E35: Purple Heys | F35: 3 | G35: 1 | H35: 1 | I35: 2 | J35: 4 | K35: 1 | Q35: 2 | R35: 1 | T35: 0.6666666667 | U35: 10 | V35: 7 | AN35: 0 | AO35: 0 | AP35: 1 | AQ35: 1 | AR35: 1 | AS35: 0 | AT35: 1 | AU35: 2 | AV35: 2 | AZ35: 0 | BD35: 0 | BH35: 0 | BL35: 0 | BM35: 1 | BN35: 1 | BO35: 0 | BP35: 1 | BT35: 0 | CJ35: 0 | CN35: 0 | CR35: 0
A36: 32 | C36: 22 | D36: Doug Virtue | E36: Slashing Pumpkins | F36: 3 | G36: 0 | H36: 1 | I36: 1 | J36: 2 | L36: 1 | Q36: 3 | T36: 1 | U36: 15 | V36: 9 | AN36: 0 | AR36: 0 | AV36: 0 | AZ36: 0 | BD36: 0 | BH36: 0 | BI36: 0 | BJ36: 1 | BK36: 0 | BL36: 0 | BM36: 0 | BN36: 2 | BO36: 2 | BP36: 2 | BT36: 0 | CJ36: 0 | CN36: 0 | CR36: 0
A37: 33 | C37: 28 | D37: Trevor Graham | E37: Slashing Pumpkins | F37: 3 | G37: 0 | H37: 0 | I37: 3 | J37: 3 | Q37: 3 | T37: 1 | U37: 15 | V37: 9 | AN37: 0 | AR37: 0 | AV37: 0 | AZ37: 0 | BD37: 0 | BH37: 0 | BI37: 0 | BJ37: 1 | BK37: 2 | BL37: 2 | BM37: 0 | BN37: 2 | BO37: 1 | BP37: 1 | BT37: 0 | CJ37: 0 | CN37: 0 | CR37: 0
A38: 34 | C38: 43 | D38: Matthew Petitpas | E38: Blue Storm | F38: 3 | G38: 2 | H38: 1 | I38: 0 | J38: 3 | Q38: 1 | R38: 2 | T38: 0.3333333333 | U38: 11 | V38: 15 | AN38: 0 | AO38: 1 | AP38: 1 | AQ38: 0 | AR38: 1 | AS38: 1 | AT38: 1 | AU38: 1 | AV38: 2 | AZ38: 0 | BD38: 0 | BH38: 0 | BI38: 0 | BJ38: 1 | BK38: 0 | BL38: 0 | BP38: 0 | BT38: 0 | CJ38: 0 | CN38: 0 | CR38: 0
A39: 35 | C39: 24 | D39: John Stewart | E39: Slashing Pumpkins | F39: 3 | G39: 0 | H39: 2 | I39: 0 | J39: 2 | Q39: 3 | T39: 1 | U39: 15 | V39: 9 | AN39: 0 | AR39: 0 | AV39: 0 | AZ39: 0 | BD39: 0 | BH39: 0 | BI39: 0 | BJ39: 1 | BK39: 0 | BL39: 0 | BM39: 0 | BN39: 2 | BO39: 2 | BP39: 2 | BT39: 0 | CJ39: 0 | CN39: 0 | CR39: 0
A40: 36 | C40: 66 | D40: Sly Villenueve | E40: Red Light District | J40: 0 | AN40: 0 | AR40: 0 | AV40: 0 | AZ40: 0 | BD40: 0 | BH40: 0 | BL40: 0 | BP40: 0 | BT40: 0 | CJ40: 0 | CN40: 0 | CR40: 0
A41: 37 | C41: 52 | D41: Chris Benoit | E41: Golden Panthers | F41: 3 | G41: 0 | H41: 1 | I41: 0 | J41: 1 | Q41: 1 | R41: 2 | T41: 0.3333333333 | U41: 10 | V41: 14 | AN41: 0 | AR41: 0 | AV41: 0 | AW41: 0 | AX41: 1 | AY41: 1 | AZ41: 1 | BA41: 0 | BB41: 1 | BC41: 0 | BD41: 0 | BH41: 0 | BL41: 0 | BP41: 0 | BQ41: 0 | BR41: 1 | BS41: 0 | BT41: 0 | CJ41: 0 | CN41: 0 | CR41: 0
A42: 38 | C42: 13 | D42: Larry Condly | E42: White Lightning | F42: 3 | G42: 0 | H42: 0 | I42: 1 | J42: 1 | R42: 3 | T42: 0 | U42: 8 | V42: 13 | AN42: 0 | AR42: 0 | AS42: 0 | AT42: 1 | AU42: 0 | AV42: 0 | AZ42: 0 | BD42: 0 | BH42: 0 | BI42: 0 | BJ42: 1 | BK42: 1 | BL42: 1 | BM42: 0 | BN42: 1 | BO42: 0 | BP42: 0 | BT42: 0 | CJ42: 0 | CN42: 0 | CR42: 0
A43: 39 | C43: 63 | D43: Harold Plante | E43: Red Light District | F43: 3 | G43: 1 | H43: 0 | I43: 0 | J43: 1 | Q43: 1 | R43: 2 | T43: 0.3333333333 | U43: 12 | V43: 19 | AN43: 0 | AR43: 0 | AV43: 0 | AW43: 0 | AX43: 1 | AY43: 0 | AZ43: 0 | BA43: 0 | BB43: 1 | BC43: 0 | BD43: 0 | BH43: 0 | BL43: 0 | BP43: 0 | BQ43: 1 | BR43: 1 | BS43: 0 | BT43: 1 | CJ43: 0 | CN43: 0 | CR43: 0
A44: 40 | C44: 86 | D44: Scott McLean | E44: The Green Machine | F44: 3 | G44: 1 | H44: 0 | I44: 0 | J44: 1 | Q44: 1 | R44: 2 | T44: 0.3333333333 | U44: 9 | V44: 10 | AN44: 0 | AR44: 0 | AV44: 0 | AW44: 0 | AX44: 1 | AY44: 0 | AZ44: 0 | BD44: 0 | BH44: 0 | BL44: 0 | BP44: 0 | BQ44: 1 | BR44: 2 | BS44: 0 | BT44: 1 | CJ44: 0 | CN44: 0 | CR44: 0
A45: 41 | C45: 76 | D45: Dwayne Johnson | E45: Retribution | F45: 3 | G45: 1 | H45: 1 | I45: 1 | J45: 3 | Q45: 3 | T45: 1 | U45: 23 | V45: 11 | AN45: 0 | AR45: 0 | AV45: 0 | AZ45: 0 | BA45: 0 | BB45: 1 | BC45: 0 | BD45: 0 | BH45: 0 | BL45: 0 | BP45: 0 | BQ45: 1 | BR45: 2 | BS45: 2 | BT45: 3 | CJ45: 0 | CN45: 0 | CR45: 0
A46: 42 | C46: 48 | D46: Yvon Mayer | E46: Blue Storm | F46: 3 | G46: 1 | H46: 1 | I46: 1 | J46: 3 | Q46: 1 | R46: 2 | T46: 0.3333333333 | U46: 11 | V46: 15 | AN46: 0 | AO46: 1 | AP46: 1 | AQ46: 2 | AR46: 3 | AS46: 0 | AT46: 1 | AU46: 0 | AV46: 0 | AZ46: 0 | BD46: 0 | BH46: 0 | BI46: 0 | BJ46: 1 | BK46: 0 | BL46: 0 | BP46: 0 | BT46: 0 | CJ46: 0 | CN46: 0 | CR46: 0
A47: 43 | C47: 82 | D47: Bryan Letcher | E47: The Green Machine | F47: 3 | G47: 0 | H47: 0 | I47: 0 | J47: 0 | Q47: 1 | R47: 2 | T47: 0.3333333333 | U47: 9 | V47: 10 | AN47: 0 | AR47: 0 | AV47: 0 | AW47: 0 | AX47: 1 | AY47: 0 | AZ47: 0 | BD47: 0 | BH47: 0 | BL47: 0 | BP47: 0 | BQ47: 0 | BR47: 2 | BS47: 0 | BT47: 0 | CJ47: 0 | CN47: 0 | CR47: 0
A48: 44 | C48: 56 | D48: Josh Sewell | E48: Golden Panthers | F48: 3 | G48: 0 | H48: 0 | I48: 0 | J48: 0 | Q48: 1 | R48: 2 | T48: 0.3333333333 | U48: 10 | V48: 14 | AN48: 0 | AR48: 0 | AV48: 0 | AW48: 0 | AX48: 1 | AY48: 0 | AZ48: 0 | BA48: 0 | BB48: 1 | BC48: 0 | BD48: 0 | BH48: 0 | BL48: 0 | BP48: 0 | BQ48: 0 | BR48: 1 | BS48: 0 | BT48: 0 | CJ48: 0 | CN48: 0 | CR48: 0
A49: 45 | C49: 58 | D49: Travis Muxworthy | E49: Golden Panthers | F49: 3 | G49: 0 | H49: 0 | I49: 0 | J49: 0 | Q49: 1 | R49: 2 | T49: 0.3333333333 | U49: 10 | V49: 14 | AN49: 0 | AR49: 0 | AV49: 0 | AW49: 0 | AX49: 1 | AY49: 0 | AZ49: 0 | BA49: 0 | BB49: 1 | BC49: 0 | BD49: 0 | BH49: 0 | BL49: 0 | BP49: 0 | BQ49: 0 | BR49: 1 | BS49: 0 | BT49: 0 | CJ49: 0 | CN49: 0 | CR49: 0
A50: 46 | C50: 34 | D50: Christian Haines | E50: Purple Heys | F50: 3 | G50: 0 | H50: 0 | I50: 1 | J50: 1 | Q50: 2 | R50: 1 | T50: 0.6666666667 | U50: 10 | V50: 7 | AN50: 0 | AO50: 0 | AP50: 1 | AQ50: 0 | AR50: 0 | AS50: 0 | AT50: 1 | AU50: 0 | AV50: 0 | AZ50: 0 | BD50: 0 | BH50: 0 | BL50: 0 | BM50: 0 | BN50: 1 | BO50: 1 | BP50: 1 | BT50: 0 | CJ50: 0 | CN50: 0 | CR50: 0
A51: 47 | C51: 46 | D51: Rakesh Rajput | E51: Blue Storm | J51: 0 | AN51: 0 | AR51: 0 | AV51: 0 | AZ51: 0 | BD51: 0 | BH51: 0 | BL51: 0 | BP51: 0 | BT51: 0 | CJ51: 0 | CN51: 0 | CR51: 0
A52: 48 | C52: 85 | D52: Ray Basque | E52: The Green Machine | F52: 3 | G52: 0 | H52: 0 | I52: 0 | J52: 0 | Q52: 1 | R52: 2 | T52: 0.3333333333 | U52: 9 | V52: 10 | AN52: 0 | AR52: 0 | AV52: 0 | AW52: 0 | AX52: 1 | AY52: 0 | AZ52: 0 | BD52: 0 | BH52: 0 | BL52: 0 | BP52: 0 | BQ52: 0 | BR52: 2 | BS52: 0 | BT52: 0 | CJ52: 0 | CN52: 0 | CR52: 0
A53: 49 | C53: 78 | D53: Rene Pitre | E53: Retribution | F53: 3 | G53: 1 | H53: 0 | I53: 1 | J53: 2 | Q53: 3 | T53: 1 | U53: 23 | V53: 11 | AN53: 0 | AR53: 0 | AV53: 0 | AZ53: 0 | BA53: 0 | BB53: 1 | BC53: 0 | BD53: 0 | BH53: 0 | BL53: 0 | BP53: 0 | BQ53: 1 | BR53: 2 | BS53: 1 | BT53: 2 | CJ53: 0 | CN53: 0 | CR53: 0
A54: 50 | C54: 33 | D54: Carl Brown | E54: Purple Heys | F54: 3 | G54: 0 | H54: 0 | I54: 1 | J54: 1 | Q54: 2 | R54: 1 | T54: 0.6666666667 | U54: 10 | V54: 7 | AN54: 0 | AO54: 0 | AP54: 1 | AQ54: 1 | AR54: 1 | AS54: 0 | AT54: 1 | AU54: 0 | AV54: 0 | AZ54: 0 | BD54: 0 | BH54: 0 | BL54: 0 | BM54: 0 | BN54: 1 | BO54: 0 | BP54: 0 | BT54: 0 | CJ54: 0 | CN54: 0 | CR54: 0
A55: 51 | C55: 84 | D55: Matthew Wedge | E55: The Green Machine | F55: 3 | G55: 2 | H55: 1 | I55: 0 | J55: 3 | K55: 1 | Q55: 1 | R55: 2 | T55: 0.3333333333 | U55: 9 | V55: 10 | AN55: 0 | AR55: 0 | AV55: 0 | AW55: 0 | AX55: 1 | AY55: 0 | AZ55: 0 | BD55: 0 | BH55: 0 | BL55: 0 | BP55: 0 | BQ55: 2 | BR55: 2 | BS55: 1 | BT55: 3 | CJ55: 0 | CN55: 0 | CR55: 0
A56: 52 | C56: 11 | D56: Darryl Moorcroft | E56: White Lightning | F56: 3 | G56: 0 | H56: 1 | I56: 0 | J56: 1 | R56: 3 | T56: 0 | U56: 8 | V56: 13 | AN56: 0 | AR56: 0 | AS56: 0 | AT56: 1 | AU56: 0 | AV56: 0 | AZ56: 0 | BD56: 0 | BH56: 0 | BI56: 0 | BJ56: 1 | BK56: 0 | BL56: 0 | BM56: 0 | BN56: 1 | BO56: 1 | BP56: 1 | BT56: 0 | CJ56: 0 | CN56: 0 | CR56: 0
A57: 53 | C57: 42 | D57: Garrett Ramey | E57: Blue Storm | J57: 0 | AN57: 0 | AR57: 0 | AV57: 0 | AZ57: 0 | BD57: 0 | BH57: 0 | BL57: 0 | BP57: 0 | BT57: 0 | CJ57: 0 | CN57: 0 | CR57: 0
A58: 54 | C58: 38 | D58: Justin Lawson | E58: Purple Heys | F58: 3 | G58: 1 | H58: 0 | I58: 0 | J58: 1 | Q58: 2 | R58: 1 | T58: 0.6666666667 | U58: 10 | V58: 7 | AN58: 0 | AO58: 1 | AP58: 1 | AQ58: 0 | AR58: 1 | AS58: 0 | AT58: 1 | AU58: 0 | AV58: 0 | AZ58: 0 | BD58: 0 | BH58: 0 | BL58: 0 | BM58: 0 | BN58: 1 | BO58: 0 | BP58: 0 | BT58: 0 | CJ58: 0 | CN58: 0 | CR58: 0
A59: 55 | C59: 44 | D59: Michael Luff | E59: Blue Storm | J59: 0 | AN59: 0 | AR59: 0 | AV59: 0 | AZ59: 0 | BD59: 0 | BH59: 0 | BL59: 0 | BP59: 0 | BT59: 0 | CJ59: 0 | CN59: 0 | CR59: 0
A60: 56 | C60: 16 | D60: Mike Wood | E60: White Lightning | F60: 3 | G60: 1 | H60: 0 | I60: 0 | J60: 1 | R60: 3 | T60: 0 | U60: 8 | V60: 13 | AN60: 0 | AR60: 0 | AS60: 0 | AT60: 1 | AU60: 0 | AV60: 0 | AZ60: 0 | BD60: 0 | BH60: 0 | BI60: 0 | BJ60: 1 | BK60: 0 | BL60: 0 | BM60: 1 | BN60: 1 | BO60: 0 | BP60: 1 | BT60: 0 | CJ60: 0 | CN60: 0 | CR60: 0
A61: 57 | C61: 12 | D61: Dave MacKenzie | E61: White Lightning | J61: 0 | AN61: 0 | AR61: 0 | AV61: 0 | AZ61: 0 | BD61: 0 | BH61: 0 | BL61: 0 | BP61: 0 | BT61: 0 | CJ61: 0 | CN61: 0 | CR61: 0
A62: 58 | C62: 87 | D62: Scott Praught | E62: The Green Machine | F62: 3 | G62: 1 | H62: 0 | I62: 0 | J62: 1 | Q62: 1 | R62: 2 | T62: 0.3333333333 | U62: 9 | V62: 10 | AN62: 0 | AR62: 0 | AV62: 0 | AW62: 0 | AX62: 1 | AY62: 0 | AZ62: 0 | BD62: 0 | BH62: 0 | BL62: 0 | BP62: 0 | BQ62: 1 | BR62: 2 | BS62: 0 | BT62: 1 | CJ62: 0 | CN62: 0 | CR62: 0
A63: 59 | C63: 65 | D63: Matt Davis | E63: Red Light District | F63: 3 | G63: 0 | H63: 1 | I63: 0 | J63: 1 | Q63: 1 | R63: 2 | T63: 0.3333333333 | U63: 12 | V63: 19 | AN63: 0 | AR63: 0 | AV63: 0 | AW63: 0 | AX63: 1 | AY63: 0 | AZ63: 0 | BA63: 0 | BB63: 1 | BC63: 0 | BD63: 0 | BH63: 0 | BL63: 0 | BP63: 0 | BQ63: 0 | BR63: 1 | BS63: 1 | BT63: 1 | CJ63: 0 | CN63: 0 | CR63: 0
A64: 60 | C64: 62 | D64: Cole Tweedy | E64: Red Light District | F64: 3 | G64: 1 | H64: 0 | I64: 0 | J64: 1 | Q64: 1 | R64: 2 | T64: 0.3333333333 | U64: 12 | V64: 19 | AN64: 0 | AR64: 0 | AV64: 0 | AW64: 0 | AX64: 1 | AY64: 0 | AZ64: 0 | BA64: 0 | BB64: 1 | BC64: 0 | BD64: 0 | BH64: 0 | BL64: 0 | BP64: 0 | BQ64: 1 | BR64: 1 | BS64: 0 | BT64: 1 | CJ64: 0 | CN64: 0 | CR64: 0
A65: 61 | C65: 32 | D65: Ben Warren | E65: Purple Heys | F65: 2 | G65: 0 | H65: 0 | I65: 0 | J65: 0 | Q65: 1 | R65: 1 | T65: 0.5 | U65: 8 | V65: 6 | AN65: 0 | AR65: 0 | AS65: 0 | AT65: 1 | AU65: 0 | AV65: 0 | AZ65: 0 | BD65: 0 | BH65: 0 | BL65: 0 | BM65: 0 | BN65: 1 | BO65: 0 | BP65: 0 | BT65: 0 | CJ65: 0 | CN65: 0 | CR65: 0
A66: 62 | C66: 74 | D66: Darius Brenton | E66: Retribution | J66: 0 | AN66: 0 | AR66: 0 | AV66: 0 | AZ66: 0 | BD66: 0 | BH66: 0 | BL66: 0 | BP66: 0 | BT66: 0 | CJ66: 0 | CN66: 0 | CR66: 0
A67: 63 | C67: 19 | D67: Jeff King | E67: White Lightning | F67: 3 | G67: 1 | H67: 0 | I67: 0 | J67: =SUM(G67:I67) -> 1 | R67: 3 | T67: =(Q67*2+S67)/(SUM(Q67:S67)*2) -> 0 | U67: 8 | V67: 13 | AN67: =SUM(AK67,AM67) -> 0 | AR67: =SUM(AO67,AQ67) -> 0 | AS67: 0 | AT67: 1 | AU67: 0 | AV67: =SUM(AS67,AU67) -> 0 | AZ67: =SUM(AW67,AY67) -> 0 | BD67: =SUM(BA67,BC67) -> 0 | BH67: =SUM(BE67,BG67) -> 0 | BI67: 0 | BJ67: 1 | BK67: 0 | BL67: =SUM(BI67,BK67) -> 0 | BM67: 1 | BN67: 1 | BO67: 0 | BP67: =SUM(BM67,BO67) -> 1 | BT67: =SUM(BQ67,BS67) -> 0 | CJ67: =SUM(CG67,CI67) -> 0 | CN67: =SUM(CK67,CM67) -> 0 | CR67: =SUM(CO67,CQ67) -> 0
C68: 10 | D68: Mark Farrell | E68: White Lightning
C69: 20 | D69: Brandon Leet-MacFarlane | E69: Slashing Pumpkins
C70: 30 | D70: Chris Day | E70: Purple Heys
C71: 40 | D71: Tony Bonnar | E71: Blue Storm
C72: 50 | D72: Mike Bannister | E72: Golden Panthers
C73: 60 | D73: Dave Hickman | E73: Red Light District
C74: 70 | D74: Rick Kent | E74: Retribution
C75: 80 | D75: Paul Richard | E75: The Green Machine
C76: 90
C77: 100
C78: 110
C79: 120
C80: 130
C81: 91
C82: 92
C83: 93
C84: 94
C85: 95
C86: 96
C87: 97
C88: 98
C89: 99
F90: 94 | G90: 0 | H90: 0 | I90: 0 | Q90: 45 | R90: 49 | U90: 382 | V90: 397 | AO90: 0 | AP90: 10 | AQ90: 0 | AS90: 0 | AT90: 13 | AU90: 0 | AW90: 0 | AX90: 11 | AY90: 0 | BA90: 0 | BB90: 12 | BC90: 0 | BI90: 0 | BJ90: 13 | BK90: 0 | BM90: 0 | BN90: 13 | BO90: 0 | BQ90: 0 | BR90: 22 | BS90: 0

Sheet GoalieStats_Week01
N1: Record Against | R1: Record Against | V1: Record Against | Z1: Record Against | AD1: Record Against | AH1: Record Against | AL1: Record Against | AP1: Record Against
L2: Goals | M2: Assts | N2: White Lightning | O2: White Lightning | P2: White Lightning | Q2: White Lightning | R2: Slashing Pumpkins | S2: Slashing Pumpkins | T2: Slashing Pumpkins | U2: Slashing Pumpkins | V2: Purple Heys | W2: Purple Heys | X2: Purple Heys | Y2: Purple Heys | Z2: Blue Storm | AA2: Blue Storm | AB2: Blue Storm | AC2: Blue Storm | AD2: Golden Panthers | AE2: Golden Panthers | AF2: Golden Panthers | AG2: Golden Panthers | AH2: Red Light District | AI2: Red Light District | AJ2: Red Light District | AK2: Red Light District | AL2: Retribution | AM2: Retribution | AN2: Retribution | AO2: Retribution | AP2: The Green Machine | AQ2: The Green Machine | AR2: The Green Machine | AS2: The Green Machine
B3: Number | C3: Name | D3: Team | E3: Wins | F3: Losses | G3: Ties | H3: GA | I3: GAA | J3: Shots Against | K3: Save % | N3: W | O3: L | P3: T | Q3: GA | R3: W | S3: L | T3: T | U3: GA | V3: W | W3: L | X3: T | Y3: GA | Z3: W | AA3: L | AB3: T | AC3: GA | AD3: W | AE3: L | AF3: T | AG3: GA | AH3: W | AI3: L | AJ3: T | AK3: GA | AL3: W | AM3: L | AN3: T | AO3: GA | AP3: W | AQ3: L | AR3: T | AS3: GA
B4: 20 | C4: Brandon Leet-Macfarlane | D4: Slashing Pumpkins | E4: 3 | H4: 9 | I4: =H4/SUM(E4:G4) -> 3 | N4: 1 | Q4: 3 | V4: 1 | Y4: 3 | Z4: 1 | AC4: 3
B5: 50 | C5: Mike Bannister | D5: Golden Panthers
B6: 70 | C6: Rick Kent | D6: Retribution | E6: 3 | H6: 11 | I6: 3.666666667 | AD6: 1 | AG6: 3 | AH6: 1 | AK6: 5 | AP6: 1 | AS6: 3
B7: 30 | C7: Chris Day | D7: Purple Heys | E7: 2 | F7: 1 | H7: 7 | I7: 2.333333333 | N7: 1 | Q7: 1 | S7: 1 | U7: 4 | Z7: 1 | AC7: 2
B8: 92 | C8: Shawn Merrithew | D8: Spare
B9: 80 | C9: Paul Richard | D9: The Green Machine | E9: 1 | F9: 2 | H9: 10 | I9: 3.333333333 | AE9: 1 | AG9: 4 | AH9: 1 | AK9: 2 | AM9: 1 | AO9: 4
B10: 90 | C10: Frederic Mailhot Landry | D10: Red Light District | E10: 2 | F10: 4 | H10: 33 | I10: 5.5 | AD10: 1 | AG10: 3 | AI10: 1 | AK10: 5 | AM10: 2 | AO10: 19 | AP10: 1 | AQ10: 1 | AS10: 6
B11: 40 | C11: Tony Bonnar | D11: Blue Storm | E11: 1 | F11: 3 | H11: 20 | I11: 5 | N11: 1 | Q11: 4 | S11: 2 | U11: 11 | W11: 1 | Y11: 5
B12: 10 | C12: Mark Farrell | D12: White Lightning | F12: 2 | H12: 8 | I12: 4 | W12: 1 | Y12: 2 | AA12: 1 | AC12: 6
B13: 60 | C13: Dave Hickman | D13: Red Light District
B14: 95 | C14: Darryl Moorcroft | D14: Spare
B15: 94 | C15: Bruce Parent | D15: Spare
B16: 91 | C16: Dave MacFarlane | D16: Spare
B17: 93 | C17: Brandon Moss | D17: Spare
D19: Standings Thru Week | E19: W | F19: L | G19: T | H19: PTS | I19: GF | J19: GA | K19: Winning % | L19: Shots | M19: Shot % | N19: +/-
D20: Slashing Pumpkins | H20: =(E20*2)+G20 -> 0 | K20: =H20/(SUM(E20:G20)*2) ->  | N20: =I20-J20 -> 0
D21: Retribution | H21: 0 | N21: 0
D22: Red Light District | H22: 0 | N22: 0
D23: Blue Storm | H23: 0 | N23: 0
D24: Golden Panthers | H24: 0 | N24: 0
D25: The Green Machine | H25: 0 | N25: 0
D26: Purple Heys | H26: 0 | N26: 0
D27: White Lightning | H27: 0 | N27: 0
D31: Standings Thru Week 1 | E31: W | F31: L | G31: T | H31: PTS | I31: GF | J31: GA | K31: Winning % | L31: Shots | M31: Shot % | N31: +/-
D32: Retribution | E32: 3 | H32: 6 | I32: 22 | J32: 11 | K32: 1 | N32: 11
D33: Slashing Pumpkins | E33: 3 | H33: 6 | I33: 15 | J33: 9 | K33: 1 | N33: 6
D34: Purple Heys | E34: 2 | F34: 1 | H34: 4 | I34: 10 | J34: 7 | K34: 0.6666666667 | N34: 3
D35: The Green Machine | E35: 1 | F35: 2 | H35: 2 | I35: 9 | J35: 10 | K35: 0.3333333333 | N35: -1
D36: Blue Storm | E36: 1 | F36: 2 | H36: 2 | I36: 11 | J36: 15 | K36: 0.3333333333 | N36: -4
D37: Golden Panthers | E37: 1 | F37: 2 | H37: 2 | I37: 10 | J37: 14 | K37: 0.3333333333 | N37: -4
D38: Red Light District | E38: 1 | F38: 2 | H38: 2 | I38: 12 | J38: 18 | K38: 0.3333333333 | N38: -6
D39: White Lightning | F39: 3 | H39: 0 | I39: 8 | J39: 13 | K39: 0 | N39: -5
D41: Standings Thru Week 2 | E41: W | F41: L | G41: T | H41: PTS | I41: GF | J41: GA | K41: Winning % | L41: Shots | M41: Shot % | N41: +/-
D42: Slashing Pumpkins | E42: 6 | H42: =(E42*2)+G42 -> 12 | I42: 38 | J42: 15 | K42: =H42/(SUM(E42:G42)*2) -> 1 | N42: =I42-J42 -> 23
D43: Retribution | E43: 5 | F43: 1 | H43: 10 | I43: 35 | J43: 19 | K43: 0.8333333333 | N43: 16
D44: Red Light District | E44: 3 | F44: 3 | H44: 6 | I44: 27 | J44: 26 | K44: 0.5 | N44: 1
D45: Blue Storm | E45: 3 | F45: 3 | H45: 6 | I45: 20 | J45: 27 | K45: 0.5 | N45: -7
D46: Golden Panthers | E46: 2 | F46: 3 | G46: 1 | H46: 5 | I46: 24 | J46: 20 | K46: 0.4166666667 | N46: 4
D47: The Green Machine | E47: 2 | F47: 3 | G47: 1 | H47: 5 | I47: 24 | J47: 23 | K47: 0.4166666667 | N47: 1
D48: Purple Heys | E48: 2 | F48: 4 | H48: 4 | I48: 18 | J48: 24 | K48: 0.3333333333 | N48: -6
D49: White Lightning | F49: 6 | H49: 0 | I49: 13 | J49: 45 | K49: 0 | N49: -32
D51: Standings Thru Week 3 | E51: W | F51: L | G51: T | H51: PTS | I51: GF | J51: GA | K51: Winning % | L51: Shots | M51: Shot % | N51: +/-
D52: Retribution | E52: 8 | F52: 1 | H52: =(E52*2)+G52 -> 16 | I52: 57 | J52: 30 | K52: =H52/(SUM(E52:G52)*2) -> 0.8888888889 | N52: =I52-J52 -> 27
D53: Slashing Pumpkins | E53: 8 | F53: 1 | H53: 16 | I53: 52 | J53: 26 | K53: 0.8888888889 | N53: 26
D54: Golden Panthers | E54: 4 | F54: 3 | G54: 2 | H54: 10 | I54: 44 | J54: 32 | K54: 0.5555555556 | N54: 12
D55: Purple Heys | E55: 4 | F55: 4 | G55: 1 | H55: 9 | I55: 31 | J55: 34 | K55: 0.5 | N55: -3
D56: Blue Storm | E56: 4 | F56: 5 | H56: 8 | I56: 32 | J56: 44 | K56: 0.4444444444 | N56: -12
D57: Red Light District | E57: 3 | F57: 5 | G57: 1 | H57: 7 | I57: 38 | J57: 41 | K57: 0.3888888889 | N57: -3
D58: The Green Machine | E58: 2 | F58: 6 | G58: 1 | H58: 5 | I58: 35 | J58: 40 | K58: 0.2777777778 | N58: -5
D59: White Lightning | F59: 8 | G59: 1 | H59: 1 | I59: 24 | J59: 66 | K59: 0.05555555556 | N59: -42
D61: Standings Thru Week | E61: W | F61: L | G61: T | H61: PTS | I61: GF | J61: GA | K61: Winning % | L61: Shots | M61: Shot % | N61: +/-
D62: Slashing Pumpkins | E62: 11 | F62: 1 | H62: =(E62*2)+G62 -> 22 | I62: 80 | J62: 35 | K62: =H62/(SUM(E62:G62)*2) -> 0.9166666667 | N62: =I62-J62 -> 45
D63: Retribution | E63: 10 | F63: 2 | H63: 20 | I63: 73 | J63: 42 | K63: 0.8333333333 | N63: 31
D64: Golden Panthers | E64: 6 | F64: 4 | G64: 2 | H64: 14 | I64: 59 | J64: 45 | K64: 0.5833333333 | N64: 14
D65: Purple Heys | E65: 6 | F65: 5 | G65: 1 | H65: 13 | I65: 52 | J65: 44 | K65: 0.5416666667 | N65: 8
D66: Blue Storm | E66: 6 | F66: 6 | H66: 12 | I66: 47 | J66: 55 | K66: 0.5 | N66: -8
D67: Red Light District | E67: 4 | F67: 7 | G67: 1 | H67: 9 | I67: 50 | J67: 63 | K67: 0.375 | N67: -13
D68: The Green Machine | E68: 2 | F68: 9 | G68: 1 | H68: 5 | I68: 46 | J68: 71 | K68: 0.2083333333 | N68: -25
D69: White Lightning | F69: 11 | G69: 1 | H69: 1 | I69: 35 | J69: 87 | K69: 0.04166666667 | N69: -52

Sheet PlayerStats_Week02
C1: Week | G1: =MAX(G4:G66) -> 13 | H1: =MAX(H4:H66) -> 10 | I1: =MAX(I4:I66) -> 5 | J1: =MAX(J4:J66) -> 23 | AK1: =MAX(AK4:AK66) -> 1 | AL1: =MAX(AL4:AL66) -> 1 | AM1: =MAX(AM4:AM66) -> 2 | AN1: =MAX(AN4:AN66) -> 3 | AO1: =MAX(AO4:AO66) -> 2 | AP1: =MAX(AP4:AP66) -> 1 | AQ1: =MAX(AQ4:AQ66) -> 2 | AR1: =MAX(AR4:AR66) -> 3 | AS1: =MAX(AS4:AS66) -> 2 | AT1: =MAX(AT4:AT66) -> 2 | AU1: =MAX(AU4:AU66) -> 3 | AV1: =MAX(AV4:AV66) -> 4 | AW1: =MAX(AW4:AW66) -> 3 | AX1: =MAX(AX4:AX66) -> 2 | AY1: =MAX(AY4:AY66) -> 1 | AZ1: =MAX(AZ4:AZ66) -> 4 | BA1: =MAX(BA4:BA66) -> 3 | BB1: =MAX(BB4:BB66) -> 2 | BC1: =MAX(BC4:BC66) -> 3 | BD1: =MAX(BD4:BD66) -> 4 | BE1: =MAX(BE4:BE66) -> 0 | BF1: =MAX(BF4:BF66) -> 0 | BG1: =MAX(BG4:BG66) -> 0 | BH1: =MAX(BH4:BH66) -> 0 | BI1: =MAX(BI4:BI66) -> 4 | BJ1: =MAX(BJ4:BJ66) -> 2 | BK1: =MAX(BK4:BK66) -> 3 | BL1: =MAX(BL4:BL66) -> 5 | BM1: =MAX(BM4:BM66) -> 6 | BN1: =MAX(BN4:BN66) -> 2 | BO1: =MAX(BO4:BO66) -> 4 | BP1: =MAX(BP4:BP66) -> 6 | BQ1: =MAX(BQ4:BQ66) -> 8 | BR1: =MAX(BR4:BR66) -> 3 | BS1: =MAX(BS4:BS66) -> 9 | BT1: =MAX(BT4:BT66) -> 15 | BU1: =MAX(BU4:BU66) -> 0 | BV1: =MAX(BV4:BV66) -> 0 | BW1: =MAX(BW4:BW66) -> 0 | BX1: =MAX(BX4:BX66) -> 0 | BY1: =MAX(BY4:BY66) -> 5 | BZ1: =MAX(BZ4:BZ66) -> 1 | CA1: =MAX(CA4:CA66) -> 4 | CB1: =MAX(CB4:CB66) -> 0 | CC1: =MAX(CC4:CC66) -> 0 | CD1: =MAX(CD4:CD66) -> 0 | CE1: =MAX(CE4:CE66) -> 0 | CF1: =MAX(CF4:CF66) -> 0 | CG1: =MAX(CG4:CG66) -> 0 | CH1: =MAX(CH4:CH66) -> 0 | CI1: =MAX(CI4:CI66) -> 0 | CJ1: =MAX(CJ4:CJ66) -> 0 | CK1: =MAX(CK4:CK66) -> 0 | CL1: =MAX(CL4:CL66) -> 0 | CM1: =MAX(CM4:CM66) -> 0 | CN1: =MAX(CN4:CN66) -> 0 | CO1: =MAX(CO4:CO66) -> 0 | CP1: =MAX(CP4:CP66) -> 0 | CQ1: =MAX(CQ4:CQ66) -> 0 | CR1: =MAX(CR4:CR66) -> 0
C2: Game | G2: With Team | X2: As Spare | AS2: GOALS AGAINST GOALIE….
A3: 1 | B3: 2 | C3: 3 | D3: 4 | E3: 5 | F3: 6 | G3: 7 | H3: 8 | I3: 9 | J3: 10 | K3: 11 | L3: 12 | M3: 13 | N3: 14 | O3: 15 | P3: 16 | Q3: 17 | R3: 18 | S3: 19 | T3: 20 | U3: 21 | V3: 22 | W3: 23 | X3: 24 | Y3: 25 | Z3: 26 | AA3: 27 | AB3: 28 | AC3: 29 | AD3: 30 | AE3: 31 | AF3: 32 | AG3: 33 | AH3: 34 | AI3: 35 | AJ3: 36 | AK3: 37 | AL3: 38 | AM3: 39 | AN3: 40 | AO3: 41 | AP3: 42 | AQ3: 43 | AR3: 44 | AS3: 45 | AT3: 46 | AU3: 47 | AV3: 48 | AW3: 49 | AX3: 50 | AY3: 51 | AZ3: 52 | BA3: 53 | BB3: 54 | BC3: 55 | BD3: 56 | BE3: 57 | BF3: 58 | BG3: 59 | BH3: 60 | BI3: 61 | BJ3: 62 | BK3: 63 | BL3: 64 | BQ3: 65 | BR3: 66 | BS3: 67 | BT3: 68 | BU3: 69 | BV3: 70 | BW3: 71 | BX3: 72 | BY3: 65 | BZ3: 66 | CA3: 67 | CB3: 68 | CC3: 65 | CD3: 66 | CE3: 67 | CF3: 68 | CG3: 65 | CH3: 66 | CI3: 67 | CJ3: 68 | CK3: 65 | CL3: 66 | CM3: 67 | CN3: 68 | CO3: 65 | CP3: 66 | CQ3: 67 | CR3: 68
C4: Number | D4: Name | E4: Team | F4: GP | G4: Goals | H4: 1st Asst | I4: 2nd Asst | J4: Total | K4: GWG | L4: GWA | M4: GTG | N4: GTA | O4: Fluff Goals | P4: Fluff Assts | Q4: Wins | R4: Losses | S4: Ties | T4: Winning% | U4: GF | V4: GA | W4: +/- | X4: GP | Y4: Goals | Z4: 1st Asst | AA4: 2nd Asst | AB4: Total | AC4: Wins | AD4: Losses | AE4: Ties | AF4: Winning% | AG4: GF | AH4: GA | AI4: missing | AJ4: sum | AK4: Mike Bannister | AL4: Games Against | AM4: Assts | AN4: Totals | AO4: Mark Farrell | AP4: Games Against | AQ4: Assts | AR4: Totals | AS4: Brandon Leet-Macfarlane | AT4: Games Against | AU4: Assts | AV4: Totals | AW4: Rick Kent | AX4: Games Against | AY4: Assts | AZ4: Totals | BA4: Paul Richard | BB4: Games Against | BC4: Assts | BD4: Totals | BE4: Dave Hickman | BF4: Games Against | BG4: Assts | BH4: Totals | BI4: Chris Day | BJ4: Games Against | BK4: Assts | BL4: Totals | BM4: Tony Bonnar | BN4: Games Against | BO4: Assts | BP4: Totals | BQ4: Frederic Mailhot Landry | BR4: Games Against | BS4: Assts | BT4: Totals | BU4: Shawn Merrithew | BV4: Games Against | BW4: Assts | BX4: Totals | BY4: Dave MacFarlane | BZ4: Games Against | CA4: Assts | CB4: Totals | CC4: Brandon Moss | CD4: Games Against | CE4: Assts | CF4: Totals | CG4: Bruce Parent | CH4: Games Against | CI4: Assts | CJ4: Totals | CK4: Darryl Moorcroft | CL4: Games Against | CM4: Assts | CN4: Totals | CP4: Games Against | CQ4: Assts | CR4: Totals
A5: 1 | C5: 77 | D5: Ray Chase | E5: Retribution | F5: 6 | G5: 13 | H5: 9 | I5: 1 | J5: =SUM(G5:I5) -> 23 | K5: 1 | L5: 1 | O5: 2 | P5: 1 | Q5: 5 | R5: 1 | T5: =(Q5*2+S5)/(SUM(Q5:S5)*2) -> 0.8333333333 | U5: 38 | V5: 19 | AN5: =SUM(AK5,AM5) -> 0 | AR5: =SUM(AO5,AQ5) -> 0 | AV5: =SUM(AS5,AU5) -> 0 | AZ5: =SUM(AW5,AY5) -> 0 | BA5: 3 | BB5: 1 | BC5: 0 | BD5: =SUM(BA5,BC5) -> 3 | BH5: =SUM(BE5,BG5) -> 0 | BI5: 2 | BJ5: 1 | BK5: 3 | BL5: =SUM(BI5,BK5) -> 5 | BM5: 0 | BN5: 1 | BO5: 0 | BP5: =SUM(BM5,BO5) -> 0 | BQ5: 8 | BR5: 3 | BS5: 7 | BT5: =SUM(BQ5,BS5) -> 15 | CJ5: =SUM(CG5,CI5) -> 0 | CN5: =SUM(CK5,CM5) -> 0 | CR5: =SUM(CO5,CQ5) -> 0
A6: 2 | C6: 71 | D6: Marc Guitard | E6: Retribution | F6: 6 | G6: 6 | H6: 10 | I6: 4 | J6: =SUM(G6:I6) -> 20 | L6: 1 | P6: 3 | Q6: 5 | R6: 1 | T6: =(Q6*2+S6)/(SUM(Q6:S6)*2) -> 0.8333333333 | U6: 38 | V6: 19 | AN6: =SUM(AK6,AM6) -> 0 | AR6: =SUM(AO6,AQ6) -> 0 | AV6: =SUM(AS6,AU6) -> 0 | AZ6: =SUM(AW6,AY6) -> 0 | BA6: 0 | BB6: 1 | BC6: 3 | BD6: =SUM(BA6,BC6) -> 3 | BH6: =SUM(BE6,BG6) -> 0 | BI6: 0 | BJ6: 1 | BK6: 2 | BL6: =SUM(BI6,BK6) -> 2 | BM6: 1 | BN6: 1 | BO6: 0 | BP6: =SUM(BM6,BO6) -> 1 | BQ6: 5 | BR6: 3 | BS6: 9 | BT6: =SUM(BQ6,BS6) -> 14 | CJ6: =SUM(CG6,CI6) -> 0 | CN6: =SUM(CK6,CM6) -> 0 | CR6: =SUM(CO6,CQ6) -> 0
A7: 3 | C7: 26 | D7: Richard Kwiatkowski | E7: Slashing Pumpkins | F7: 6 | G7: 13 | H7: 2 | I7: 1 | J7: =SUM(G7:I7) -> 16 | K7: 3 | O7: 1 | P7: 1 | Q7: 6 | T7: =(Q7*2+S7)/(SUM(Q7:S7)*2) -> 1 | U7: 38 | V7: 15 | AK7: 1 | AL7: 1 | AM7: 0 | AN7: =SUM(AK7,AM7) -> 1 | AR7: =SUM(AO7,AQ7) -> 0 | AV7: =SUM(AS7,AU7) -> 0 | AZ7: =SUM(AW7,AY7) -> 0 | BA7: 2 | BB7: 1 | BC7: 1 | BD7: =SUM(BA7,BC7) -> 3 | BH7: =SUM(BE7,BG7) -> 0 | BI7: 1 | BJ7: 1 | BK7: 0 | BL7: =SUM(BI7,BK7) -> 1 | BM7: 6 | BN7: 2 | BO7: 0 | BP7: =SUM(BM7,BO7) -> 6 | BT7: =SUM(BQ7,BS7) -> 0 | BY7: 3 | BZ7: 1 | CA7: 2 | CJ7: =SUM(CG7,CI7) -> 0 | CN7: =SUM(CK7,CM7) -> 0 | CR7: =SUM(CO7,CQ7) -> 0
A8: 4 | C8: 72 | D8: Aaron Cornish | E8: Retribution | F8: 6 | G8: 8 | H8: 4 | I8: 2 | J8: =SUM(G8:I8) -> 14 | K8: 3 | O8: 1 | Q8: 5 | R8: 1 | T8: =(Q8*2+S8)/(SUM(Q8:S8)*2) -> 0.8333333333 | U8: 38 | V8: 19 | AN8: =SUM(AK8,AM8) -> 0 | AR8: =SUM(AO8,AQ8) -> 0 | AV8: =SUM(AS8,AU8) -> 0 | AZ8: =SUM(AW8,AY8) -> 0 | BA8: 1 | BB8: 1 | BC8: 0 | BD8: =SUM(BA8,BC8) -> 1 | BH8: =SUM(BE8,BG8) -> 0 | BI8: 2 | BJ8: 1 | BK8: 1 | BL8: =SUM(BI8,BK8) -> 3 | BM8: 0 | BN8: 1 | BO8: 0 | BP8: =SUM(BM8,BO8) -> 0 | BQ8: 5 | BR8: 3 | BS8: 5 | BT8: =SUM(BQ8,BS8) -> 10 | CJ8: =SUM(CG8,CI8) -> 0 | CN8: =SUM(CK8,CM8) -> 0 | CR8: =SUM(CO8,CQ8) -> 0
A9: 5 | C9: 25 | D9: Matt Vautour | E9: Slashing Pumpkins | F9: 6 | G9: 13 | H9: 3 | I9: 1 | J9: =SUM(G9:I9) -> 17 | K9: 1 | L9: 2 | O9: 4 | Q9: 6 | T9: =(Q9*2+S9)/(SUM(Q9:S9)*2) -> 1 | U9: 38 | V9: 15 | AK9: 1 | AL9: 1 | AM9: 1 | AN9: =SUM(AK9,AM9) -> 2 | AR9: =SUM(AO9,AQ9) -> 0 | AV9: =SUM(AS9,AU9) -> 0 | AZ9: =SUM(AW9,AY9) -> 0 | BA9: 3 | BB9: 1 | BC9: 0 | BD9: =SUM(BA9,BC9) -> 3 | BH9: =SUM(BE9,BG9) -> 0 | BI9: 3 | BJ9: 1 | BK9: 0 | BL9: =SUM(BI9,BK9) -> 3 | BM9: 1 | BN9: 2 | BO9: 2 | BP9: =SUM(BM9,BO9) -> 3 | BT9: =SUM(BQ9,BS9) -> 0 | BY9: 5 | BZ9: 1 | CA9: 1 | CJ9: =SUM(CG9,CI9) -> 0 | CN9: =SUM(CK9,CM9) -> 0 | CR9: =SUM(CO9,CQ9) -> 0
A10: 6 | C10: 55 | D10: Ian Stevens | E10: Golden Panthers | F10: 6 | G10: 6 | H10: 3 | I10: 3 | J10: =SUM(G10:I10) -> 12 | O10: 1 | P10: 1 | Q10: 2 | R10: 3 | S10: 1 | T10: =(Q10*2+S10)/(SUM(Q10:S10)*2) -> 0.4166666667 | U10: 24 | V10: 20 | AN10: =SUM(AK10,AM10) -> 0 | AR10: =SUM(AO10,AQ10) -> 0 | AS10: 1 | AT10: 1 | AU10: 0 | AV10: =SUM(AS10,AU10) -> 1 | AW10: 1 | AX10: 1 | AY10: 1 | AZ10: =SUM(AW10,AY10) -> 2 | BA10: 2 | BB10: 2 | BC10: 1 | BD10: =SUM(BA10,BC10) -> 3 | BH10: =SUM(BE10,BG10) -> 0 | BL10: =SUM(BI10,BK10) -> 0 | BP10: =SUM(BM10,BO10) -> 0 | BQ10: 0 | BR10: 1 | BS10: 1 | BT10: =SUM(BQ10,BS10) -> 1 | BY10: 2 | BZ10: 1 | CA10: 3 | CJ10: =SUM(CG10,CI10) -> 0 | CN10: =SUM(CK10,CM10) -> 0 | CR10: =SUM(CO10,CQ10) -> 0
A11: 7 | C11: 81 | D11: Collin Sleep | E11: The Green Machine | F11: 6 | G11: 7 | H11: 2 | I11: 4 | J11: =SUM(G11:I11) -> 13 | K11: 1 | N11: 1 | O11: 1 | P11: 2 | Q11: 2 | R11: 3 | S11: 1 | T11: =(Q11*2+S11)/(SUM(Q11:S11)*2) -> 0.4166666667 | U11: 24 | V11: 23 | AK11: 1 | AL11: 1 | AM11: 2 | AN11: =SUM(AK11,AM11) -> 3 | AR11: =SUM(AO11,AQ11) -> 0 | AS11: 1 | AT11: 1 | AU11: 1 | AV11: =SUM(AS11,AU11) -> 2 | AW11: 0 | AX11: 1 | AY11: 0 | AZ11: =SUM(AW11,AY11) -> 0 | BD11: =SUM(BA11,BC11) -> 0 | BH11: =SUM(BE11,BG11) -> 0 | BL11: =SUM(BI11,BK11) -> 0 | BP11: =SUM(BM11,BO11) -> 0 | BQ11: 1 | BR11: 2 | BS11: 0 | BT11: =SUM(BQ11,BS11) -> 1 | BY11: 4 | BZ11: 1 | CA11: 3 | CJ11: =SUM(CG11,CI11) -> 0 | CN11: =SUM(CK11,CM11) -> 0 | CR11: =SUM(CO11,CQ11) -> 0
A12: 8 | C12: 37 | D12: Joel Thorne | E12: Purple Heys | F12: 6 | G12: 6 | H12: 4 | I12: 0 | J12: =SUM(G12:I12) -> 10 | Q12: 2 | R12: 4 | T12: =(Q12*2+S12)/(SUM(Q12:S12)*2) -> 0.3333333333 | U12: 18 | V12: 24 | AN12: =SUM(AK12,AM12) -> 0 | AO12: 0 | AP12: 1 | AQ12: 0 | AR12: =SUM(AO12,AQ12) -> 0 | AS12: 1 | AT12: 1 | AU12: 1 | AV12: =SUM(AS12,AU12) -> 2 | AW12: 2 | AX12: 1 | AY12: 1 | AZ12: =SUM(AW12,AY12) -> 3 | BD12: =SUM(BA12,BC12) -> 0 | BH12: =SUM(BE12,BG12) -> 0 | BL12: =SUM(BI12,BK12) -> 0 | BM12: 2 | BN12: 2 | BO12: 2 | BP12: =SUM(BM12,BO12) -> 4 | BQ12: 1 | BR12: 1 | BS12: 0 | BT12: =SUM(BQ12,BS12) -> 1 | CJ12: =SUM(CG12,CI12) -> 0 | CN12: =SUM(CK12,CM12) -> 0 | CR12: =SUM(CO12,CQ12) -> 0
A13: 9 | C13: 54 | D13: Ian LaPointe | E13: Golden Panthers | F13: 6 | G13: 7 | H13: 1 | I13: 1 | J13: =SUM(G13:I13) -> 9 | Q13: 2 | R13: 3 | S13: 1 | T13: =(Q13*2+S13)/(SUM(Q13:S13)*2) -> 0.4166666667 | U13: 24 | V13: 20 | AN13: =SUM(AK13,AM13) -> 0 | AR13: =SUM(AO13,AQ13) -> 0 | AS13: 0 | AT13: 1 | AU13: 0 | AV13: =SUM(AS13,AU13) -> 0 | AW13: 1 | AX13: 1 | AY13: 0 | AZ13: =SUM(AW13,AY13) -> 1 | BA13: 2 | BB13: 2 | BC13: 1 | BD13: =SUM(BA13,BC13) -> 3 | BH13: =SUM(BE13,BG13) -> 0 | BL13: =SUM(BI13,BK13) -> 0 | BP13: =SUM(BM13,BO13) -> 0 | BQ13: 2 | BR13: 1 | BS13: 0 | BT13: =SUM(BQ13,BS13) -> 2 | BY13: 2 | BZ13: 1 | CA13: 1 | CJ13: =SUM(CG13,CI13) -> 0 | CN13: =SUM(CK13,CM13) -> 0 | CR13: =SUM(CO13,CQ13) -> 0
A14: 10 | C14: 64 | D14: Jamie Williams | E14: Red Light District | F14: 6 | G14: 8 | H14: 3 | I14: 1 | J14: =SUM(G14:I14) -> 12 | K14: 1 | O14: 1 | Q14: 3 | R14: 3 | T14: =(Q14*2+S14)/(SUM(Q14:S14)*2) -> 0.5 | U14: 27 | V14: 29 | AN14: =SUM(AK14,AM14) -> 0 | AR14: =SUM(AO14,AQ14) -> 0 | AV14: =SUM(AS14,AU14) -> 0 | AW14: 1 | AX14: 2 | AY14: 1 | AZ14: =SUM(AW14,AY14) -> 2 | BA14: 0 | BB14: 1 | BC14: 0 | BD14: =SUM(BA14,BC14) -> 0 | BH14: =SUM(BE14,BG14) -> 0 | BI14: 2 | BJ14: 1 | BK14: 2 | BL14: =SUM(BI14,BK14) -> 4 | BM14: 4 | BN14: 1 | BO14: 0 | BP14: =SUM(BM14,BO14) -> 4 | BQ14: 1 | BR14: 1 | BS14: 1 | BT14: =SUM(BQ14,BS14) -> 2 | CJ14: =SUM(CG14,CI14) -> 0 | CN14: =SUM(CK14,CM14) -> 0 | CR14: =SUM(CO14,CQ14) -> 0
A15: 11 | C15: 83 | D15: Craig Maranda | E15: The Green Machine | F15: 6 | G15: 9 | H15: 4 | I15: 0 | J15: =SUM(G15:I15) -> 13 | M15: 1 | O15: 1 | P15: 1 | Q15: 2 | R15: 3 | S15: 1 | T15: =(Q15*2+S15)/(SUM(Q15:S15)*2) -> 0.4166666667 | U15: 24 | V15: 23 | AK15: 1 | AL15: 1 | AM15: 1 | AN15: =SUM(AK15,AM15) -> 2 | AR15: =SUM(AO15,AQ15) -> 0 | AS15: 1 | AT15: 1 | AU15: 1 | AV15: =SUM(AS15,AU15) -> 2 | AW15: 3 | AX15: 1 | AY15: 0 | AZ15: =SUM(AW15,AY15) -> 3 | BD15: =SUM(BA15,BC15) -> 0 | BH15: =SUM(BE15,BG15) -> 0 | BL15: =SUM(BI15,BK15) -> 0 | BP15: =SUM(BM15,BO15) -> 0 | BQ15: 1 | BR15: 2 | BS15: 0 | BT15: =SUM(BQ15,BS15) -> 1 | BY15: 3 | BZ15: 1 | CA15: 2 | CJ15: =SUM(CG15,CI15) -> 0 | CN15: =SUM(CK15,CM15) -> 0 | CR15: =SUM(CO15,CQ15) -> 0
A16: 12 | C16: 41 | D16: Michael Moore | E16: Blue Storm | F16: 6 | G16: 7 | H16: 4 | I16: 1 | J16: =SUM(G16:I16) -> 12 | K16: 2 | L16: 1 | Q16: 3 | R16: 3 | T16: =(Q16*2+S16)/(SUM(Q16:S16)*2) -> 0.5 | U16: 20 | V16: 27 | AN16: =SUM(AK16,AM16) -> 0 | AO16: 2 | AP16: 1 | AQ16: 1 | AR16: =SUM(AO16,AQ16) -> 3 | AS16: 1 | AT16: 1 | AU16: 2 | AV16: =SUM(AS16,AU16) -> 3 | AW16: 0 | AX16: 1 | AY16: 1 | AZ16: =SUM(AW16,AY16) -> 1 | BD16: =SUM(BA16,BC16) -> 0 | BH16: =SUM(BE16,BG16) -> 0 | BI16: 4 | BJ16: 2 | BK16: 1 | BL16: =SUM(BI16,BK16) -> 5 | BP16: =SUM(BM16,BO16) -> 0 | BQ16: 0 | BR16: 1 | BS16: 0 | BT16: =SUM(BQ16,BS16) -> 0 | CJ16: =SUM(CG16,CI16) -> 0 | CN16: =SUM(CK16,CM16) -> 0 | CR16: =SUM(CO16,CQ16) -> 0
A17: 13 | C17: 36 | D17: Jeff Schriver | E17: Purple Heys | F17: 6 | G17: 6 | H17: 3 | I17: 0 | J17: =SUM(G17:I17) -> 9 | K17: 1 | Q17: 2 | R17: 4 | T17: =(Q17*2+S17)/(SUM(Q17:S17)*2) -> 0.3333333333 | U17: 18 | V17: 24 | AN17: =SUM(AK17,AM17) -> 0 | AO17: 1 | AP17: 1 | AQ17: 0 | AR17: =SUM(AO17,AQ17) -> 1 | AS17: 2 | AT17: 1 | AU17: 0 | AV17: =SUM(AS17,AU17) -> 2 | AW17: 1 | AX17: 1 | AY17: 0 | AZ17: =SUM(AW17,AY17) -> 1 | BD17: =SUM(BA17,BC17) -> 0 | BH17: =SUM(BE17,BG17) -> 0 | BL17: =SUM(BI17,BK17) -> 0 | BM17: 2 | BN17: 2 | BO17: 2 | BP17: =SUM(BM17,BO17) -> 4 | BQ17: 0 | BR17: 1 | BS17: 1 | BT17: =SUM(BQ17,BS17) -> 1 | CJ17: =SUM(CG17,CI17) -> 0 | CN17: =SUM(CK17,CM17) -> 0 | CR17: =SUM(CO17,CQ17) -> 0
A18: 14 | C18: 73 | D18: Brian Kelly | E18: Retribution | F18: 6 | G18: 5 | H18: 2 | I18: 2 | J18: =SUM(G18:I18) -> 9 | K18: 1 | L18: 1 | Q18: 5 | R18: 1 | T18: =(Q18*2+S18)/(SUM(Q18:S18)*2) -> 0.8333333333 | U18: 38 | V18: 19 | AN18: =SUM(AK18,AM18) -> 0 | AR18: =SUM(AO18,AQ18) -> 0 | AV18: =SUM(AS18,AU18) -> 0 | AZ18: =SUM(AW18,AY18) -> 0 | BA18: 0 | BB18: 1 | BC18: 0 | BD18: =SUM(BA18,BC18) -> 0 | BH18: =SUM(BE18,BG18) -> 0 | BI18: 3 | BJ18: 1 | BK18: 1 | BL18: =SUM(BI18,BK18) -> 4 | BM18: 0 | BN18: 1 | BO18: 0 | BP18: =SUM(BM18,BO18) -> 0 | BQ18: 2 | BR18: 3 | BS18: 3 | BT18: =SUM(BQ18,BS18) -> 5 | CJ18: =SUM(CG18,CI18) -> 0 | CN18: =SUM(CK18,CM18) -> 0 | CR18: =SUM(CO18,CQ18) -> 0
A19: 15 | C19: 53 | D19: Douglas Taylor | E19: Golden Panthers | F19: 6 | G19: 4 | H19: 2 | I19: 3 | J19: =SUM(G19:I19) -> 9 | K19: 1 | Q19: 2 | R19: 3 | S19: 1 | T19: =(Q19*2+S19)/(SUM(Q19:S19)*2) -> 0.4166666667 | U19: 24 | V19: 20 | AN19: =SUM(AK19,AM19) -> 0 | AR19: =SUM(AO19,AQ19) -> 0 | AS19: 0 | AT19: 1 | AU19: 0 | AV19: =SUM(AS19,AU19) -> 0 | AW19: 1 | AX19: 1 | AY19: 0 | AZ19: =SUM(AW19,AY19) -> 1 | BA19: 2 | BB19: 2 | BC19: 2 | BD19: =SUM(BA19,BC19) -> 4 | BH19: =SUM(BE19,BG19) -> 0 | BL19: =SUM(BI19,BK19) -> 0 | BP19: =SUM(BM19,BO19) -> 0 | BQ19: 1 | BR19: 1 | BS19: 1 | BT19: =SUM(BQ19,BS19) -> 2 | BY19: 0 | BZ19: 1 | CA19: 2 | CJ19: =SUM(CG19,CI19) -> 0 | CN19: =SUM(CK19,CM19) -> 0 | CR19: =SUM(CO19,CQ19) -> 0
A20: 16 | C20: 51 | D20: Vince MacDonald | E20: Golden Panthers | F20: 6 | G20: 3 | H20: 5 | I20: 0 | J20: =SUM(G20:I20) -> 8 | K20: 1 | P20: 2 | Q20: 2 | R20: 3 | S20: 1 | T20: =(Q20*2+S20)/(SUM(Q20:S20)*2) -> 0.4166666667 | U20: 24 | V20: 20 | AN20: =SUM(AK20,AM20) -> 0 | AR20: =SUM(AO20,AQ20) -> 0 | AS20: 0 | AT20: 1 | AU20: 0 | AV20: =SUM(AS20,AU20) -> 0 | AW20: 0 | AX20: 1 | AY20: 1 | AZ20: =SUM(AW20,AY20) -> 1 | BA20: 0 | BB20: 2 | BC20: 0 | BD20: =SUM(BA20,BC20) -> 0 | BH20: =SUM(BE20,BG20) -> 0 | BL20: =SUM(BI20,BK20) -> 0 | BP20: =SUM(BM20,BO20) -> 0 | BQ20: 0 | BR20: 1 | BS20: 0 | BT20: =SUM(BQ20,BS20) -> 0 | BY20: 3 | BZ20: 1 | CA20: 4 | CJ20: =SUM(CG20,CI20) -> 0 | CN20: =SUM(CK20,CM20) -> 0 | CR20: =SUM(CO20,CQ20) -> 0
A21: 17 | C21: 61 | D21: Jon Loubert | E21: Red Light District | F21: 6 | G21: 4 | H21: 2 | I21: 0 | J21: =SUM(G21:I21) -> 6 | L21: 1 | Q21: 3 | R21: 3 | T21: =(Q21*2+S21)/(SUM(Q21:S21)*2) -> 0.5 | U21: 27 | V21: 29 | AN21: =SUM(AK21,AM21) -> 0 | AR21: =SUM(AO21,AQ21) -> 0 | AV21: =SUM(AS21,AU21) -> 0 | AW21: 1 | AX21: 2 | AY21: 0 | AZ21: =SUM(AW21,AY21) -> 1 | BA21: 0 | BB21: 1 | BC21: 0 | BD21: =SUM(BA21,BC21) -> 0 | BH21: =SUM(BE21,BG21) -> 0 | BI21: 0 | BJ21: 1 | BK21: 0 | BL21: =SUM(BI21,BK21) -> 0 | BM21: 3 | BN21: 1 | BO21: 2 | BP21: =SUM(BM21,BO21) -> 5 | BQ21: 0 | BR21: 1 | BS21: 0 | BT21: =SUM(BQ21,BS21) -> 0 | CJ21: =SUM(CG21,CI21) -> 0 | CN21: =SUM(CK21,CM21) -> 0 | CR21: =SUM(CO21,CQ21) -> 0
A22: 18 | C22: 68 | D22: Troy Doyle | E22: Red Light District | F22: 6 | G22: 6 | H22: 6 | I22: 0 | J22: =SUM(G22:I22) -> 12 | K22: 1 | P22: 1 | Q22: 3 | R22: 3 | T22: =(Q22*2+S22)/(SUM(Q22:S22)*2) -> 0.5 | U22: 27 | V22: 29 | AN22: =SUM(AK22,AM22) -> 0 | AR22: =SUM(AO22,AQ22) -> 0 | AV22: =SUM(AS22,AU22) -> 0 | AW22: 3 | AX22: 2 | AY22: 1 | AZ22: =SUM(AW22,AY22) -> 4 | BA22: 2 | BB22: 1 | BC22: 0 | BD22: =SUM(BA22,BC22) -> 2 | BH22: =SUM(BE22,BG22) -> 0 | BI22: 0 | BJ22: 1 | BK22: 1 | BL22: =SUM(BI22,BK22) -> 1 | BM22: 0 | BN22: 1 | BO22: 4 | BP22: =SUM(BM22,BO22) -> 4 | BQ22: 1 | BR22: 1 | BS22: 0 | BT22: =SUM(BQ22,BS22) -> 1 | CJ22: =SUM(CG22,CI22) -> 0 | CN22: =SUM(CK22,CM22) -> 0 | CR22: =SUM(CO22,CQ22) -> 0
A23: 19 | C23: 27 | D23: Rick Bartlett | E23: Slashing Pumpkins | F23: 6 | G23: 1 | H23: 6 | I23: 1 | J23: =SUM(G23:I23) -> 8 | P23: 2 | Q23: 6 | T23: =(Q23*2+S23)/(SUM(Q23:S23)*2) -> 1 | U23: 38 | V23: 15 | AK23: 0 | AL23: 1 | AM23: 0 | AN23: =SUM(AK23,AM23) -> 0 | AR23: =SUM(AO23,AQ23) -> 0 | AV23: =SUM(AS23,AU23) -> 0 | AZ23: =SUM(AW23,AY23) -> 0 | BA23: 0 | BB23: 1 | BC23: 1 | BD23: =SUM(BA23,BC23) -> 1 | BH23: =SUM(BE23,BG23) -> 0 | BI23: 0 | BJ23: 1 | BK23: 0 | BL23: =SUM(BI23,BK23) -> 0 | BM23: 0 | BN23: 2 | BO23: 3 | BP23: =SUM(BM23,BO23) -> 3 | BT23: =SUM(BQ23,BS23) -> 0 | BY23: 1 | BZ23: 1 | CA23: 3 | CJ23: =SUM(CG23,CI23) -> 0 | CN23: =SUM(CK23,CM23) -> 0 | CR23: =SUM(CO23,CQ23) -> 0
A24: 20 | C24: 23 | D24: Jacob Wilson | E24: Slashing Pumpkins | F24: 6 | G24: 8 | H24: 1 | I24: 0 | J24: =SUM(G24:I24) -> 9 | K24: 1 | L24: 1 | O24: 1 | Q24: 6 | T24: =(Q24*2+S24)/(SUM(Q24:S24)*2) -> 1 | U24: 38 | V24: 15 | AK24: 0 | AL24: 1 | AM24: 0 | AN24: =SUM(AK24,AM24) -> 0 | AR24: =SUM(AO24,AQ24) -> 0 | AV24: =SUM(AS24,AU24) -> 0 | AZ24: =SUM(AW24,AY24) -> 0 | BA24: 2 | BB24: 1 | BC24: 1 | BD24: =SUM(BA24,BC24) -> 3 | BH24: =SUM(BE24,BG24) -> 0 | BI24: 0 | BJ24: 1 | BK24: 0 | BL24: =SUM(BI24,BK24) -> 0 | BM24: 4 | BN24: 2 | BO24: 0 | BP24: =SUM(BM24,BO24) -> 4 | BT24: =SUM(BQ24,BS24) -> 0 | BY24: 2 | BZ24: 1 | CA24: 0 | CJ24: =SUM(CG24,CI24) -> 0 | CN24: =SUM(CK24,CM24) -> 0 | CR24: =SUM(CO24,CQ24) -> 0
A25: 21 | C25: 14 | D25: Mark Whitlock | E25: White Lightning | F25: 6 | G25: 2 | H25: 3 | I25: 1 | J25: =SUM(G25:I25) -> 6 | R25: 6 | T25: =(Q25*2+S25)/(SUM(Q25:S25)*2) -> 0 | U25: 13 | V25: 45 | AK25: 0 | AL25: 1 | AM25: 0 | AN25: =SUM(AK25,AM25) -> 0 | AR25: =SUM(AO25,AQ25) -> 0 | AS25: 1 | AT25: 2 | AU25: 3 | AV25: =SUM(AS25,AU25) -> 4 | AZ25: =SUM(AW25,AY25) -> 0 | BA25: 0 | BB25: 1 | BC25: 0 | BD25: =SUM(BA25,BC25) -> 0 | BH25: =SUM(BE25,BG25) -> 0 | BI25: 0 | BJ25: 1 | BK25: 1 | BL25: =SUM(BI25,BK25) -> 1 | BM25: 1 | BN25: 1 | BO25: 0 | BP25: =SUM(BM25,BO25) -> 1 | BT25: =SUM(BQ25,BS25) -> 0 | CJ25: =SUM(CG25,CI25) -> 0 | CN25: =SUM(CK25,CM25) -> 0 | CR25: =SUM(CO25,CQ25) -> 0
A26: 22 | C26: 88 | D26: Stephen Atherton | E26: The Green Machine | F26: 6 | G26: 2 | H26: 4 | I26: 2 | J26: =SUM(G26:I26) -> 8 | N26: 1 | O26: 1 | Q26: 2 | R26: 3 | S26: 1 | T26: =(Q26*2+S26)/(SUM(Q26:S26)*2) -> 0.4166666667 | U26: 24 | V26: 23 | AK26: 1 | AL26: 1 | AM26: 1 | AN26: =SUM(AK26,AM26) -> 2 | AR26: =SUM(AO26,AQ26) -> 0 | AS26: 0 | AT26: 1 | AU26: 0 | AV26: =SUM(AS26,AU26) -> 0 | AW26: 0 | AX26: 1 | AY26: 1 | AZ26: =SUM(AW26,AY26) -> 1 | BD26: =SUM(BA26,BC26) -> 0 | BH26: =SUM(BE26,BG26) -> 0 | BL26: =SUM(BI26,BK26) -> 0 | BP26: =SUM(BM26,BO26) -> 0 | BQ26: 0 | BR26: 2 | BS26: 2 | BT26: =SUM(BQ26,BS26) -> 2 | BY26: 1 | BZ26: 1 | CA26: 2 | CJ26: =SUM(CG26,CI26) -> 0 | CN26: =SUM(CK26,CM26) -> 0 | CR26: =SUM(CO26,CQ26) -> 0
A27: 23 | C27: 21 | D27: James Campbell | E27: Slashing Pumpkins | F27: 6 | G27: 0 | H27: 8 | I27: 2 | J27: =SUM(G27:I27) -> 10 | L27: 3 | P27: 1 | Q27: 6 | T27: =(Q27*2+S27)/(SUM(Q27:S27)*2) -> 1 | U27: 38 | V27: 15 | AK27: 0 | AL27: 1 | AM27: 0 | AN27: =SUM(AK27,AM27) -> 0 | AR27: =SUM(AO27,AQ27) -> 0 | AV27: =SUM(AS27,AU27) -> 0 | AZ27: =SUM(AW27,AY27) -> 0 | BA27: 0 | BB27: 1 | BC27: 2 | BD27: =SUM(BA27,BC27) -> 2 | BH27: =SUM(BE27,BG27) -> 0 | BI27: 0 | BJ27: 1 | BK27: 3 | BL27: =SUM(BI27,BK27) -> 3 | BM27: 0 | BN27: 2 | BO27: 2 | BP27: =SUM(BM27,BO27) -> 2 | BT27: =SUM(BQ27,BS27) -> 0 | BY27: 0 | BZ27: 1 | CA27: 3 | CJ27: =SUM(CG27,CI27) -> 0 | CN27: =SUM(CK27,CM27) -> 0 | CR27: =SUM(CO27,CQ27) -> 0
A28: 24 | C28: 15 | D28: Sean Keenan | E28: White Lightning | F28: 3 | G28: 4 | H28: 1 | I28: 0 | J28: =SUM(G28:I28) -> 5 | R28: 3 | T28: =(Q28*2+S28)/(SUM(Q28:S28)*2) -> 0 | U28: 8 | V28: 13 | AN28: =SUM(AK28,AM28) -> 0 | AR28: =SUM(AO28,AQ28) -> 0 | AS28: 2 | AT28: 1 | AU28: 1 | AV28: =SUM(AS28,AU28) -> 3 | AZ28: =SUM(AW28,AY28) -> 0 | BD28: =SUM(BA28,BC28) -> 0 | BH28: =SUM(BE28,BG28) -> 0 | BI28: 1 | BJ28: 1 | BK28: 0 | BL28: =SUM(BI28,BK28) -> 1 | BM28: 1 | BN28: 1 | BO28: 0 | BP28: =SUM(BM28,BO28) -> 1 | BT28: =SUM(BQ28,BS28) -> 0 | CJ28: =SUM(CG28,CI28) -> 0 | CN28: =SUM(CK28,CM28) -> 0 | CR28: =SUM(CO28,CQ28) -> 0
A29: 25 | C29: 45 | D29: Mike Clarke | E29: Blue Storm | F29: 4 | G29: 2 | H29: 2 | I29: 2 | J29: =SUM(G29:I29) -> 6 | Q29: 1 | R29: 3 | T29: =(Q29*2+S29)/(SUM(Q29:S29)*2) -> 0.25 | U29: 13 | V29: 23 | AN29: =SUM(AK29,AM29) -> 0 | AO29: 1 | AP29: 1 | AQ29: 1 | AR29: =SUM(AO29,AQ29) -> 2 | AS29: 1 | AT29: 1 | AU29: 1 | AV29: =SUM(AS29,AU29) -> 2 | AZ29: =SUM(AW29,AY29) -> 0 | BD29: =SUM(BA29,BC29) -> 0 | BH29: =SUM(BE29,BG29) -> 0 | BI29: 0 | BJ29: 1 | BK29: 2 | BL29: =SUM(BI29,BK29) -> 2 | BP29: =SUM(BM29,BO29) -> 0 | BQ29: 0 | BR29: 1 | BS29: 0 | BT29: =SUM(BQ29,BS29) -> 0 | CJ29: =SUM(CG29,CI29) -> 0 | CN29: =SUM(CK29,CM29) -> 0 | CR29: =SUM(CO29,CQ29) -> 0
A30: 26 | C30: 75 | D30: Denis Loubert | E30: Retribution | F30: 6 | G30: 3 | H30: 4 | I30: 1 | J30: =SUM(G30:I30) -> 8 | L30: 1 | Q30: 5 | R30: 1 | T30: =(Q30*2+S30)/(SUM(Q30:S30)*2) -> 0.8333333333 | U30: 38 | V30: 19 | AN30: =SUM(AK30,AM30) -> 0 | AR30: =SUM(AO30,AQ30) -> 0 | AV30: =SUM(AS30,AU30) -> 0 | AZ30: =SUM(AW30,AY30) -> 0 | BA30: 0 | BB30: 1 | BC30: 1 | BD30: =SUM(BA30,BC30) -> 1 | BH30: =SUM(BE30,BG30) -> 0 | BI30: 0 | BJ30: 1 | BK30: 1 | BL30: =SUM(BI30,BK30) -> 1 | BM30: 0 | BN30: 1 | BO30: 0 | BP30: =SUM(BM30,BO30) -> 0 | BQ30: 3 | BR30: 3 | BS30: 3 | BT30: =SUM(BQ30,BS30) -> 6 | CJ30: =SUM(CG30,CI30) -> 0 | CN30: =SUM(CK30,CM30) -> 0 | CR30: =SUM(CO30,CQ30) -> 0
A31: 27 | C31: 47 | D31: Stephen Rafuse | E31: Blue Storm | F31: 6 | G31: 6 | H31: 2 | I31: 0 | J31: =SUM(G31:I31) -> 8 | K31: 1 | L31: 1 | Q31: 3 | R31: 3 | T31: =(Q31*2+S31)/(SUM(Q31:S31)*2) -> 0.5 | U31: 20 | V31: 27 | AN31: =SUM(AK31,AM31) -> 0 | AO31: 1 | AP31: 1 | AQ31: 1 | AR31: =SUM(AO31,AQ31) -> 2 | AS31: 0 | AT31: 1 | AU31: 1 | AV31: =SUM(AS31,AU31) -> 1 | AW31: 3 | AX31: 1 | AY31: 0 | AZ31: =SUM(AW31,AY31) -> 3 | BD31: =SUM(BA31,BC31) -> 0 | BH31: =SUM(BE31,BG31) -> 0 | BI31: 1 | BJ31: 2 | BK31: 0 | BL31: =SUM(BI31,BK31) -> 1 | BP31: =SUM(BM31,BO31) -> 0 | BQ31: 1 | BR31: 1 | BS31: 0 | BT31: =SUM(BQ31,BS31) -> 1 | CJ31: =SUM(CG31,CI31) -> 0 | CN31: =SUM(CK31,CM31) -> 0 | CR31: =SUM(CO31,CQ31) -> 0
A32: 28 | C32: 35 | D32: Jamie Carson | E32: Purple Heys | F32: 6 | G32: 3 | H32: 2 | I32: 1 | J32: =SUM(G32:I32) -> 6 | Q32: 2 | R32: 4 | T32: =(Q32*2+S32)/(SUM(Q32:S32)*2) -> 0.3333333333 | U32: 18 | V32: 24 | AN32: =SUM(AK32,AM32) -> 0 | AO32: 0 | AP32: 1 | AQ32: 0 | AR32: =SUM(AO32,AQ32) -> 0 | AS32: 0 | AT32: 1 | AU32: 1 | AV32: =SUM(AS32,AU32) -> 1 | AW32: 1 | AX32: 1 | AY32: 1 | AZ32: =SUM(AW32,AY32) -> 2 | BD32: =SUM(BA32,BC32) -> 0 | BH32: =SUM(BE32,BG32) -> 0 | BL32: =SUM(BI32,BK32) -> 0 | BM32: 2 | BN32: 2 | BO32: 0 | BP32: =SUM(BM32,BO32) -> 2 | BQ32: 0 | BR32: 1 | BS32: 1 | BT32: =SUM(BQ32,BS32) -> 1 | CJ32: =SUM(CG32,CI32) -> 0 | CN32: =SUM(CK32,CM32) -> 0 | CR32: =SUM(CO32,CQ32) -> 0
A33: 29 | C33: 17 | D33: Wayne Helpard | E33: White Lightning | F33: 6 | G33: 3 | H33: 2 | I33: 1 | J33: =SUM(G33:I33) -> 6 | R33: 6 | T33: =(Q33*2+S33)/(SUM(Q33:S33)*2) -> 0 | U33: 13 | V33: 45 | AK33: 1 | AL33: 1 | AM33: 0 | AN33: =SUM(AK33,AM33) -> 1 | AR33: =SUM(AO33,AQ33) -> 0 | AS33: 1 | AT33: 2 | AU33: 1 | AV33: =SUM(AS33,AU33) -> 2 | AZ33: =SUM(AW33,AY33) -> 0 | BA33: 1 | BB33: 1 | BC33: 1 | BD33: =SUM(BA33,BC33) -> 2 | BH33: =SUM(BE33,BG33) -> 0 | BI33: 0 | BJ33: 1 | BK33: 0 | BL33: =SUM(BI33,BK33) -> 0 | BM33: 0 | BN33: 1 | BO33: 1 | BP33: =SUM(BM33,BO33) -> 1 | BT33: =SUM(BQ33,BS33) -> 0 | CJ33: =SUM(CG33,CI33) -> 0 | CN33: =SUM(CK33,CM33) -> 0 | CR33: =SUM(CO33,CQ33) -> 0
A34: 30 | C34: 67 | D34: Tim O'Leary | E34: Red Light District | F34: 6 | G34: 4 | H34: 2 | I34: 4 | J34: =SUM(G34:I34) -> 10 | K34: 1 | L34: 2 | Q34: 3 | R34: 3 | T34: =(Q34*2+S34)/(SUM(Q34:S34)*2) -> 0.5 | U34: 27 | V34: 29 | AN34: =SUM(AK34,AM34) -> 0 | AR34: =SUM(AO34,AQ34) -> 0 | AV34: =SUM(AS34,AU34) -> 0 | AW34: 1 | AX34: 2 | AY34: 1 | AZ34: =SUM(AW34,AY34) -> 2 | BA34: 0 | BB34: 1 | BC34: 1 | BD34: =SUM(BA34,BC34) -> 1 | BH34: =SUM(BE34,BG34) -> 0 | BI34: 2 | BJ34: 1 | BK34: 1 | BL34: =SUM(BI34,BK34) -> 3 | BM34: 0 | BN34: 1 | BO34: 1 | BP34: =SUM(BM34,BO34) -> 1 | BQ34: 1 | BR34: 1 | BS34: 2 | BT34: =SUM(BQ34,BS34) -> 3 | CJ34: =SUM(CG34,CI34) -> 0 | CN34: =SUM(CK34,CM34) -> 0 | CR34: =SUM(CO34,CQ34) -> 0
A35: 31 | C35: 31 | D35: Mike Connor | E35: Purple Heys | F35: 6 | G35: 1 | H35: 2 | I35: 2 | J35: =SUM(G35:I35) -> 5 | K35: 1 | Q35: 2 | R35: 4 | T35: =(Q35*2+S35)/(SUM(Q35:S35)*2) -> 0.3333333333 | U35: 18 | V35: 24 | AN35: =SUM(AK35,AM35) -> 0 | AO35: 0 | AP35: 1 | AQ35: 1 | AR35: =SUM(AO35,AQ35) -> 1 | AS35: 0 | AT35: 1 | AU35: 2 | AV35: =SUM(AS35,AU35) -> 2 | AW35: 0 | AX35: 1 | AY35: 1 | AZ35: =SUM(AW35,AY35) -> 1 | BD35: =SUM(BA35,BC35) -> 0 | BH35: =SUM(BE35,BG35) -> 0 | BL35: =SUM(BI35,BK35) -> 0 | BM35: 1 | BN35: 2 | BO35: 0 | BP35: =SUM(BM35,BO35) -> 1 | BQ35: 0 | BR35: 1 | BS35: 0 | BT35: =SUM(BQ35,BS35) -> 0 | CJ35: =SUM(CG35,CI35) -> 0 | CN35: =SUM(CK35,CM35) -> 0 | CR35: =SUM(CO35,CQ35) -> 0
A36: 32 | C36: 22 | D36: Doug Virtue | E36: Slashing Pumpkins | F36: 6 | G36: 0 | H36: 3 | I36: 5 | J36: =SUM(G36:I36) -> 8 | L36: 2 | P36: 1 | Q36: 6 | T36: =(Q36*2+S36)/(SUM(Q36:S36)*2) -> 1 | U36: 38 | V36: 15 | AK36: 0 | AL36: 1 | AM36: 1 | AN36: =SUM(AK36,AM36) -> 1 | AR36: =SUM(AO36,AQ36) -> 0 | AV36: =SUM(AS36,AU36) -> 0 | AZ36: =SUM(AW36,AY36) -> 0 | BA36: 0 | BB36: 1 | BC36: 2 | BD36: =SUM(BA36,BC36) -> 2 | BH36: =SUM(BE36,BG36) -> 0 | BI36: 0 | BJ36: 1 | BK36: 0 | BL36: =SUM(BI36,BK36) -> 0 | BM36: 0 | BN36: 2 | BO36: 2 | BP36: =SUM(BM36,BO36) -> 2 | BT36: =SUM(BQ36,BS36) -> 0 | BY36: 0 | BZ36: 1 | CA36: 3 | CJ36: =SUM(CG36,CI36) -> 0 | CN36: =SUM(CK36,CM36) -> 0 | CR36: =SUM(CO36,CQ36) -> 0
A37: 33 | C37: 28 | D37: Trevor Graham | E37: Slashing Pumpkins | F37: 6 | G37: 1 | H37: 1 | I37: 5 | J37: =SUM(G37:I37) -> 7 | P37: 1 | Q37: 6 | T37: =(Q37*2+S37)/(SUM(Q37:S37)*2) -> 1 | U37: 38 | V37: 15 | AK37: 0 | AL37: 1 | AM37: 0 | AN37: =SUM(AK37,AM37) -> 0 | AR37: =SUM(AO37,AQ37) -> 0 | AV37: =SUM(AS37,AU37) -> 0 | AZ37: =SUM(AW37,AY37) -> 0 | BA37: 0 | BB37: 1 | BC37: 1 | BD37: =SUM(BA37,BC37) -> 1 | BH37: =SUM(BE37,BG37) -> 0 | BI37: 0 | BJ37: 1 | BK37: 2 | BL37: =SUM(BI37,BK37) -> 2 | BM37: 0 | BN37: 2 | BO37: 1 | BP37: =SUM(BM37,BO37) -> 1 | BT37: =SUM(BQ37,BS37) -> 0 | BY37: 1 | BZ37: 1 | CA37: 2 | CJ37: =SUM(CG37,CI37) -> 0 | CN37: =SUM(CK37,CM37) -> 0 | CR37: =SUM(CO37,CQ37) -> 0
A38: 34 | C38: 43 | D38: Matthew Petitpas | E38: Blue Storm | F38: 6 | G38: 4 | H38: 1 | I38: 0 | J38: =SUM(G38:I38) -> 5 | Q38: 3 | R38: 3 | T38: =(Q38*2+S38)/(SUM(Q38:S38)*2) -> 0.5 | U38: 20 | V38: 27 | AN38: =SUM(AK38,AM38) -> 0 | AO38: 1 | AP38: 1 | AQ38: 0 | AR38: =SUM(AO38,AQ38) -> 1 | AS38: 1 | AT38: 1 | AU38: 1 | AV38: =SUM(AS38,AU38) -> 2 | AW38: 0 | AX38: 1 | AY38: 0 | AZ38: =SUM(AW38,AY38) -> 0 | BD38: =SUM(BA38,BC38) -> 0 | BH38: =SUM(BE38,BG38) -> 0 | BI38: 1 | BJ38: 2 | BK38: 0 | BL38: =SUM(BI38,BK38) -> 1 | BP38: =SUM(BM38,BO38) -> 0 | BQ38: 1 | BR38: 1 | BS38: 0 | BT38: =SUM(BQ38,BS38) -> 1 | CJ38: =SUM(CG38,CI38) -> 0 | CN38: =SUM(CK38,CM38) -> 0 | CR38: =SUM(CO38,CQ38) -> 0
A39: 35 | C39: 24 | D39: John Stewart | E39: Slashing Pumpkins | F39: 6 | G39: 2 | H39: 3 | I39: 1 | J39: =SUM(G39:I39) -> 6 | K39: 1 | O39: 1 | P39: 1 | Q39: 6 | T39: =(Q39*2+S39)/(SUM(Q39:S39)*2) -> 1 | U39: 38 | V39: 15 | AK39: 0 | AL39: 1 | AM39: 0 | AN39: =SUM(AK39,AM39) -> 0 | AR39: =SUM(AO39,AQ39) -> 0 | AV39: =SUM(AS39,AU39) -> 0 | AZ39: =SUM(AW39,AY39) -> 0 | BA39: 2 | BB39: 1 | BC39: 0 | BD39: =SUM(BA39,BC39) -> 2 | BH39: =SUM(BE39,BG39) -> 0 | BI39: 0 | BJ39: 1 | BK39: 0 | BL39: =SUM(BI39,BK39) -> 0 | BM39: 0 | BN39: 2 | BO39: 2 | BP39: =SUM(BM39,BO39) -> 2 | BT39: =SUM(BQ39,BS39) -> 0 | BY39: 0 | BZ39: 1 | CA39: 2 | CJ39: =SUM(CG39,CI39) -> 0 | CN39: =SUM(CK39,CM39) -> 0 | CR39: =SUM(CO39,CQ39) -> 0
A40: 36 | C40: 66 | D40: Sly Villenueve | E40: Red Light District | F40: 3 | G40: 3 | H40: 4 | I40: 0 | J40: =SUM(G40:I40) -> 7 | L40: 1 | Q40: 2 | R40: 1 | T40: =(Q40*2+S40)/(SUM(Q40:S40)*2) -> 0.6666666667 | U40: 15 | V40: 10 | AN40: =SUM(AK40,AM40) -> 0 | AR40: =SUM(AO40,AQ40) -> 0 | AV40: =SUM(AS40,AU40) -> 0 | AW40: 0 | AX40: 1 | AY40: 0 | AZ40: =SUM(AW40,AY40) -> 0 | BD40: =SUM(BA40,BC40) -> 0 | BH40: =SUM(BE40,BG40) -> 0 | BI40: 2 | BJ40: 1 | BK40: 3 | BL40: =SUM(BI40,BK40) -> 5 | BM40: 1 | BN40: 1 | BO40: 1 | BP40: =SUM(BM40,BO40) -> 2 | BT40: =SUM(BQ40,BS40) -> 0 | CJ40: =SUM(CG40,CI40) -> 0 | CN40: =SUM(CK40,CM40) -> 0 | CR40: =SUM(CO40,CQ40) -> 0
A41: 37 | C41: 52 | D41: Chris Benoit | E41: Golden Panthers | F41: 6 | G41: 1 | H41: 3 | I41: 1 | J41: =SUM(G41:I41) -> 5 | L41: 1 | Q41: 2 | R41: 3 | S41: 1 | T41: =(Q41*2+S41)/(SUM(Q41:S41)*2) -> 0.4166666667 | U41: 24 | V41: 20 | AN41: =SUM(AK41,AM41) -> 0 | AR41: =SUM(AO41,AQ41) -> 0 | AS41: 0 | AT41: 1 | AU41: 0 | AV41: =SUM(AS41,AU41) -> 0 | AW41: 0 | AX41: 1 | AY41: 1 | AZ41: =SUM(AW41,AY41) -> 1 | BA41: 1 | BB41: 2 | BC41: 0 | BD41: =SUM(BA41,BC41) -> 1 | BH41: =SUM(BE41,BG41) -> 0 | BL41: =SUM(BI41,BK41) -> 0 | BP41: =SUM(BM41,BO41) -> 0 | BQ41: 0 | BR41: 1 | BS41: 0 | BT41: =SUM(BQ41,BS41) -> 0 | BY41: 0 | BZ41: 1 | CA41: 3 | CJ41: =SUM(CG41,CI41) -> 0 | CN41: =SUM(CK41,CM41) -> 0 | CR41: =SUM(CO41,CQ41) -> 0
A42: 38 | C42: 13 | D42: Larry Condly | E42: White Lightning | F42: 6 | G42: 0 | H42: 1 | I42: 2 | J42: =SUM(G42:I42) -> 3 | R42: 6 | T42: =(Q42*2+S42)/(SUM(Q42:S42)*2) -> 0 | U42: 13 | V42: 45 | AK42: 0 | AL42: 1 | AM42: 0 | AN42: =SUM(AK42,AM42) -> 0 | AR42: =SUM(AO42,AQ42) -> 0 | AS42: 0 | AT42: 2 | AU42: 0 | AV42: =SUM(AS42,AU42) -> 0 | AZ42: =SUM(AW42,AY42) -> 0 | BA42: 0 | BB42: 1 | BC42: 2 | BD42: =SUM(BA42,BC42) -> 2 | BH42: =SUM(BE42,BG42) -> 0 | BI42: 0 | BJ42: 1 | BK42: 1 | BL42: =SUM(BI42,BK42) -> 1 | BM42: 0 | BN42: 1 | BO42: 0 | BP42: =SUM(BM42,BO42) -> 0 | BT42: =SUM(BQ42,BS42) -> 0 | CJ42: =SUM(CG42,CI42) -> 0 | CN42: =SUM(CK42,CM42) -> 0 | CR42: =SUM(CO42,CQ42) -> 0
A43: 39 | C43: 63 | D43: Harold Plante | E43: Red Light District | F43: 6 | G43: 1 | H43: 0 | I43: 3 | J43: =SUM(G43:I43) -> 4 | Q43: 3 | R43: 3 | T43: =(Q43*2+S43)/(SUM(Q43:S43)*2) -> 0.5 | U43: 27 | V43: 29 | AN43: =SUM(AK43,AM43) -> 0 | AR43: =SUM(AO43,AQ43) -> 0 | AV43: =SUM(AS43,AU43) -> 0 | AW43: 0 | AX43: 2 | AY43: 0 | AZ43: =SUM(AW43,AY43) -> 0 | BA43: 0 | BB43: 1 | BC43: 0 | BD43: =SUM(BA43,BC43) -> 0 | BH43: =SUM(BE43,BG43) -> 0 | BI43: 0 | BJ43: 1 | BK43: 1 | BL43: =SUM(BI43,BK43) -> 1 | BM43: 0 | BN43: 1 | BO43: 2 | BP43: =SUM(BM43,BO43) -> 2 | BQ43: 1 | BR43: 1 | BS43: 0 | BT43: =SUM(BQ43,BS43) -> 1 | CJ43: =SUM(CG43,CI43) -> 0 | CN43: =SUM(CK43,CM43) -> 0 | CR43: =SUM(CO43,CQ43) -> 0
A44: 40 | C44: 86 | D44: Scott McLean | E44: The Green Machine | F44: 3 | G44: 1 | H44: 0 | I44: 0 | J44: =SUM(G44:I44) -> 1 | Q44: 1 | R44: 2 | T44: =(Q44*2+S44)/(SUM(Q44:S44)*2) -> 0.3333333333 | U44: 9 | V44: 10 | AN44: =SUM(AK44,AM44) -> 0 | AR44: =SUM(AO44,AQ44) -> 0 | AV44: =SUM(AS44,AU44) -> 0 | AW44: 0 | AX44: 1 | AY44: 0 | AZ44: =SUM(AW44,AY44) -> 0 | BD44: =SUM(BA44,BC44) -> 0 | BH44: =SUM(BE44,BG44) -> 0 | BL44: =SUM(BI44,BK44) -> 0 | BP44: =SUM(BM44,BO44) -> 0 | BQ44: 1 | BR44: 2 | BS44: 0 | BT44: =SUM(BQ44,BS44) -> 1 | CJ44: =SUM(CG44,CI44) -> 0 | CN44: =SUM(CK44,CM44) -> 0 | CR44: =SUM(CO44,CQ44) -> 0
A45: 41 | C45: 76 | D45: Dwayne Johnson | E45: Retribution | F45: 6 | G45: 2 | H45: 1 | I45: 2 | J45: =SUM(G45:I45) -> 5 | Q45: 5 | R45: 1 | T45: =(Q45*2+S45)/(SUM(Q45:S45)*2) -> 0.8333333333 | U45: 38 | V45: 19 | AN45: =SUM(AK45,AM45) -> 0 | AR45: =SUM(AO45,AQ45) -> 0 | AV45: =SUM(AS45,AU45) -> 0 | AZ45: =SUM(AW45,AY45) -> 0 | BA45: 0 | BB45: 1 | BC45: 0 | BD45: =SUM(BA45,BC45) -> 0 | BH45: =SUM(BE45,BG45) -> 0 | BI45: 0 | BJ45: 1 | BK45: 1 | BL45: =SUM(BI45,BK45) -> 1 | BM45: 0 | BN45: 1 | BO45: 0 | BP45: =SUM(BM45,BO45) -> 0 | BQ45: 2 | BR45: 3 | BS45: 2 | BT45: =SUM(BQ45,BS45) -> 4 | CJ45: =SUM(CG45,CI45) -> 0 | CN45: =SUM(CK45,CM45) -> 0 | CR45: =SUM(CO45,CQ45) -> 0
A46: 42 | C46: 48 | D46: Yvon Mayer | E46: Blue Storm | F46: 6 | G46: 1 | H46: 1 | I46: 2 | J46: =SUM(G46:I46) -> 4 | Q46: 3 | R46: 3 | T46: =(Q46*2+S46)/(SUM(Q46:S46)*2) -> 0.5 | U46: 20 | V46: 27 | AN46: =SUM(AK46,AM46) -> 0 | AO46: 1 | AP46: 1 | AQ46: 2 | AR46: =SUM(AO46,AQ46) -> 3 | AS46: 0 | AT46: 1 | AU46: 0 | AV46: =SUM(AS46,AU46) -> 0 | AW46: 0 | AX46: 1 | AY46: 0 | AZ46: =SUM(AW46,AY46) -> 0 | BD46: =SUM(BA46,BC46) -> 0 | BH46: =SUM(BE46,BG46) -> 0 | BI46: 0 | BJ46: 2 | BK46: 1 | BL46: =SUM(BI46,BK46) -> 1 | BP46: =SUM(BM46,BO46) -> 0 | BQ46: 0 | BR46: 1 | BS46: 0 | BT46: =SUM(BQ46,BS46) -> 0 | CJ46: =SUM(CG46,CI46) -> 0 | CN46: =SUM(CK46,CM46) -> 0 | CR46: =SUM(CO46,CQ46) -> 0
A47: 43 | C47: 82 | D47: Bryan Letcher | E47: The Green Machine | F47: 6 | G47: 1 | H47: 3 | I47: 1 | J47: =SUM(G47:I47) -> 5 | P47: 1 | Q47: 2 | R47: 3 | S47: 1 | T47: =(Q47*2+S47)/(SUM(Q47:S47)*2) -> 0.4166666667 | U47: 24 | V47: 23 | AK47: 0 | AL47: 1 | AM47: 1 | AN47: =SUM(AK47,AM47) -> 1 | AR47: =SUM(AO47,AQ47) -> 0 | AS47: 0 | AT47: 1 | AU47: 1 | AV47: =SUM(AS47,AU47) -> 1 | AW47: 0 | AX47: 1 | AY47: 0 | AZ47: =SUM(AW47,AY47) -> 0 | BD47: =SUM(BA47,BC47) -> 0 | BH47: =SUM(BE47,BG47) -> 0 | BL47: =SUM(BI47,BK47) -> 0 | BP47: =SUM(BM47,BO47) -> 0 | BQ47: 0 | BR47: 2 | BS47: 0 | BT47: =SUM(BQ47,BS47) -> 0 | BY47: 1 | BZ47: 1 | CA47: 2 | CJ47: =SUM(CG47,CI47) -> 0 | CN47: =SUM(CK47,CM47) -> 0 | CR47: =SUM(CO47,CQ47) -> 0
A48: 44 | C48: 56 | D48: Josh Sewell | E48: Golden Panthers | F48: 6 | G48: 1 | H48: 1 | I48: 0 | J48: =SUM(G48:I48) -> 2 | O48: 1 | Q48: 2 | R48: 3 | S48: 1 | T48: =(Q48*2+S48)/(SUM(Q48:S48)*2) -> 0.4166666667 | U48: 24 | V48: 20 | AN48: =SUM(AK48,AM48) -> 0 | AR48: =SUM(AO48,AQ48) -> 0 | AS48: 0 | AT48: 1 | AU48: 0 | AV48: =SUM(AS48,AU48) -> 0 | AW48: 0 | AX48: 1 | AY48: 0 | AZ48: =SUM(AW48,AY48) -> 0 | BA48: 0 | BB48: 2 | BC48: 0 | BD48: =SUM(BA48,BC48) -> 0 | BH48: =SUM(BE48,BG48) -> 0 | BL48: =SUM(BI48,BK48) -> 0 | BP48: =SUM(BM48,BO48) -> 0 | BQ48: 0 | BR48: 1 | BS48: 0 | BT48: =SUM(BQ48,BS48) -> 0 | BY48: 1 | BZ48: 1 | CA48: 1 | CJ48: =SUM(CG48,CI48) -> 0 | CN48: =SUM(CK48,CM48) -> 0 | CR48: =SUM(CO48,CQ48) -> 0
A49: 45 | C49: 58 | D49: Travis Muxworthy | E49: Golden Panthers | F49: 6 | G49: 2 | H49: 1 | I49: 0 | J49: =SUM(G49:I49) -> 3 | Q49: 2 | R49: 3 | S49: 1 | T49: =(Q49*2+S49)/(SUM(Q49:S49)*2) -> 0.4166666667 | U49: 24 | V49: 20 | AN49: =SUM(AK49,AM49) -> 0 | AR49: =SUM(AO49,AQ49) -> 0 | AS49: 0 | AT49: 1 | AU49: 0 | AV49: =SUM(AS49,AU49) -> 0 | AW49: 0 | AX49: 1 | AY49: 0 | AZ49: =SUM(AW49,AY49) -> 0 | BA49: 0 | BB49: 2 | BC49: 0 | BD49: =SUM(BA49,BC49) -> 0 | BH49: =SUM(BE49,BG49) -> 0 | BL49: =SUM(BI49,BK49) -> 0 | BP49: =SUM(BM49,BO49) -> 0 | BQ49: 0 | BR49: 1 | BS49: 0 | BT49: =SUM(BQ49,BS49) -> 0 | BY49: 2 | BZ49: 1 | CA49: 1 | CJ49: =SUM(CG49,CI49) -> 0 | CN49: =SUM(CK49,CM49) -> 0 | CR49: =SUM(CO49,CQ49) -> 0
A50: 46 | C50: 34 | D50: Christian Haines | E50: Purple Heys | F50: 6 | G50: 0 | H50: 2 | I50: 1 | J50: =SUM(G50:I50) -> 3 | Q50: 2 | R50: 4 | T50: =(Q50*2+S50)/(SUM(Q50:S50)*2) -> 0.3333333333 | U50: 18 | V50: 24 | AN50: =SUM(AK50,AM50) -> 0 | AO50: 0 | AP50: 1 | AQ50: 0 | AR50: =SUM(AO50,AQ50) -> 0 | AS50: 0 | AT50: 1 | AU50: 0 | AV50: =SUM(AS50,AU50) -> 0 | AW50: 0 | AX50: 1 | AY50: 1 | AZ50: =SUM(AW50,AY50) -> 1 | BD50: =SUM(BA50,BC50) -> 0 | BH50: =SUM(BE50,BG50) -> 0 | BL50: =SUM(BI50,BK50) -> 0 | BM50: 0 | BN50: 2 | BO50: 2 | BP50: =SUM(BM50,BO50) -> 2 | BQ50: 0 | BR50: 1 | BS50: 0 | BT50: =SUM(BQ50,BS50) -> 0 | CJ50: =SUM(CG50,CI50) -> 0 | CN50: =SUM(CK50,CM50) -> 0 | CR50: =SUM(CO50,CQ50) -> 0
A51: 47 | C51: 46 | D51: Rakesh Rajput | E51: Blue Storm | F51: 3 | G51: 0 | H51: 4 | I51: 0 | J51: =SUM(G51:I51) -> 4 | Q51: 2 | R51: 1 | T51: =(Q51*2+S51)/(SUM(Q51:S51)*2) -> 0.6666666667 | U51: 9 | V51: 12 | AN51: =SUM(AK51,AM51) -> 0 | AR51: =SUM(AO51,AQ51) -> 0 | AV51: =SUM(AS51,AU51) -> 0 | AW51: 0 | AX51: 1 | AY51: 1 | AZ51: =SUM(AW51,AY51) -> 1 | BD51: =SUM(BA51,BC51) -> 0 | BH51: =SUM(BE51,BG51) -> 0 | BI51: 0 | BJ51: 1 | BK51: 1 | BL51: =SUM(BI51,BK51) -> 1 | BP51: =SUM(BM51,BO51) -> 0 | BQ51: 0 | BR51: 1 | BS51: 2 | BT51: =SUM(BQ51,BS51) -> 2 | CJ51: =SUM(CG51,CI51) -> 0 | CN51: =SUM(CK51,CM51) -> 0 | CR51: =SUM(CO51,CQ51) -> 0
A52: 48 | C52: 85 | D52: Ray Basque | E52: The Green Machine | F52: 6 | G52: 1 | H52: 2 | I52: 0 | J52: =SUM(G52:I52) -> 3 | L52: 1 | Q52: 2 | R52: 3 | S52: 1 | T52: =(Q52*2+S52)/(SUM(Q52:S52)*2) -> 0.4166666667 | U52: 24 | V52: 23 | AK52: 0 | AL52: 1 | AM52: 0 | AN52: =SUM(AK52,AM52) -> 0 | AR52: =SUM(AO52,AQ52) -> 0 | AS52: 0 | AT52: 1 | AU52: 0 | AV52: =SUM(AS52,AU52) -> 0 | AW52: 0 | AX52: 1 | AY52: 0 | AZ52: =SUM(AW52,AY52) -> 0 | BD52: =SUM(BA52,BC52) -> 0 | BH52: =SUM(BE52,BG52) -> 0 | BL52: =SUM(BI52,BK52) -> 0 | BP52: =SUM(BM52,BO52) -> 0 | BQ52: 0 | BR52: 2 | BS52: 0 | BT52: =SUM(BQ52,BS52) -> 0 | BY52: 1 | BZ52: 1 | CA52: 2 | CJ52: =SUM(CG52,CI52) -> 0 | CN52: =SUM(CK52,CM52) -> 0 | CR52: =SUM(CO52,CQ52) -> 0
A53: 49 | C53: 78 | D53: Rene Pitre | E53: Retribution | F53: 6 | G53: 1 | H53: 0 | I53: 1 | J53: =SUM(G53:I53) -> 2 | Q53: 5 | R53: 1 | T53: =(Q53*2+S53)/(SUM(Q53:S53)*2) -> 0.8333333333 | U53: 38 | V53: 19 | AN53: =SUM(AK53,AM53) -> 0 | AR53: =SUM(AO53,AQ53) -> 0 | AV53: =SUM(AS53,AU53) -> 0 | AZ53: =SUM(AW53,AY53) -> 0 | BA53: 0 | BB53: 1 | BC53: 0 | BD53: =SUM(BA53,BC53) -> 0 | BH53: =SUM(BE53,BG53) -> 0 | BI53: 0 | BJ53: 1 | BK53: 0 | BL53: =SUM(BI53,BK53) -> 0 | BM53: 0 | BN53: 1 | BO53: 0 | BP53: =SUM(BM53,BO53) -> 0 | BQ53: 1 | BR53: 3 | BS53: 1 | BT53: =SUM(BQ53,BS53) -> 2 | CJ53: =SUM(CG53,CI53) -> 0 | CN53: =SUM(CK53,CM53) -> 0 | CR53: =SUM(CO53,CQ53) -> 0
A54: 50 | C54: 33 | D54: Carl Brown | E54: Purple Heys | F54: 6 | G54: 1 | H54: 0 | I54: 1 | J54: =SUM(G54:I54) -> 2 | Q54: 2 | R54: 4 | T54: =(Q54*2+S54)/(SUM(Q54:S54)*2) -> 0.3333333333 | U54: 18 | V54: 24 | AN54: =SUM(AK54,AM54) -> 0 | AO54: 0 | AP54: 1 | AQ54: 1 | AR54: =SUM(AO54,AQ54) -> 1 | AS54: 0 | AT54: 1 | AU54: 0 | AV54: =SUM(AS54,AU54) -> 0 | AW54: 0 | AX54: 1 | AY54: 0 | AZ54: =SUM(AW54,AY54) -> 0 | BD54: =SUM(BA54,BC54) -> 0 | BH54: =SUM(BE54,BG54) -> 0 | BL54: =SUM(BI54,BK54) -> 0 | BM54: 1 | BN54: 2 | BO54: 0 | BP54: =SUM(BM54,BO54) -> 1 | BQ54: 0 | BR54: 1 | BS54: 0 | BT54: =SUM(BQ54,BS54) -> 0 | CJ54: =SUM(CG54,CI54) -> 0 | CN54: =SUM(CK54,CM54) -> 0 | CR54: =SUM(CO54,CQ54) -> 0
A55: 51 | C55: 84 | D55: Matthew Wedge | E55: The Green Machine | F55: 3 | G55: 2 | H55: 1 | I55: 0 | J55: =SUM(G55:I55) -> 3 | K55: 1 | Q55: 1 | R55: 2 | T55: =(Q55*2+S55)/(SUM(Q55:S55)*2) -> 0.3333333333 | U55: 9 | V55: 10 | AN55: =SUM(AK55,AM55) -> 0 | AR55: =SUM(AO55,AQ55) -> 0 | AV55: =SUM(AS55,AU55) -> 0 | AW55: 0 | AX55: 1 | AY55: 0 | AZ55: =SUM(AW55,AY55) -> 0 | BD55: =SUM(BA55,BC55) -> 0 | BH55: =SUM(BE55,BG55) -> 0 | BL55: =SUM(BI55,BK55) -> 0 | BP55: =SUM(BM55,BO55) -> 0 | BQ55: 2 | BR55: 2 | BS55: 1 | BT55: =SUM(BQ55,BS55) -> 3 | CJ55: =SUM(CG55,CI55) -> 0 | CN55: =SUM(CK55,CM55) -> 0 | CR55: =SUM(CO55,CQ55) -> 0
A56: 52 | C56: 11 | D56: Darryl Moorcroft | E56: White Lightning | F56: 3 | G56: 0 | H56: 1 | I56: 0 | J56: =SUM(G56:I56) -> 1 | R56: 3 | T56: =(Q56*2+S56)/(SUM(Q56:S56)*2) -> 0 | U56: 8 | V56: 13 | AN56: =SUM(AK56,AM56) -> 0 | AR56: =SUM(AO56,AQ56) -> 0 | AS56: 0 | AT56: 1 | AU56: 0 | AV56: =SUM(AS56,AU56) -> 0 | AZ56: =SUM(AW56,AY56) -> 0 | BD56: =SUM(BA56,BC56) -> 0 | BH56: =SUM(BE56,BG56) -> 0 | BI56: 0 | BJ56: 1 | BK56: 0 | BL56: =SUM(BI56,BK56) -> 0 | BM56: 0 | BN56: 1 | BO56: 1 | BP56: =SUM(BM56,BO56) -> 1 | BT56: =SUM(BQ56,BS56) -> 0 | CJ56: =SUM(CG56,CI56) -> 0 | CN56: =SUM(CK56,CM56) -> 0 | CR56: =SUM(CO56,CQ56) -> 0
A57: 53 | C57: 42 | D57: Garrett Ramey | E57: Blue Storm | J57: =SUM(G57:I57) -> 0 | T57: =(Q57*2+S57)/(SUM(Q57:S57)*2) ->  | AN57: =SUM(AK57,AM57) -> 0 | AR57: =SUM(AO57,AQ57) -> 0 | AV57: =SUM(AS57,AU57) -> 0 | AZ57: =SUM(AW57,AY57) -> 0 | BD57: =SUM(BA57,BC57) -> 0 | BH57: =SUM(BE57,BG57) -> 0 | BL57: =SUM(BI57,BK57) -> 0 | BP57: =SUM(BM57,BO57) -> 0 | BT57: =SUM(BQ57,BS57) -> 0 | CJ57: =SUM(CG57,CI57) -> 0 | CN57: =SUM(CK57,CM57) -> 0 | CR57: =SUM(CO57,CQ57) -> 0
A58: 54 | C58: 38 | D58: Justin Lawson | E58: Purple Heys | F58: 6 | G58: 1 | H58: 0 | I58: 1 | J58: =SUM(G58:I58) -> 2 | Q58: 2 | R58: 4 | T58: =(Q58*2+S58)/(SUM(Q58:S58)*2) -> 0.3333333333 | U58: 18 | V58: 24 | AN58: =SUM(AK58,AM58) -> 0 | AO58: 1 | AP58: 1 | AQ58: 0 | AR58: =SUM(AO58,AQ58) -> 1 | AS58: 0 | AT58: 1 | AU58: 0 | AV58: =SUM(AS58,AU58) -> 0 | AW58: 0 | AX58: 1 | AY58: 0 | AZ58: =SUM(AW58,AY58) -> 0 | BD58: =SUM(BA58,BC58) -> 0 | BH58: =SUM(BE58,BG58) -> 0 | BL58: =SUM(BI58,BK58) -> 0 | BM58: 0 | BN58: 2 | BO58: 1 | BP58: =SUM(BM58,BO58) -> 1 | BQ58: 0 | BR58: 1 | BS58: 0 | BT58: =SUM(BQ58,BS58) -> 0 | CJ58: =SUM(CG58,CI58) -> 0 | CN58: =SUM(CK58,CM58) -> 0 | CR58: =SUM(CO58,CQ58) -> 0
A59: 55 | C59: 44 | D59: Michael Luff | E59: Blue Storm | F59: 3 | G59: 0 | H59: 0 | I59: 0 | J59: =SUM(G59:I59) -> 0 | Q59: 2 | R59: 1 | T59: =(Q59*2+S59)/(SUM(Q59:S59)*2) -> 0.6666666667 | U59: 9 | V59: 12 | AN59: =SUM(AK59,AM59) -> 0 | AR59: =SUM(AO59,AQ59) -> 0 | AV59: =SUM(AS59,AU59) -> 0 | AW59: 0 | AX59: 1 | AY59: 0 | AZ59: =SUM(AW59,AY59) -> 0 | BD59: =SUM(BA59,BC59) -> 0 | BH59: =SUM(BE59,BG59) -> 0 | BI59: 0 | BJ59: 1 | BK59: 0 | BL59: =SUM(BI59,BK59) -> 0 | BP59: =SUM(BM59,BO59) -> 0 | BQ59: 0 | BR59: 1 | BS59: 0 | BT59: =SUM(BQ59,BS59) -> 0 | CJ59: =SUM(CG59,CI59) -> 0 | CN59: =SUM(CK59,CM59) -> 0 | CR59: =SUM(CO59,CQ59) -> 0
A60: 56 | C60: 16 | D60: Mike Wood | E60: White Lightning | F60: 5 | G60: 1 | H60: 1 | I60: 0 | J60: =SUM(G60:I60) -> 2 | R60: 5 | T60: =(Q60*2+S60)/(SUM(Q60:S60)*2) -> 0 | U60: 10 | V60: 33 | AK60: 0 | AL60: 1 | AM60: 0 | AN60: =SUM(AK60,AM60) -> 0 | AR60: =SUM(AO60,AQ60) -> 0 | AS60: 0 | AT60: 1 | AU60: 0 | AV60: =SUM(AS60,AU60) -> 0 | AZ60: =SUM(AW60,AY60) -> 0 | BA60: 0 | BB60: 1 | BC60: 1 | BD60: =SUM(BA60,BC60) -> 1 | BH60: =SUM(BE60,BG60) -> 0 | BI60: 0 | BJ60: 1 | BK60: 0 | BL60: =SUM(BI60,BK60) -> 0 | BM60: 1 | BN60: 1 | BO60: 0 | BP60: =SUM(BM60,BO60) -> 1 | BT60: =SUM(BQ60,BS60) -> 0 | CJ60: =SUM(CG60,CI60) -> 0 | CN60: =SUM(CK60,CM60) -> 0 | CR60: =SUM(CO60,CQ60) -> 0
A61: 57 | C61: 12 | D61: Dave MacKenzie | E61: White Lightning | J61: =SUM(G61:I61) -> 0 | T61: =(Q61*2+S61)/(SUM(Q61:S61)*2) ->  | AN61: =SUM(AK61,AM61) -> 0 | AR61: =SUM(AO61,AQ61) -> 0 | AV61: =SUM(AS61,AU61) -> 0 | AZ61: =SUM(AW61,AY61) -> 0 | BD61: =SUM(BA61,BC61) -> 0 | BH61: =SUM(BE61,BG61) -> 0 | BL61: =SUM(BI61,BK61) -> 0 | BP61: =SUM(BM61,BO61) -> 0 | BT61: =SUM(BQ61,BS61) -> 0 | CJ61: =SUM(CG61,CI61) -> 0 | CN61: =SUM(CK61,CM61) -> 0 | CR61: =SUM(CO61,CQ61) -> 0
A62: 58 | C62: 87 | D62: Scott Praught | E62: The Green Machine | F62: 3 | G62: 1 | H62: 0 | I62: 0 | J62: =SUM(G62:I62) -> 1 | Q62: 1 | R62: 2 | T62: =(Q62*2+S62)/(SUM(Q62:S62)*2) -> 0.3333333333 | U62: 9 | V62: 10 | AN62: =SUM(AK62,AM62) -> 0 | AR62: =SUM(AO62,AQ62) -> 0 | AV62: =SUM(AS62,AU62) -> 0 | AW62: 0 | AX62: 1 | AY62: 0 | AZ62: =SUM(AW62,AY62) -> 0 | BD62: =SUM(BA62,BC62) -> 0 | BH62: =SUM(BE62,BG62) -> 0 | BL62: =SUM(BI62,BK62) -> 0 | BP62: =SUM(BM62,BO62) -> 0 | BQ62: 1 | BR62: 2 | BS62: 0 | BT62: =SUM(BQ62,BS62) -> 1 | CJ62: =SUM(CG62,CI62) -> 0 | CN62: =SUM(CK62,CM62) -> 0 | CR62: =SUM(CO62,CQ62) -> 0
A63: 59 | C63: 65 | D63: Matt Davis | E63: Red Light District | F63: 3 | G63: 0 | H63: 1 | I63: 0 | J63: =SUM(G63:I63) -> 1 | Q63: 1 | R63: 2 | T63: =(Q63*2+S63)/(SUM(Q63:S63)*2) -> 0.3333333333 | U63: 12 | V63: 19 | AN63: =SUM(AK63,AM63) -> 0 | AR63: =SUM(AO63,AQ63) -> 0 | AV63: =SUM(AS63,AU63) -> 0 | AW63: 0 | AX63: 1 | AY63: 0 | AZ63: =SUM(AW63,AY63) -> 0 | BA63: 0 | BB63: 1 | BC63: 0 | BD63: =SUM(BA63,BC63) -> 0 | BH63: =SUM(BE63,BG63) -> 0 | BL63: =SUM(BI63,BK63) -> 0 | BP63: =SUM(BM63,BO63) -> 0 | BQ63: 0 | BR63: 1 | BS63: 1 | BT63: =SUM(BQ63,BS63) -> 1 | CJ63: =SUM(CG63,CI63) -> 0 | CN63: =SUM(CK63,CM63) -> 0 | CR63: =SUM(CO63,CQ63) -> 0
A64: 60 | C64: 62 | D64: Cole Tweedy | E64: Red Light District | F64: 3 | G64: 1 | H64: 0 | I64: 0 | J64: =SUM(G64:I64) -> 1 | Q64: 1 | R64: 2 | T64: =(Q64*2+S64)/(SUM(Q64:S64)*2) -> 0.3333333333 | U64: 12 | V64: 19 | AN64: =SUM(AK64,AM64) -> 0 | AR64: =SUM(AO64,AQ64) -> 0 | AV64: =SUM(AS64,AU64) -> 0 | AW64: 0 | AX64: 1 | AY64: 0 | AZ64: =SUM(AW64,AY64) -> 0 | BA64: 0 | BB64: 1 | BC64: 0 | BD64: =SUM(BA64,BC64) -> 0 | BH64: =SUM(BE64,BG64) -> 0 | BL64: =SUM(BI64,BK64) -> 0 | BP64: =SUM(BM64,BO64) -> 0 | BQ64: 1 | BR64: 1 | BS64: 0 | BT64: =SUM(BQ64,BS64) -> 1 | CJ64: =SUM(CG64,CI64) -> 0 | CN64: =SUM(CK64,CM64) -> 0 | CR64: =SUM(CO64,CQ64) -> 0
A65: 61 | C65: 32 | D65: Ben Warren | E65: Purple Heys | F65: 2 | G65: 0 | H65: 0 | I65: 0 | J65: =SUM(G65:I65) -> 0 | Q65: 1 | R65: 1 | T65: =(Q65*2+S65)/(SUM(Q65:S65)*2) -> 0.5 | U65: 8 | V65: 6 | AN65: =SUM(AK65,AM65) -> 0 | AR65: =SUM(AO65,AQ65) -> 0 | AS65: 0 | AT65: 1 | AU65: 0 | AV65: =SUM(AS65,AU65) -> 0 | AZ65: =SUM(AW65,AY65) -> 0 | BD65: =SUM(BA65,BC65) -> 0 | BH65: =SUM(BE65,BG65) -> 0 | BL65: =SUM(BI65,BK65) -> 0 | BM65: 0 | BN65: 1 | BO65: 0 | BP65: =SUM(BM65,BO65) -> 0 | BT65: =SUM(BQ65,BS65) -> 0 | CJ65: =SUM(CG65,CI65) -> 0 | CN65: =SUM(CK65,CM65) -> 0 | CR65: =SUM(CO65,CQ65) -> 0
A66: 62 | C66: 74 | D66: Darius Brenton | E66: Retribution | J66: =SUM(G66:I66) -> 0 | T66: =(Q66*2+S66)/(SUM(Q66:S66)*2) ->  | AN66: =SUM(AK66,AM66) -> 0 | AR66: =SUM(AO66,AQ66) -> 0 | AV66: =SUM(AS66,AU66) -> 0 | AZ66: =SUM(AW66,AY66) -> 0 | BD66: =SUM(BA66,BC66) -> 0 | BH66: =SUM(BE66,BG66) -> 0 | BL66: =SUM(BI66,BK66) -> 0 | BP66: =SUM(BM66,BO66) -> 0 | BT66: =SUM(BQ66,BS66) -> 0 | CJ66: =SUM(CG66,CI66) -> 0 | CN66: =SUM(CK66,CM66) -> 0 | CR66: =SUM(CO66,CQ66) -> 0
A67: 63 | C67: 19 | D67: Jeff King | E67: White Lightning | F67: 4 | G67: 1 | H67: 0 | I67: 0 | J67: =SUM(G67:I67) -> 1 | R67: 4 | T67: =(Q67*2+S67)/(SUM(Q67:S67)*2) -> 0 | U67: 9 | V67: 23 | AN67: =SUM(AK67,AM67) -> 0 | AR67: =SUM(AO67,AQ67) -> 0 | AS67: 0 | AT67: 1 | AU67: 0 | AV67: =SUM(AS67,AU67) -> 0 | AZ67: =SUM(AW67,AY67) -> 0 | BA67: 0 | BB67: 1 | BC67: 0 | BD67: =SUM(BA67,BC67) -> 0 | BH67: =SUM(BE67,BG67) -> 0 | BI67: 0 | BJ67: 1 | BK67: 0 | BL67: =SUM(BI67,BK67) -> 0 | BM67: 1 | BN67: 1 | BO67: 0 | BP67: =SUM(BM67,BO67) -> 1 | BT67: =SUM(BQ67,BS67) -> 0 | CJ67: =SUM(CG67,CI67) -> 0 | CN67: =SUM(CK67,CM67) -> 0 | CR67: =SUM(CO67,CQ67) -> 0
C68: 10 | D68: Mark Farrell | E68: White Lightning
C69: 20 | D69: Brandon Leet-MacFarlane | E69: Slashing Pumpkins
C70: 30 | D70: Chris Day | E70: Purple Heys
C71: 40 | D71: Tony Bonnar | E71: Blue Storm
C72: 50 | D72: Mike Bannister | E72: Golden Panthers
C73: 60 | D73: Dave Hickman | E73: Red Light District
C74: 70 | D74: Rick Kent | E74: Retribution
C75: 80 | D75: Paul Richard | E75: The Green Machine
C76: 90
C77: 100
C78: 110
C79: 120
C80: 130
C81: 91
C82: 92
C83: 93
C84: 94
C85: 95
C86: 96 | F86: 1 | G86: 2 | H86: 0 | I86: 0 | R86: 1 | U86: 3 | V86: 12 | AS86: 2 | AT86: 1 | AU86: 0
C87: 97 | F87: 1 | G87: 0 | H87: 2 | I87: 0 | R87: 1 | U87: 3 | V87: 12 | AS87: 0 | AT87: 1 | AU87: 2
C88: 98
C89: 99 | F89: 1 | G89: 0 | H89: 0 | I89: 0 | R89: 1 | U89: 1 | V89: 10 | AK89: 0 | AL89: 1 | AM89: 0
F90: 204 | G90: 0 | H90: 0 | I90: 0 | Q90: 92 | R90: 102 | S90: 10 | U90: 837 | V90: 911 | AK90: 0 | AL90: 15 | AM90: 0 | AO90: 0 | AP90: 10 | AQ90: 0 | AS90: 0 | AT90: 29 | AU90: 0 | AW90: 0 | AX90: 25 | AY90: 0 | BA90: 0 | BB90: 25 | BC90: 0 | BI90: 0 | BJ90: 27 | BK90: 0 | BM90: 0 | BN90: 26 | BO90: 0 | BQ90: 0 | BR90: 34 | BS90: 0 | BY90: 0 | BZ90: 13 | CA90: 0

Sheet GoalieStats_Week02
N1: Record Against | R1: Record Against | V1: Record Against | Z1: Record Against | AD1: Record Against | AH1: Record Against | AL1: Record Against | AP1: Record Against
L2: Goals | M2: Assts | N2: White Lightning | O2: White Lightning | P2: White Lightning | Q2: White Lightning | R2: Slashing Pumpkins | S2: Slashing Pumpkins | T2: Slashing Pumpkins | U2: Slashing Pumpkins | V2: Purple Heys | W2: Purple Heys | X2: Purple Heys | Y2: Purple Heys | Z2: Blue Storm | AA2: Blue Storm | AB2: Blue Storm | AC2: Blue Storm | AD2: Golden Panthers | AE2: Golden Panthers | AF2: Golden Panthers | AG2: Golden Panthers | AH2: Red Light District | AI2: Red Light District | AJ2: Red Light District | AK2: Red Light District | AL2: Retribution | AM2: Retribution | AN2: Retribution | AO2: Retribution | AP2: The Green Machine | AQ2: The Green Machine | AR2: The Green Machine | AS2: The Green Machine
B3: Number | C3: Name | D3: Team | E3: Wins | F3: Losses | G3: Ties | H3: GA | I3: GAA | J3: Shots Against | K3: Save % | N3: W | O3: L | P3: T | Q3: GA | R3: W | S3: L | T3: T | U3: GA | V3: W | W3: L | X3: T | Y3: GA | Z3: W | AA3: L | AB3: T | AC3: GA | AD3: W | AE3: L | AF3: T | AG3: GA | AH3: W | AI3: L | AJ3: T | AK3: GA | AL3: W | AM3: L | AN3: T | AO3: GA | AP3: W | AQ3: L | AR3: T | AS3: GA
B4: 20 | C4: Brandon Leet-Macfarlane | D4: Slashing Pumpkins | E4: 6 | H4: 15 | I4: =H4/SUM(E4:G4) -> 2.5 | N4: 2 | Q4: 6 | V4: 1 | Y4: 3 | Z4: 1 | AC4: 3 | AD4: 1 | AG4: 1 | AP4: 1 | AS4: 2
B5: 50 | C5: Mike Bannister | D5: Golden Panthers | E5: 1 | F5: 1 | G5: 1 | H5: 6 | I5: =H5/SUM(E5:G5) -> 2 | N5: 1 | Q5: 1 | S5: 1 | U5: 2 | AR5: 1 | AS5: 3
B6: 70 | C6: Rick Kent | D6: Retribution | E6: 5 | F6: 1 | H6: 19 | I6: =H6/SUM(E6:G6) -> 3.166666667 | V6: 1 | Y6: 4 | AA6: 1 | AC6: 3 | AD6: 1 | AG6: 3 | AH6: 2 | AK6: 6 | AP6: 1 | AS6: 3
B7: 30 | C7: Chris Day | D7: Purple Heys | E7: 2 | F7: 4 | H7: 24 | I7: =H7/SUM(E7:G7) -> 4 | N7: 1 | Q7: 1 | S7: 1 | U7: 4 | Z7: 1 | AA7: 1 | AC7: 6 | AI7: 1 | AK7: 6 | AM7: 1 | AO7: 7
B8: 92 | C8: Shawn Merrithew | D8: Spare | I8: =H8/SUM(E8:G8) -> 
B9: 80 | C9: Paul Richard | D9: The Green Machine | E9: 2 | F9: 3 | G9: 1 | H9: 23 | I9: =H9/SUM(E9:G9) -> 3.833333333 | N9: 1 | Q9: 1 | S9: 1 | U9: 9 | AE9: 1 | AF9: 1 | AG9: 7 | AH9: 1 | AK9: 2 | AM9: 1 | AO9: 4
B10: 90 | C10: Frederic Mailhot Landry | D10: Red Light District | E10: 4 | F10: 5 | H10: 43 | I10: =H10/SUM(E10:G10) -> 4.777777778 | V10: 1 | Y10: 1 | Z10: 1 | AC10: 2 | AD10: 1 | AG10: 3 | AI10: 1 | AK10: 5 | AM10: 3 | AO10: 26 | AP10: 1 | AQ10: 1 | AS10: 6
B11: 40 | C11: Tony Bonnar | D11: Blue Storm | E11: 3 | F11: 4 | H11: 32 | I11: =H11/SUM(E11:G11) -> 4.571428571 | N11: 1 | Q11: 4 | S11: 2 | U11: 11 | V11: 1 | W11: 1 | Y11: 8 | AI11: 1 | AK11: 8 | AL11: 1 | AO11: 1
B12: 10 | C12: Mark Farrell | D12: White Lightning | F12: 2 | H12: 8 | I12: =H12/SUM(E12:G12) -> 4 | W12: 1 | Y12: 2 | AA12: 1 | AC12: 6
B13: 60 | C13: Dave Hickman | D13: Red Light District | I13: =H13/SUM(E13:G13) -> 
B14: 95 | C14: Darryl Moorcroft | D14: Spare | I14: =H14/SUM(E14:G14) -> 
B15: 94 | C15: Bruce Parent | D15: Spare | I15: =H15/SUM(E15:G15) -> 
B16: 91 | C16: Dave MacFarlane | D16: Spare | F16: 3 | H16: 32 | I16: =H16/SUM(E16:G16) -> 10.66666667 | S16: 1 | U16: 12 | AE16: 1 | AG16: 10 | AQ16: 1 | AS16: 10
B17: 93 | C17: Brandon Moss | D17: Spare | I17: =H17/SUM(E17:G17) -> 
D19: Standings Thru Week | E19: W | F19: L | G19: T | H19: PTS | I19: GF | J19: GA | K19: Winning % | L19: Shots | M19: Shot % | N19: +/-
D20: Slashing Pumpkins | H20: =(E20*2)+G20 -> 0 | K20: =H20/(SUM(E20:G20)*2) ->  | N20: =I20-J20 -> 0
D21: Retribution | H21: =(E21*2)+G21 -> 0 | K21: =H21/(SUM(E21:G21)*2) ->  | N21: =I21-J21 -> 0
D22: Red Light District | H22: =(E22*2)+G22 -> 0 | K22: =H22/(SUM(E22:G22)*2) ->  | N22: =I22-J22 -> 0
D23: Blue Storm | H23: =(E23*2)+G23 -> 0 | K23: =H23/(SUM(E23:G23)*2) ->  | N23: =I23-J23 -> 0
D24: Golden Panthers | H24: =(E24*2)+G24 -> 0 | K24: =H24/(SUM(E24:G24)*2) ->  | N24: =I24-J24 -> 0
D25: The Green Machine | H25: =(E25*2)+G25 -> 0 | K25: =H25/(SUM(E25:G25)*2) ->  | N25: =I25-J25 -> 0
D26: Purple Heys | H26: =(E26*2)+G26 -> 0 | K26: =H26/(SUM(E26:G26)*2) ->  | N26: =I26-J26 -> 0
D27: White Lightning | H27: =(E27*2)+G27 -> 0 | K27: =H27/(SUM(E27:G27)*2) ->  | N27: =I27-J27 -> 0
D31: Standings Thru Week 1 | E31: W | F31: L | G31: T | H31: PTS | I31: GF | J31: GA | K31: Winning % | L31: Shots | M31: Shot % | N31: +/-
D32: Retribution | E32: 3 | H32: 6 | I32: 22 | J32: 11 | K32: 1 | N32: 11
D33: Slashing Pumpkins | E33: 3 | H33: 6 | I33: 15 | J33: 9 | K33: 1 | N33: 6
D34: Purple Heys | E34: 2 | F34: 1 | H34: 4 | I34: 10 | J34: 7 | K34: 0.6666666667 | N34: 3
D35: The Green Machine | E35: 1 | F35: 2 | H35: 2 | I35: 9 | J35: 10 | K35: 0.3333333333 | N35: -1
D36: Blue Storm | E36: 1 | F36: 2 | H36: 2 | I36: 11 | J36: 15 | K36: 0.3333333333 | N36: -4
D37: Golden Panthers | E37: 1 | F37: 2 | H37: 2 | I37: 10 | J37: 14 | K37: 0.3333333333 | N37: -4
D38: Red Light District | E38: 1 | F38: 2 | H38: 2 | I38: 12 | J38: 18 | K38: 0.3333333333 | N38: -6
D39: White Lightning | F39: 3 | H39: 0 | I39: 8 | J39: 13 | K39: 0 | N39: -5
D41: Standings Thru Week 2 | E41: W | F41: L | G41: T | H41: PTS | I41: GF | J41: GA | K41: Winning % | L41: Shots | M41: Shot % | N41: +/-
D42: Slashing Pumpkins | E42: 6 | H42: =(E42*2)+G42 -> 12 | I42: 38 | J42: 15 | K42: =H42/(SUM(E42:G42)*2) -> 1 | N42: =I42-J42 -> 23
D43: Retribution | E43: 5 | F43: 1 | H43: =(E43*2)+G43 -> 10 | I43: 35 | J43: 19 | K43: =H43/(SUM(E43:G43)*2) -> 0.8333333333 | N43: =I43-J43 -> 16
D44: Red Light District | E44: 3 | F44: 3 | H44: =(E44*2)+G44 -> 6 | I44: 27 | J44: 26 | K44: =H44/(SUM(E44:G44)*2) -> 0.5 | N44: =I44-J44 -> 1
D45: Blue Storm | E45: 3 | F45: 3 | H45: =(E45*2)+G45 -> 6 | I45: 20 | J45: 27 | K45: =H45/(SUM(E45:G45)*2) -> 0.5 | N45: =I45-J45 -> -7
D46: Golden Panthers | E46: 2 | F46: 3 | G46: 1 | H46: =(E46*2)+G46 -> 5 | I46: 24 | J46: 20 | K46: =H46/(SUM(E46:G46)*2) -> 0.4166666667 | N46: =I46-J46 -> 4
D47: The Green Machine | E47: 2 | F47: 3 | G47: 1 | H47: =(E47*2)+G47 -> 5 | I47: 24 | J47: 23 | K47: =H47/(SUM(E47:G47)*2) -> 0.4166666667 | N47: =I47-J47 -> 1
D48: Purple Heys | E48: 2 | F48: 4 | H48: =(E48*2)+G48 -> 4 | I48: 18 | J48: 24 | K48: =H48/(SUM(E48:G48)*2) -> 0.3333333333 | N48: =I48-J48 -> -6
D49: White Lightning | F49: 6 | H49: =(E49*2)+G49 -> 0 | I49: 13 | J49: 45 | K49: =H49/(SUM(E49:G49)*2) -> 0 | N49: =I49-J49 -> -32
D51: Standings Thru Week 3 | E51: W | F51: L | G51: T | H51: PTS | I51: GF | J51: GA | K51: Winning % | L51: Shots | M51: Shot % | N51: +/-
D52: Retribution | E52: 8 | F52: 1 | H52: =(E52*2)+G52 -> 16 | I52: 57 | J52: 30 | K52: =H52/(SUM(E52:G52)*2) -> 0.8888888889 | N52: =I52-J52 -> 27
D53: Slashing Pumpkins | E53: 8 | F53: 1 | H53: =(E53*2)+G53 -> 16 | I53: 52 | J53: 26 | K53: =H53/(SUM(E53:G53)*2) -> 0.8888888889 | N53: =I53-J53 -> 26
D54: Golden Panthers | E54: 4 | F54: 3 | G54: 2 | H54: =(E54*2)+G54 -> 10 | I54: 44 | J54: 32 | K54: =H54/(SUM(E54:G54)*2) -> 0.5555555556 | N54: =I54-J54 -> 12
D55: Purple Heys | E55: 4 | F55: 4 | G55: 1 | H55: =(E55*2)+G55 -> 9 | I55: 31 | J55: 34 | K55: =H55/(SUM(E55:G55)*2) -> 0.5 | N55: =I55-J55 -> -3
D56: Blue Storm | E56: 4 | F56: 5 | H56: =(E56*2)+G56 -> 8 | I56: 32 | J56: 44 | K56: =H56/(SUM(E56:G56)*2) -> 0.4444444444 | N56: =I56-J56 -> -12
D57: Red Light District | E57: 3 | F57: 5 | G57: 1 | H57: =(E57*2)+G57 -> 7 | I57: 38 | J57: 41 | K57: =H57/(SUM(E57:G57)*2) -> 0.3888888889 | N57: =I57-J57 -> -3
D58: The Green Machine | E58: 2 | F58: 6 | G58: 1 | H58: =(E58*2)+G58 -> 5 | I58: 35 | J58: 40 | K58: =H58/(SUM(E58:G58)*2) -> 0.2777777778 | N58: =I58-J58 -> -5
D59: White Lightning | F59: 8 | G59: 1 | H59: =(E59*2)+G59 -> 1 | I59: 24 | J59: 66 | K59: =H59/(SUM(E59:G59)*2) -> 0.05555555556 | N59: =I59-J59 -> -42
D61: Standings Thru Week | E61: W | F61: L | G61: T | H61: PTS | I61: GF | J61: GA | K61: Winning % | L61: Shots | M61: Shot % | N61: +/-
D62: Slashing Pumpkins | E62: 11 | F62: 1 | H62: =(E62*2)+G62 -> 22 | I62: 80 | J62: 35 | K62: =H62/(SUM(E62:G62)*2) -> 0.9166666667 | N62: =I62-J62 -> 45
D63: Retribution | E63: 10 | F63: 2 | H63: =(E63*2)+G63 -> 20 | I63: 73 | J63: 42 | K63: =H63/(SUM(E63:G63)*2) -> 0.8333333333 | N63: =I63-J63 -> 31
D64: Golden Panthers | E64: 6 | F64: 4 | G64: 2 | H64: =(E64*2)+G64 -> 14 | I64: 59 | J64: 45 | K64: =H64/(SUM(E64:G64)*2) -> 0.5833333333 | N64: =I64-J64 -> 14
D65: Purple Heys | E65: 6 | F65: 5 | G65: 1 | H65: =(E65*2)+G65 -> 13 | I65: 52 | J65: 44 | K65: =H65/(SUM(E65:G65)*2) -> 0.5416666667 | N65: =I65-J65 -> 8
D66: Blue Storm | E66: 6 | F66: 6 | H66: =(E66*2)+G66 -> 12 | I66: 47 | J66: 55 | K66: =H66/(SUM(E66:G66)*2) -> 0.5 | N66: =I66-J66 -> -8
D67: Red Light District | E67: 4 | F67: 7 | G67: 1 | H67: =(E67*2)+G67 -> 9 | I67: 50 | J67: 63 | K67: =H67/(SUM(E67:G67)*2) -> 0.375 | N67: =I67-J67 -> -13
D68: The Green Machine | E68: 2 | F68: 9 | G68: 1 | H68: =(E68*2)+G68 -> 5 | I68: 46 | J68: 71 | K68: =H68/(SUM(E68:G68)*2) -> 0.2083333333 | N68: =I68-J68 -> -25
D69: White Lightning | F69: 11 | G69: 1 | H69: =(E69*2)+G69 -> 1 | I69: 35 | J69: 87 | K69: =H69/(SUM(E69:G69)*2) -> 0.04166666667 | N69: =I69-J69 -> -52

Sheet PlayerStats_Week03
C1: Week | G1: =MAX(G4:G66) -> 22 | H1: =MAX(H4:H66) -> 11 | I1: =MAX(I4:I66) -> 6 | J1: =MAX(J4:J66) -> 35 | AK1: =MAX(AK4:AK66) -> 1 | AL1: =MAX(AL4:AL66) -> 1 | AM1: =MAX(AM4:AM66) -> 2 | AN1: =MAX(AN4:AN66) -> 3 | AO1: =MAX(AO4:AO66) -> 4 | AP1: =MAX(AP4:AP66) -> 1 | AQ1: =MAX(AQ4:AQ66) -> 3 | AR1: =MAX(AR4:AR66) -> 6 | AS1: =MAX(AS4:AS66) -> 3 | AT1: =MAX(AT4:AT66) -> 3 | AU1: =MAX(AU4:AU66) -> 3 | AV1: =MAX(AV4:AV66) -> 5 | AW1: =MAX(AW4:AW66) -> 4 | AX1: =MAX(AX4:AX66) -> 3 | AY1: =MAX(AY4:AY66) -> 2 | AZ1: =MAX(AZ4:AZ66) -> 5 | BA1: =MAX(BA4:BA66) -> 5 | BB1: =MAX(BB4:BB66) -> 3 | BC1: =MAX(BC4:BC66) -> 4 | BD1: =MAX(BD4:BD66) -> 8 | BE1: =MAX(BE4:BE66) -> 0 | BF1: =MAX(BF4:BF66) -> 0 | BG1: =MAX(BG4:BG66) -> 0 | BH1: =MAX(BH4:BH66) -> 0 | BI1: =MAX(BI4:BI66) -> 6 | BJ1: =MAX(BJ4:BJ66) -> 3 | BK1: =MAX(BK4:BK66) -> 3 | BL1: =MAX(BL4:BL66) -> 8 | BM1: =MAX(BM4:BM66) -> 6 | BN1: =MAX(BN4:BN66) -> 3 | BO1: =MAX(BO4:BO66) -> 4 | BP1: =MAX(BP4:BP66) -> 7 | BQ1: =MAX(BQ4:BQ66) -> 10 | BR1: =MAX(BR4:BR66) -> 4 | BS1: =MAX(BS4:BS66) -> 9 | BT1: =MAX(BT4:BT66) -> 18 | BU1: =MAX(BU4:BU66) -> 2 | BV1: =MAX(BV4:BV66) -> 1 | BW1: =MAX(BW4:BW66) -> 3 | BX1: =MAX(BX4:BX66) -> 0 | BY1: =MAX(BY4:BY66) -> 5 | BZ1: =MAX(BZ4:BZ66) -> 1 | CA1: =MAX(CA4:CA66) -> 4 | CB1: =MAX(CB4:CB66) -> 0 | CC1: =MAX(CC4:CC66) -> 0 | CD1: =MAX(CD4:CD66) -> 0 | CE1: =MAX(CE4:CE66) -> 0 | CF1: =MAX(CF4:CF66) -> 0 | CG1: =MAX(CG4:CG66) -> 0 | CH1: =MAX(CH4:CH66) -> 0 | CI1: =MAX(CI4:CI66) -> 0 | CJ1: =MAX(CJ4:CJ66) -> 0 | CK1: =MAX(CK4:CK66) -> 0 | CL1: =MAX(CL4:CL66) -> 0 | CM1: =MAX(CM4:CM66) -> 0 | CN1: =MAX(CN4:CN66) -> 0 | CO1: =MAX(CO4:CO66) -> 0 | CP1: =MAX(CP4:CP66) -> 0 | CQ1: =MAX(CQ4:CQ66) -> 0 | CR1: =MAX(CR4:CR66) -> 0
C2: Game | G2: With Team | X2: As Spare | AS2: GOALS AGAINST GOALIE….
A3: 1 | B3: 2 | C3: 3 | D3: 4 | E3: 5 | F3: 6 | G3: 7 | H3: 8 | I3: 9 | J3: 10 | K3: 11 | L3: 12 | M3: 13 | N3: 14 | O3: 15 | P3: 16 | Q3: 17 | R3: 18 | S3: 19 | T3: 20 | U3: 21 | V3: 22 | W3: 23 | X3: 24 | Y3: 25 | Z3: 26 | AA3: 27 | AB3: 28 | AC3: 29 | AD3: 30 | AE3: 31 | AF3: 32 | AG3: 33 | AH3: 34 | AI3: 35 | AJ3: 36 | AK3: 37 | AL3: 38 | AM3: 39 | AN3: 40 | AO3: 41 | AP3: 42 | AQ3: 43 | AR3: 44 | AS3: 45 | AT3: 46 | AU3: 47 | AV3: 48 | AW3: 49 | AX3: 50 | AY3: 51 | AZ3: 52 | BA3: 53 | BB3: 54 | BC3: 55 | BD3: 56 | BE3: 57 | BF3: 58 | BG3: 59 | BH3: 60 | BI3: 61 | BJ3: 62 | BK3: 63 | BL3: 64 | BQ3: 65 | BR3: 66 | BS3: 67 | BT3: 68 | BU3: 69 | BV3: 70 | BW3: 71 | BX3: 72 | BY3: 65 | BZ3: 66 | CA3: 67 | CB3: 68 | CC3: 65 | CD3: 66 | CE3: 67 | CF3: 68 | CG3: 65 | CH3: 66 | CI3: 67 | CJ3: 68 | CK3: 65 | CL3: 66 | CM3: 67 | CN3: 68 | CO3: 65 | CP3: 66 | CQ3: 67 | CR3: 68
C4: Number | D4: Name | E4: Team | F4: GP | G4: Goals | H4: 1st Asst | I4: 2nd Asst | J4: Total | K4: GWG | L4: GWA | M4: GTG | N4: GTA | O4: Fluff Goals | P4: Fluff Assts | Q4: Wins | R4: Losses | S4: Ties | T4: Winning% | U4: GF | V4: GA | W4: +/- | X4: GP | Y4: Goals | Z4: 1st Asst | AA4: 2nd Asst | AB4: Total | AC4: Wins | AD4: Losses | AE4: Ties | AF4: Winning% | AG4: GF | AH4: GA | AI4: missing | AJ4: sum | AK4: Mike Bannister | AL4: Games Against | AM4: Assts | AN4: Totals | AO4: Mark Farrell | AP4: Games Against | AQ4: Assts | AR4: Totals | AS4: Brandon Leet-Macfarlane | AT4: Games Against | AU4: Assts | AV4: Totals | AW4: Rick Kent | AX4: Games Against | AY4: Assts | AZ4: Totals | BA4: Paul Richard | BB4: Games Against | BC4: Assts | BD4: Totals | BE4: Dave Hickman | BF4: Games Against | BG4: Assts | BH4: Totals | BI4: Chris Day | BJ4: Games Against | BK4: Assts | BL4: Totals | BM4: Tony Bonnar | BN4: Games Against | BO4: Assts | BP4: Totals | BQ4: Frederic Mailhot Landry | BR4: Games Against | BS4: Assts | BT4: Totals | BU4: Shawn Merrithew | BV4: Games Against | BW4: Assts | BX4: Totals | BY4: Dave MacFarlane | BZ4: Games Against | CA4: Assts | CB4: Totals | CC4: Brandon Moss | CD4: Games Against | CE4: Assts | CF4: Totals | CG4: Bruce Parent | CH4: Games Against | CI4: Assts | CJ4: Totals | CK4: Darryl Moorcroft | CL4: Games Against | CM4: Assts | CN4: Totals | CP4: Games Against | CQ4: Assts | CR4: Totals
A5: 1 | C5: 77 | D5: Ray Chase | E5: Retribution | F5: 9 | G5: 22 | H5: 10 | I5: 3 | J5: =SUM(G5:I5) -> 35 | K5: 2 | L5: 1 | O5: 3 | P5: 1 | Q5: 8 | R5: 1 | T5: =(Q5*2+S5)/(SUM(Q5:S5)*2) -> 0.8888888889 | U5: 60 | V5: 30 | AN5: =SUM(AK5,AM5) -> 0 | AO5: 4 | AP5: 1 | AQ5: 1 | AR5: =SUM(AO5,AQ5) -> 5 | AS5: 3 | AT5: 1 | AU5: 1 | AV5: =SUM(AS5,AU5) -> 4 | AZ5: =SUM(AW5,AY5) -> 0 | BA5: 3 | BB5: 1 | BC5: 0 | BD5: =SUM(BA5,BC5) -> 3 | BH5: =SUM(BE5,BG5) -> 0 | BI5: 2 | BJ5: 1 | BK5: 3 | BL5: =SUM(BI5,BK5) -> 5 | BM5: 0 | BN5: 1 | BO5: 0 | BP5: =SUM(BM5,BO5) -> 0 | BQ5: 10 | BR5: 4 | BS5: 8 | BT5: =SUM(BQ5,BS5) -> 18 | CJ5: =SUM(CG5,CI5) -> 0 | CN5: =SUM(CK5,CM5) -> 0 | CR5: =SUM(CO5,CQ5) -> 0
A6: 2 | C6: 71 | D6: Marc Guitard | E6: Retribution | F6: 9 | G6: 11 | H6: 11 | I6: 5 | J6: =SUM(G6:I6) -> 27 | K6: 2 | L6: 1 | P6: 4 | Q6: 8 | R6: 1 | T6: =(Q6*2+S6)/(SUM(Q6:S6)*2) -> 0.8888888889 | U6: 60 | V6: 30 | AN6: =SUM(AK6,AM6) -> 0 | AO6: 2 | AP6: 1 | AQ6: 2 | AR6: =SUM(AO6,AQ6) -> 4 | AS6: 1 | AT6: 1 | AU6: 0 | AV6: =SUM(AS6,AU6) -> 1 | AZ6: =SUM(AW6,AY6) -> 0 | BA6: 0 | BB6: 1 | BC6: 3 | BD6: =SUM(BA6,BC6) -> 3 | BH6: =SUM(BE6,BG6) -> 0 | BI6: 0 | BJ6: 1 | BK6: 2 | BL6: =SUM(BI6,BK6) -> 2 | BM6: 1 | BN6: 1 | BO6: 0 | BP6: =SUM(BM6,BO6) -> 1 | BQ6: 7 | BR6: 4 | BS6: 9 | BT6: =SUM(BQ6,BS6) -> 16 | CJ6: =SUM(CG6,CI6) -> 0 | CN6: =SUM(CK6,CM6) -> 0 | CR6: =SUM(CO6,CQ6) -> 0
A7: 3 | C7: 26 | D7: Richard Kwiatkowski | E7: Slashing Pumpkins | F7: 9 | G7: 18 | H7: 5 | I7: 2 | J7: =SUM(G7:I7) -> 25 | K7: 3 | L7: 1 | O7: 1 | P7: 1 | Q7: 8 | R7: 1 | T7: =(Q7*2+S7)/(SUM(Q7:S7)*2) -> 0.8888888889 | U7: 52 | V7: 26 | AK7: 1 | AL7: 1 | AM7: 0 | AN7: =SUM(AK7,AM7) -> 1 | AO7: 3 | AP7: 1 | AQ7: 1 | AR7: =SUM(AO7,AQ7) -> 4 | AV7: =SUM(AS7,AU7) -> 0 | AW7: 1 | AX7: 1 | AY7: 1 | AZ7: =SUM(AW7,AY7) -> 2 | BA7: 2 | BB7: 1 | BC7: 1 | BD7: =SUM(BA7,BC7) -> 3 | BH7: =SUM(BE7,BG7) -> 0 | BI7: 1 | BJ7: 1 | BK7: 0 | BL7: =SUM(BI7,BK7) -> 1 | BM7: 6 | BN7: 2 | BO7: 0 | BP7: =SUM(BM7,BO7) -> 6 | BQ7: 1 | BR7: 1 | BS7: 2 | BT7: =SUM(BQ7,BS7) -> 3 | BY7: 3 | BZ7: 1 | CA7: 2 | CJ7: =SUM(CG7,CI7) -> 0 | CN7: =SUM(CK7,CM7) -> 0 | CR7: =SUM(CO7,CQ7) -> 0
A8: 4 | C8: 72 | D8: Aaron Cornish | E8: Retribution | F8: 9 | G8: 12 | H8: 9 | I8: 3 | J8: =SUM(G8:I8) -> 24 | K8: 3 | O8: 1 | Q8: 8 | R8: 1 | T8: =(Q8*2+S8)/(SUM(Q8:S8)*2) -> 0.8888888889 | U8: 60 | V8: 30 | AN8: =SUM(AK8,AM8) -> 0 | AO8: 3 | AP8: 1 | AQ8: 3 | AR8: =SUM(AO8,AQ8) -> 6 | AS8: 1 | AT8: 1 | AU8: 1 | AV8: =SUM(AS8,AU8) -> 2 | AZ8: =SUM(AW8,AY8) -> 0 | BA8: 1 | BB8: 1 | BC8: 0 | BD8: =SUM(BA8,BC8) -> 1 | BH8: =SUM(BE8,BG8) -> 0 | BI8: 2 | BJ8: 1 | BK8: 1 | BL8: =SUM(BI8,BK8) -> 3 | BM8: 0 | BN8: 1 | BO8: 0 | BP8: =SUM(BM8,BO8) -> 0 | BQ8: 5 | BR8: 4 | BS8: 7 | BT8: =SUM(BQ8,BS8) -> 12 | CJ8: =SUM(CG8,CI8) -> 0 | CN8: =SUM(CK8,CM8) -> 0 | CR8: =SUM(CO8,CQ8) -> 0
A9: 5 | C9: 25 | D9: Matt Vautour | E9: Slashing Pumpkins | F9: 9 | G9: 17 | H9: 3 | I9: 3 | J9: =SUM(G9:I9) -> 23 | K9: 1 | L9: 2 | O9: 4 | Q9: 8 | R9: 1 | T9: =(Q9*2+S9)/(SUM(Q9:S9)*2) -> 0.8888888889 | U9: 52 | V9: 26 | AK9: 1 | AL9: 1 | AM9: 1 | AN9: =SUM(AK9,AM9) -> 2 | AO9: 0 | AP9: 1 | AQ9: 1 | AR9: =SUM(AO9,AQ9) -> 1 | AV9: =SUM(AS9,AU9) -> 0 | AW9: 1 | AX9: 1 | AY9: 0 | AZ9: =SUM(AW9,AY9) -> 1 | BA9: 3 | BB9: 1 | BC9: 0 | BD9: =SUM(BA9,BC9) -> 3 | BH9: =SUM(BE9,BG9) -> 0 | BI9: 3 | BJ9: 1 | BK9: 0 | BL9: =SUM(BI9,BK9) -> 3 | BM9: 1 | BN9: 2 | BO9: 2 | BP9: =SUM(BM9,BO9) -> 3 | BQ9: 3 | BR9: 1 | BS9: 1 | BT9: =SUM(BQ9,BS9) -> 4 | BY9: 5 | BZ9: 1 | CA9: 1 | CJ9: =SUM(CG9,CI9) -> 0 | CN9: =SUM(CK9,CM9) -> 0 | CR9: =SUM(CO9,CQ9) -> 0
A10: 6 | C10: 55 | D10: Ian Stevens | E10: Golden Panthers | F10: 9 | G10: 11 | H10: 6 | I10: 6 | J10: =SUM(G10:I10) -> 23 | K10: 1 | L10: 1 | O10: 1 | P10: 1 | Q10: 4 | R10: 3 | S10: 2 | T10: =(Q10*2+S10)/(SUM(Q10:S10)*2) -> 0.5555555556 | U10: 44 | V10: 32 | AN10: =SUM(AK10,AM10) -> 0 | AR10: =SUM(AO10,AQ10) -> 0 | AS10: 1 | AT10: 1 | AU10: 0 | AV10: =SUM(AS10,AU10) -> 1 | AW10: 1 | AX10: 1 | AY10: 1 | AZ10: =SUM(AW10,AY10) -> 2 | BA10: 5 | BB10: 3 | BC10: 3 | BD10: =SUM(BA10,BC10) -> 8 | BH10: =SUM(BE10,BG10) -> 0 | BI10: 1 | BJ10: 1 | BK10: 2 | BL10: =SUM(BI10,BK10) -> 3 | BM10: 1 | BN10: 1 | BO10: 2 | BP10: =SUM(BM10,BO10) -> 3 | BQ10: 0 | BR10: 1 | BS10: 1 | BT10: =SUM(BQ10,BS10) -> 1 | BY10: 2 | BZ10: 1 | CA10: 3 | CJ10: =SUM(CG10,CI10) -> 0 | CN10: =SUM(CK10,CM10) -> 0 | CR10: =SUM(CO10,CQ10) -> 0
A11: 7 | C11: 81 | D11: Collin Sleep | E11: The Green Machine | F11: 9 | G11: 11 | H11: 5 | I11: 4 | J11: =SUM(G11:I11) -> 20 | K11: 1 | N11: 1 | O11: 1 | P11: 2 | Q11: 2 | R11: 6 | S11: 1 | T11: =(Q11*2+S11)/(SUM(Q11:S11)*2) -> 0.2777777778 | U11: 35 | V11: 40 | AK11: 1 | AL11: 1 | AM11: 2 | AN11: =SUM(AK11,AM11) -> 3 | AR11: =SUM(AO11,AQ11) -> 0 | AS11: 1 | AT11: 1 | AU11: 1 | AV11: =SUM(AS11,AU11) -> 2 | AW11: 0 | AX11: 1 | AY11: 0 | AZ11: =SUM(AW11,AY11) -> 0 | BD11: =SUM(BA11,BC11) -> 0 | BH11: =SUM(BE11,BG11) -> 0 | BI11: 1 | BJ11: 1 | BK11: 0 | BL11: =SUM(BI11,BK11) -> 1 | BM11: 2 | BN11: 1 | BO11: 0 | BP11: =SUM(BM11,BO11) -> 2 | BQ11: 1 | BR11: 2 | BS11: 0 | BT11: =SUM(BQ11,BS11) -> 1 | BU11: 1 | BV11: 1 | BW11: 3 | BY11: 4 | BZ11: 1 | CA11: 3 | CJ11: =SUM(CG11,CI11) -> 0 | CN11: =SUM(CK11,CM11) -> 0 | CR11: =SUM(CO11,CQ11) -> 0
A12: 8 | C12: 37 | D12: Joel Thorne | E12: Purple Heys | F12: 9 | G12: 10 | H12: 7 | I12: 2 | J12: =SUM(G12:I12) -> 19 | K12: 1 | Q12: 4 | R12: 4 | S12: 1 | T12: =(Q12*2+S12)/(SUM(Q12:S12)*2) -> 0.5 | U12: 31 | V12: 34 | AN12: =SUM(AK12,AM12) -> 0 | AO12: 0 | AP12: 1 | AQ12: 0 | AR12: =SUM(AO12,AQ12) -> 0 | AS12: 1 | AT12: 1 | AU12: 1 | AV12: =SUM(AS12,AU12) -> 2 | AW12: 2 | AX12: 1 | AY12: 1 | AZ12: =SUM(AW12,AY12) -> 3 | BA12: 1 | BB12: 1 | BC12: 2 | BD12: =SUM(BA12,BC12) -> 3 | BH12: =SUM(BE12,BG12) -> 0 | BL12: =SUM(BI12,BK12) -> 0 | BM12: 5 | BN12: 3 | BO12: 2 | BP12: =SUM(BM12,BO12) -> 7 | BQ12: 1 | BR12: 1 | BS12: 0 | BT12: =SUM(BQ12,BS12) -> 1 | BU12: 0 | BV12: 1 | BW12: 3 | CJ12: =SUM(CG12,CI12) -> 0 | CN12: =SUM(CK12,CM12) -> 0 | CR12: =SUM(CO12,CQ12) -> 0
A13: 9 | C13: 54 | D13: Ian LaPointe | E13: Golden Panthers | F13: 9 | G13: 14 | H13: 4 | I13: 1 | J13: =SUM(G13:I13) -> 19 | K13: 1 | Q13: 4 | R13: 3 | S13: 2 | T13: =(Q13*2+S13)/(SUM(Q13:S13)*2) -> 0.5555555556 | U13: 44 | V13: 32 | AN13: =SUM(AK13,AM13) -> 0 | AR13: =SUM(AO13,AQ13) -> 0 | AS13: 0 | AT13: 1 | AU13: 0 | AV13: =SUM(AS13,AU13) -> 0 | AW13: 1 | AX13: 1 | AY13: 0 | AZ13: =SUM(AW13,AY13) -> 1 | BA13: 4 | BB13: 3 | BC13: 3 | BD13: =SUM(BA13,BC13) -> 7 | BH13: =SUM(BE13,BG13) -> 0 | BI13: 1 | BJ13: 1 | BK13: 0 | BL13: =SUM(BI13,BK13) -> 1 | BM13: 4 | BN13: 1 | BO13: 1 | BP13: =SUM(BM13,BO13) -> 5 | BQ13: 2 | BR13: 1 | BS13: 0 | BT13: =SUM(BQ13,BS13) -> 2 | BY13: 2 | BZ13: 1 | CA13: 1 | CJ13: =SUM(CG13,CI13) -> 0 | CN13: =SUM(CK13,CM13) -> 0 | CR13: =SUM(CO13,CQ13) -> 0
A14: 10 | C14: 64 | D14: Jamie Williams | E14: Red Light District | F14: 9 | G14: 12 | H14: 4 | I14: 2 | J14: =SUM(G14:I14) -> 18 | K14: 1 | N14: 1 | O14: 1 | Q14: 3 | R14: 5 | S14: 1 | T14: =(Q14*2+S14)/(SUM(Q14:S14)*2) -> 0.3888888889 | U14: 38 | V14: 44 | AN14: =SUM(AK14,AM14) -> 0 | AO14: 2 | AP14: 1 | AQ14: 2 | AR14: =SUM(AO14,AQ14) -> 4 | AS14: 0 | AT14: 1 | AU14: 0 | AV14: =SUM(AS14,AU14) -> 0 | AW14: 3 | AX14: 3 | AY14: 1 | AZ14: =SUM(AW14,AY14) -> 4 | BA14: 0 | BB14: 1 | BC14: 0 | BD14: =SUM(BA14,BC14) -> 0 | BH14: =SUM(BE14,BG14) -> 0 | BI14: 2 | BJ14: 1 | BK14: 2 | BL14: =SUM(BI14,BK14) -> 4 | BM14: 4 | BN14: 1 | BO14: 0 | BP14: =SUM(BM14,BO14) -> 4 | BQ14: 1 | BR14: 1 | BS14: 1 | BT14: =SUM(BQ14,BS14) -> 2 | CJ14: =SUM(CG14,CI14) -> 0 | CN14: =SUM(CK14,CM14) -> 0 | CR14: =SUM(CO14,CQ14) -> 0
A15: 11 | C15: 83 | D15: Craig Maranda | E15: The Green Machine | F15: 9 | G15: 11 | H15: 6 | I15: 0 | J15: =SUM(G15:I15) -> 17 | M15: 1 | O15: 1 | P15: 1 | Q15: 2 | R15: 6 | S15: 1 | T15: =(Q15*2+S15)/(SUM(Q15:S15)*2) -> 0.2777777778 | U15: 35 | V15: 40 | AK15: 1 | AL15: 1 | AM15: 1 | AN15: =SUM(AK15,AM15) -> 2 | AR15: =SUM(AO15,AQ15) -> 0 | AS15: 1 | AT15: 1 | AU15: 1 | AV15: =SUM(AS15,AU15) -> 2 | AW15: 3 | AX15: 1 | AY15: 0 | AZ15: =SUM(AW15,AY15) -> 3 | BD15: =SUM(BA15,BC15) -> 0 | BH15: =SUM(BE15,BG15) -> 0 | BI15: 0 | BJ15: 1 | BK15: 0 | BL15: =SUM(BI15,BK15) -> 0 | BM15: 0 | BN15: 1 | BO15: 1 | BP15: =SUM(BM15,BO15) -> 1 | BQ15: 1 | BR15: 2 | BS15: 0 | BT15: =SUM(BQ15,BS15) -> 1 | BU15: 2 | BV15: 1 | BW15: 1 | BY15: 3 | BZ15: 1 | CA15: 2 | CJ15: =SUM(CG15,CI15) -> 0 | CN15: =SUM(CK15,CM15) -> 0 | CR15: =SUM(CO15,CQ15) -> 0
A16: 12 | C16: 41 | D16: Michael Moore | E16: Blue Storm | F16: 9 | G16: 10 | H16: 6 | I16: 2 | J16: =SUM(G16:I16) -> 18 | K16: 2 | L16: 1 | Q16: 4 | R16: 5 | T16: =(Q16*2+S16)/(SUM(Q16:S16)*2) -> 0.4444444444 | U16: 32 | V16: 44 | AN16: =SUM(AK16,AM16) -> 0 | AO16: 2 | AP16: 1 | AQ16: 1 | AR16: =SUM(AO16,AQ16) -> 3 | AS16: 1 | AT16: 1 | AU16: 2 | AV16: =SUM(AS16,AU16) -> 3 | AW16: 0 | AX16: 1 | AY16: 1 | AZ16: =SUM(AW16,AY16) -> 1 | BA16: 1 | BB16: 1 | BC16: 2 | BD16: =SUM(BA16,BC16) -> 3 | BH16: =SUM(BE16,BG16) -> 0 | BI16: 6 | BJ16: 3 | BK16: 2 | BL16: =SUM(BI16,BK16) -> 8 | BP16: =SUM(BM16,BO16) -> 0 | BQ16: 0 | BR16: 1 | BS16: 0 | BT16: =SUM(BQ16,BS16) -> 0 | BU16: 0 | BV16: 1 | BW16: 0 | CJ16: =SUM(CG16,CI16) -> 0 | CN16: =SUM(CK16,CM16) -> 0 | CR16: =SUM(CO16,CQ16) -> 0
A17: 13 | C17: 36 | D17: Jeff Schriver | E17: Purple Heys | F17: 9 | G17: 9 | H17: 7 | I17: 0 | J17: =SUM(G17:I17) -> 16 | K17: 1 | Q17: 4 | R17: 4 | S17: 1 | T17: =(Q17*2+S17)/(SUM(Q17:S17)*2) -> 0.5 | U17: 31 | V17: 34 | AN17: =SUM(AK17,AM17) -> 0 | AO17: 1 | AP17: 1 | AQ17: 0 | AR17: =SUM(AO17,AQ17) -> 1 | AS17: 2 | AT17: 1 | AU17: 0 | AV17: =SUM(AS17,AU17) -> 2 | AW17: 1 | AX17: 1 | AY17: 0 | AZ17: =SUM(AW17,AY17) -> 1 | BA17: 1 | BB17: 1 | BC17: 0 | BD17: =SUM(BA17,BC17) -> 1 | BH17: =SUM(BE17,BG17) -> 0 | BL17: =SUM(BI17,BK17) -> 0 | BM17: 2 | BN17: 3 | BO17: 4 | BP17: =SUM(BM17,BO17) -> 6 | BQ17: 0 | BR17: 1 | BS17: 1 | BT17: =SUM(BQ17,BS17) -> 1 | BU17: 2 | BV17: 1 | BW17: 2 | CJ17: =SUM(CG17,CI17) -> 0 | CN17: =SUM(CK17,CM17) -> 0 | CR17: =SUM(CO17,CQ17) -> 0
A18: 14 | C18: 73 | D18: Brian Kelly | E18: Retribution | F18: 9 | G18: 8 | H18: 5 | I18: 3 | J18: =SUM(G18:I18) -> 16 | K18: 1 | L18: 2 | Q18: 8 | R18: 1 | T18: =(Q18*2+S18)/(SUM(Q18:S18)*2) -> 0.8888888889 | U18: 60 | V18: 30 | AN18: =SUM(AK18,AM18) -> 0 | AO18: 1 | AP18: 1 | AQ18: 2 | AR18: =SUM(AO18,AQ18) -> 3 | AS18: 1 | AT18: 1 | AU18: 1 | AV18: =SUM(AS18,AU18) -> 2 | AZ18: =SUM(AW18,AY18) -> 0 | BA18: 0 | BB18: 1 | BC18: 0 | BD18: =SUM(BA18,BC18) -> 0 | BH18: =SUM(BE18,BG18) -> 0 | BI18: 3 | BJ18: 1 | BK18: 1 | BL18: =SUM(BI18,BK18) -> 4 | BM18: 0 | BN18: 1 | BO18: 0 | BP18: =SUM(BM18,BO18) -> 0 | BQ18: 3 | BR18: 4 | BS18: 4 | BT18: =SUM(BQ18,BS18) -> 7 | CJ18: =SUM(CG18,CI18) -> 0 | CN18: =SUM(CK18,CM18) -> 0 | CR18: =SUM(CO18,CQ18) -> 0
A19: 15 | C19: 53 | D19: Douglas Taylor | E19: Golden Panthers | F19: 9 | G19: 5 | H19: 6 | I19: 5 | J19: =SUM(G19:I19) -> 16 | K19: 1 | Q19: 4 | R19: 3 | S19: 2 | T19: =(Q19*2+S19)/(SUM(Q19:S19)*2) -> 0.5555555556 | U19: 44 | V19: 32 | AN19: =SUM(AK19,AM19) -> 0 | AR19: =SUM(AO19,AQ19) -> 0 | AS19: 0 | AT19: 1 | AU19: 0 | AV19: =SUM(AS19,AU19) -> 0 | AW19: 1 | AX19: 1 | AY19: 0 | AZ19: =SUM(AW19,AY19) -> 1 | BA19: 3 | BB19: 3 | BC19: 4 | BD19: =SUM(BA19,BC19) -> 7 | BH19: =SUM(BE19,BG19) -> 0 | BI19: 0 | BJ19: 1 | BK19: 2 | BL19: =SUM(BI19,BK19) -> 2 | BM19: 0 | BN19: 1 | BO19: 2 | BP19: =SUM(BM19,BO19) -> 2 | BQ19: 1 | BR19: 1 | BS19: 1 | BT19: =SUM(BQ19,BS19) -> 2 | BY19: 0 | BZ19: 1 | CA19: 2 | CJ19: =SUM(CG19,CI19) -> 0 | CN19: =SUM(CK19,CM19) -> 0 | CR19: =SUM(CO19,CQ19) -> 0
A20: 16 | C20: 51 | D20: Vince MacDonald | E20: Golden Panthers | F20: 9 | G20: 6 | H20: 7 | I20: 1 | J20: =SUM(G20:I20) -> 14 | K20: 1 | P20: 3 | Q20: 4 | R20: 3 | S20: 2 | T20: =(Q20*2+S20)/(SUM(Q20:S20)*2) -> 0.5555555556 | U20: 44 | V20: 32 | AN20: =SUM(AK20,AM20) -> 0 | AR20: =SUM(AO20,AQ20) -> 0 | AS20: 0 | AT20: 1 | AU20: 0 | AV20: =SUM(AS20,AU20) -> 0 | AW20: 0 | AX20: 1 | AY20: 1 | AZ20: =SUM(AW20,AY20) -> 1 | BA20: 0 | BB20: 3 | BC20: 1 | BD20: =SUM(BA20,BC20) -> 1 | BH20: =SUM(BE20,BG20) -> 0 | BI20: 1 | BJ20: 1 | BK20: 0 | BL20: =SUM(BI20,BK20) -> 1 | BM20: 2 | BN20: 1 | BO20: 2 | BP20: =SUM(BM20,BO20) -> 4 | BQ20: 0 | BR20: 1 | BS20: 0 | BT20: =SUM(BQ20,BS20) -> 0 | BY20: 3 | BZ20: 1 | CA20: 4 | CJ20: =SUM(CG20,CI20) -> 0 | CN20: =SUM(CK20,CM20) -> 0 | CR20: =SUM(CO20,CQ20) -> 0
A21: 17 | C21: 61 | D21: Jon Loubert | E21: Red Light District | F21: 9 | G21: 8 | H21: 4 | I21: 1 | J21: =SUM(G21:I21) -> 13 | L21: 1 | N21: 1 | Q21: 3 | R21: 5 | S21: 1 | T21: =(Q21*2+S21)/(SUM(Q21:S21)*2) -> 0.3888888889 | U21: 38 | V21: 44 | AN21: =SUM(AK21,AM21) -> 0 | AO21: 1 | AP21: 1 | AQ21: 1 | AR21: =SUM(AO21,AQ21) -> 2 | AS21: 2 | AT21: 1 | AU21: 0 | AV21: =SUM(AS21,AU21) -> 2 | AW21: 2 | AX21: 3 | AY21: 2 | AZ21: =SUM(AW21,AY21) -> 4 | BA21: 0 | BB21: 1 | BC21: 0 | BD21: =SUM(BA21,BC21) -> 0 | BH21: =SUM(BE21,BG21) -> 0 | BI21: 0 | BJ21: 1 | BK21: 0 | BL21: =SUM(BI21,BK21) -> 0 | BM21: 3 | BN21: 1 | BO21: 2 | BP21: =SUM(BM21,BO21) -> 5 | BQ21: 0 | BR21: 1 | BS21: 0 | BT21: =SUM(BQ21,BS21) -> 0 | CJ21: =SUM(CG21,CI21) -> 0 | CN21: =SUM(CK21,CM21) -> 0 | CR21: =SUM(CO21,CQ21) -> 0
A22: 18 | C22: 68 | D22: Troy Doyle | E22: Red Light District | F22: 9 | G22: 7 | H22: 6 | I22: 0 | J22: =SUM(G22:I22) -> 13 | K22: 1 | P22: 1 | Q22: 3 | R22: 5 | S22: 1 | T22: =(Q22*2+S22)/(SUM(Q22:S22)*2) -> 0.3888888889 | U22: 38 | V22: 44 | AN22: =SUM(AK22,AM22) -> 0 | AO22: 0 | AP22: 1 | AQ22: 0 | AR22: =SUM(AO22,AQ22) -> 0 | AS22: 0 | AT22: 1 | AU22: 0 | AV22: =SUM(AS22,AU22) -> 0 | AW22: 4 | AX22: 3 | AY22: 1 | AZ22: =SUM(AW22,AY22) -> 5 | BA22: 2 | BB22: 1 | BC22: 0 | BD22: =SUM(BA22,BC22) -> 2 | BH22: =SUM(BE22,BG22) -> 0 | BI22: 0 | BJ22: 1 | BK22: 1 | BL22: =SUM(BI22,BK22) -> 1 | BM22: 0 | BN22: 1 | BO22: 4 | BP22: =SUM(BM22,BO22) -> 4 | BQ22: 1 | BR22: 1 | BS22: 0 | BT22: =SUM(BQ22,BS22) -> 1 | CJ22: =SUM(CG22,CI22) -> 0 | CN22: =SUM(CK22,CM22) -> 0 | CR22: =SUM(CO22,CQ22) -> 0
A23: 19 | C23: 27 | D23: Rick Bartlett | E23: Slashing Pumpkins | F23: 9 | G23: 3 | H23: 8 | I23: 2 | J23: =SUM(G23:I23) -> 13 | K23: 1 | L23: 1 | P23: 2 | Q23: 8 | R23: 1 | T23: =(Q23*2+S23)/(SUM(Q23:S23)*2) -> 0.8888888889 | U23: 52 | V23: 26 | AK23: 0 | AL23: 1 | AM23: 0 | AN23: =SUM(AK23,AM23) -> 0 | AO23: 0 | AP23: 1 | AQ23: 2 | AR23: =SUM(AO23,AQ23) -> 2 | AV23: =SUM(AS23,AU23) -> 0 | AW23: 1 | AX23: 1 | AY23: 0 | AZ23: =SUM(AW23,AY23) -> 1 | BA23: 0 | BB23: 1 | BC23: 1 | BD23: =SUM(BA23,BC23) -> 1 | BH23: =SUM(BE23,BG23) -> 0 | BI23: 0 | BJ23: 1 | BK23: 0 | BL23: =SUM(BI23,BK23) -> 0 | BM23: 0 | BN23: 2 | BO23: 3 | BP23: =SUM(BM23,BO23) -> 3 | BQ23: 1 | BR23: 1 | BS23: 1 | BT23: =SUM(BQ23,BS23) -> 2 | BY23: 1 | BZ23: 1 | CA23: 3 | CJ23: =SUM(CG23,CI23) -> 0 | CN23: =SUM(CK23,CM23) -> 0 | CR23: =SUM(CO23,CQ23) -> 0
A24: 20 | C24: 23 | D24: Jacob Wilson | E24: Slashing Pumpkins | F24: 9 | G24: 8 | H24: 3 | I24: 1 | J24: =SUM(G24:I24) -> 12 | K24: 1 | L24: 1 | O24: 1 | Q24: 8 | R24: 1 | T24: =(Q24*2+S24)/(SUM(Q24:S24)*2) -> 0.8888888889 | U24: 52 | V24: 26 | AK24: 0 | AL24: 1 | AM24: 0 | AN24: =SUM(AK24,AM24) -> 0 | AO24: 0 | AP24: 1 | AQ24: 1 | AR24: =SUM(AO24,AQ24) -> 1 | AV24: =SUM(AS24,AU24) -> 0 | AW24: 0 | AX24: 1 | AY24: 0 | AZ24: =SUM(AW24,AY24) -> 0 | BA24: 2 | BB24: 1 | BC24: 1 | BD24: =SUM(BA24,BC24) -> 3 | BH24: =SUM(BE24,BG24) -> 0 | BI24: 0 | BJ24: 1 | BK24: 0 | BL24: =SUM(BI24,BK24) -> 0 | BM24: 4 | BN24: 2 | BO24: 0 | BP24: =SUM(BM24,BO24) -> 4 | BQ24: 0 | BR24: 1 | BS24: 2 | BT24: =SUM(BQ24,BS24) -> 2 | BY24: 2 | BZ24: 1 | CA24: 0 | CJ24: =SUM(CG24,CI24) -> 0 | CN24: =SUM(CK24,CM24) -> 0 | CR24: =SUM(CO24,CQ24) -> 0
A25: 21 | C25: 14 | D25: Mark Whitlock | E25: White Lightning | F25: 9 | G25: 7 | H25: 4 | I25: 1 | J25: =SUM(G25:I25) -> 12 | R25: 8 | S25: 1 | T25: =(Q25*2+S25)/(SUM(Q25:S25)*2) -> 0.05555555556 | U25: 24 | V25: 66 | AK25: 0 | AL25: 1 | AM25: 0 | AN25: =SUM(AK25,AM25) -> 0 | AR25: =SUM(AO25,AQ25) -> 0 | AS25: 2 | AT25: 3 | AU25: 3 | AV25: =SUM(AS25,AU25) -> 5 | AW25: 2 | AX25: 1 | AY25: 0 | AZ25: =SUM(AW25,AY25) -> 2 | BA25: 0 | BB25: 1 | BC25: 0 | BD25: =SUM(BA25,BC25) -> 0 | BH25: =SUM(BE25,BG25) -> 0 | BI25: 0 | BJ25: 1 | BK25: 1 | BL25: =SUM(BI25,BK25) -> 1 | BM25: 1 | BN25: 1 | BO25: 0 | BP25: =SUM(BM25,BO25) -> 1 | BQ25: 2 | BR25: 1 | BS25: 1 | BT25: =SUM(BQ25,BS25) -> 3 | CJ25: =SUM(CG25,CI25) -> 0 | CN25: =SUM(CK25,CM25) -> 0 | CR25: =SUM(CO25,CQ25) -> 0
A26: 22 | C26: 88 | D26: Stephen Atherton | E26: The Green Machine | F26: 9 | G26: 3 | H26: 6 | I26: 3 | J26: =SUM(G26:I26) -> 12 | N26: 1 | O26: 1 | Q26: 2 | R26: 6 | S26: 1 | T26: =(Q26*2+S26)/(SUM(Q26:S26)*2) -> 0.2777777778 | U26: 35 | V26: 40 | AK26: 1 | AL26: 1 | AM26: 1 | AN26: =SUM(AK26,AM26) -> 2 | AR26: =SUM(AO26,AQ26) -> 0 | AS26: 0 | AT26: 1 | AU26: 0 | AV26: =SUM(AS26,AU26) -> 0 | AW26: 0 | AX26: 1 | AY26: 1 | AZ26: =SUM(AW26,AY26) -> 1 | BD26: =SUM(BA26,BC26) -> 0 | BH26: =SUM(BE26,BG26) -> 0 | BI26: 0 | BJ26: 1 | BK26: 0 | BL26: =SUM(BI26,BK26) -> 0 | BM26: 0 | BN26: 1 | BO26: 2 | BP26: =SUM(BM26,BO26) -> 2 | BQ26: 0 | BR26: 2 | BS26: 2 | BT26: =SUM(BQ26,BS26) -> 2 | BU26: 1 | BV26: 1 | BW26: 1 | BY26: 1 | BZ26: 1 | CA26: 2 | CJ26: =SUM(CG26,CI26) -> 0 | CN26: =SUM(CK26,CM26) -> 0 | CR26: =SUM(CO26,CQ26) -> 0
A27: 23 | C27: 21 | D27: James Campbell | E27: Slashing Pumpkins | F27: 9 | G27: 1 | H27: 9 | I27: 2 | J27: =SUM(G27:I27) -> 12 | K27: 1 | L27: 3 | P27: 1 | Q27: 8 | R27: 1 | T27: =(Q27*2+S27)/(SUM(Q27:S27)*2) -> 0.8888888889 | U27: 52 | V27: 26 | AK27: 0 | AL27: 1 | AM27: 0 | AN27: =SUM(AK27,AM27) -> 0 | AO27: 1 | AP27: 1 | AQ27: 1 | AR27: =SUM(AO27,AQ27) -> 2 | AV27: =SUM(AS27,AU27) -> 0 | AW27: 0 | AX27: 1 | AY27: 0 | AZ27: =SUM(AW27,AY27) -> 0 | BA27: 0 | BB27: 1 | BC27: 2 | BD27: =SUM(BA27,BC27) -> 2 | BH27: =SUM(BE27,BG27) -> 0 | BI27: 0 | BJ27: 1 | BK27: 3 | BL27: =SUM(BI27,BK27) -> 3 | BM27: 0 | BN27: 2 | BO27: 2 | BP27: =SUM(BM27,BO27) -> 2 | BQ27: 0 | BR27: 1 | BS27: 0 | BT27: =SUM(BQ27,BS27) -> 0 | BY27: 0 | BZ27: 1 | CA27: 3 | CJ27: =SUM(CG27,CI27) -> 0 | CN27: =SUM(CK27,CM27) -> 0 | CR27: =SUM(CO27,CQ27) -> 0
A28: 24 | C28: 15 | D28: Sean Keenan | E28: White Lightning | F28: 6 | G28: 5 | H28: 5 | I28: 1 | J28: =SUM(G28:I28) -> 11 | R28: 5 | S28: 1 | T28: =(Q28*2+S28)/(SUM(Q28:S28)*2) -> 0.08333333333 | U28: 19 | V28: 34 | AN28: =SUM(AK28,AM28) -> 0 | AR28: =SUM(AO28,AQ28) -> 0 | AS28: 2 | AT28: 2 | AU28: 3 | AV28: =SUM(AS28,AU28) -> 5 | AW28: 0 | AX28: 1 | AY28: 2 | AZ28: =SUM(AW28,AY28) -> 2 | BD28: =SUM(BA28,BC28) -> 0 | BH28: =SUM(BE28,BG28) -> 0 | BI28: 1 | BJ28: 1 | BK28: 0 | BL28: =SUM(BI28,BK28) -> 1 | BM28: 1 | BN28: 1 | BO28: 0 | BP28: =SUM(BM28,BO28) -> 1 | BQ28: 1 | BR28: 1 | BS28: 1 | BT28: =SUM(BQ28,BS28) -> 2 | CJ28: =SUM(CG28,CI28) -> 0 | CN28: =SUM(CK28,CM28) -> 0 | CR28: =SUM(CO28,CQ28) -> 0
A29: 25 | C29: 45 | D29: Mike Clarke | E29: Blue Storm | F29: 7 | G29: 5 | H29: 4 | I29: 2 | J29: =SUM(G29:I29) -> 11 | Q29: 2 | R29: 5 | T29: =(Q29*2+S29)/(SUM(Q29:S29)*2) -> 0.2857142857 | U29: 25 | V29: 40 | AN29: =SUM(AK29,AM29) -> 0 | AO29: 1 | AP29: 1 | AQ29: 1 | AR29: =SUM(AO29,AQ29) -> 2 | AS29: 1 | AT29: 1 | AU29: 1 | AV29: =SUM(AS29,AU29) -> 2 | AZ29: =SUM(AW29,AY29) -> 0 | BA29: 2 | BB29: 1 | BC29: 1 | BD29: =SUM(BA29,BC29) -> 3 | BH29: =SUM(BE29,BG29) -> 0 | BI29: 0 | BJ29: 2 | BK29: 2 | BL29: =SUM(BI29,BK29) -> 2 | BP29: =SUM(BM29,BO29) -> 0 | BQ29: 0 | BR29: 1 | BS29: 0 | BT29: =SUM(BQ29,BS29) -> 0 | BU29: 1 | BV29: 1 | BW29: 1 | CJ29: =SUM(CG29,CI29) -> 0 | CN29: =SUM(CK29,CM29) -> 0 | CR29: =SUM(CO29,CQ29) -> 0
A30: 26 | C30: 75 | D30: Denis Loubert | E30: Retribution | F30: 9 | G30: 4 | H30: 5 | I30: 2 | J30: =SUM(G30:I30) -> 11 | L30: 1 | Q30: 8 | R30: 1 | T30: =(Q30*2+S30)/(SUM(Q30:S30)*2) -> 0.8888888889 | U30: 60 | V30: 30 | AN30: =SUM(AK30,AM30) -> 0 | AO30: 0 | AP30: 1 | AQ30: 0 | AR30: =SUM(AO30,AQ30) -> 0 | AS30: 1 | AT30: 1 | AU30: 2 | AV30: =SUM(AS30,AU30) -> 3 | AZ30: =SUM(AW30,AY30) -> 0 | BA30: 0 | BB30: 1 | BC30: 1 | BD30: =SUM(BA30,BC30) -> 1 | BH30: =SUM(BE30,BG30) -> 0 | BI30: 0 | BJ30: 1 | BK30: 1 | BL30: =SUM(BI30,BK30) -> 1 | BM30: 0 | BN30: 1 | BO30: 0 | BP30: =SUM(BM30,BO30) -> 0 | BQ30: 3 | BR30: 4 | BS30: 3 | BT30: =SUM(BQ30,BS30) -> 6 | CJ30: =SUM(CG30,CI30) -> 0 | CN30: =SUM(CK30,CM30) -> 0 | CR30: =SUM(CO30,CQ30) -> 0
A31: 27 | C31: 47 | D31: Stephen Rafuse | E31: Blue Storm | F31: 9 | G31: 6 | H31: 3 | I31: 1 | J31: =SUM(G31:I31) -> 10 | K31: 1 | L31: 2 | Q31: 4 | R31: 5 | T31: =(Q31*2+S31)/(SUM(Q31:S31)*2) -> 0.4444444444 | U31: 32 | V31: 44 | AN31: =SUM(AK31,AM31) -> 0 | AO31: 1 | AP31: 1 | AQ31: 1 | AR31: =SUM(AO31,AQ31) -> 2 | AS31: 0 | AT31: 1 | AU31: 1 | AV31: =SUM(AS31,AU31) -> 1 | AW31: 3 | AX31: 1 | AY31: 0 | AZ31: =SUM(AW31,AY31) -> 3 | BA31: 0 | BB31: 1 | BC31: 2 | BD31: =SUM(BA31,BC31) -> 2 | BH31: =SUM(BE31,BG31) -> 0 | BI31: 1 | BJ31: 3 | BK31: 0 | BL31: =SUM(BI31,BK31) -> 1 | BP31: =SUM(BM31,BO31) -> 0 | BQ31: 1 | BR31: 1 | BS31: 0 | BT31: =SUM(BQ31,BS31) -> 1 | BU31: 0 | BV31: 1 | BW31: 0 | CJ31: =SUM(CG31,CI31) -> 0 | CN31: =SUM(CK31,CM31) -> 0 | CR31: =SUM(CO31,CQ31) -> 0
A32: 28 | C32: 35 | D32: Jamie Carson | E32: Purple Heys | F32: 9 | G32: 5 | H32: 2 | I32: 3 | J32: =SUM(G32:I32) -> 10 | Q32: 4 | R32: 4 | S32: 1 | T32: =(Q32*2+S32)/(SUM(Q32:S32)*2) -> 0.5 | U32: 31 | V32: 34 | AN32: =SUM(AK32,AM32) -> 0 | AO32: 0 | AP32: 1 | AQ32: 0 | AR32: =SUM(AO32,AQ32) -> 0 | AS32: 0 | AT32: 1 | AU32: 1 | AV32: =SUM(AS32,AU32) -> 1 | AW32: 1 | AX32: 1 | AY32: 1 | AZ32: =SUM(AW32,AY32) -> 2 | BA32: 0 | BB32: 1 | BC32: 1 | BD32: =SUM(BA32,BC32) -> 1 | BH32: =SUM(BE32,BG32) -> 0 | BL32: =SUM(BI32,BK32) -> 0 | BM32: 2 | BN32: 3 | BO32: 0 | BP32: =SUM(BM32,BO32) -> 2 | BQ32: 0 | BR32: 1 | BS32: 1 | BT32: =SUM(BQ32,BS32) -> 1 | BU32: 2 | BV32: 1 | BW32: 1 | CJ32: =SUM(CG32,CI32) -> 0 | CN32: =SUM(CK32,CM32) -> 0 | CR32: =SUM(CO32,CQ32) -> 0
A33: 29 | C33: 17 | D33: Wayne Helpard | E33: White Lightning | F33: 9 | G33: 4 | H33: 3 | I33: 3 | J33: =SUM(G33:I33) -> 10 | R33: 8 | S33: 1 | T33: =(Q33*2+S33)/(SUM(Q33:S33)*2) -> 0.05555555556 | U33: 24 | V33: 66 | AK33: 1 | AL33: 1 | AM33: 0 | AN33: =SUM(AK33,AM33) -> 1 | AR33: =SUM(AO33,AQ33) -> 0 | AS33: 1 | AT33: 3 | AU33: 2 | AV33: =SUM(AS33,AU33) -> 3 | AW33: 1 | AX33: 1 | AY33: 1 | AZ33: =SUM(AW33,AY33) -> 2 | BA33: 1 | BB33: 1 | BC33: 1 | BD33: =SUM(BA33,BC33) -> 2 | BH33: =SUM(BE33,BG33) -> 0 | BI33: 0 | BJ33: 1 | BK33: 0 | BL33: =SUM(BI33,BK33) -> 0 | BM33: 0 | BN33: 1 | BO33: 1 | BP33: =SUM(BM33,BO33) -> 1 | BQ33: 0 | BR33: 1 | BS33: 1 | BT33: =SUM(BQ33,BS33) -> 1 | CJ33: =SUM(CG33,CI33) -> 0 | CN33: =SUM(CK33,CM33) -> 0 | CR33: =SUM(CO33,CQ33) -> 0
A34: 30 | C34: 67 | D34: Tim O'Leary | E34: Red Light District | F34: 6 | G34: 4 | H34: 2 | I34: 4 | J34: =SUM(G34:I34) -> 10 | K34: 1 | L34: 2 | Q34: 3 | R34: 3 | T34: =(Q34*2+S34)/(SUM(Q34:S34)*2) -> 0.5 | U34: 27 | V34: 29 | AN34: =SUM(AK34,AM34) -> 0 | AR34: =SUM(AO34,AQ34) -> 0 | AV34: =SUM(AS34,AU34) -> 0 | AW34: 1 | AX34: 2 | AY34: 1 | AZ34: =SUM(AW34,AY34) -> 2 | BA34: 0 | BB34: 1 | BC34: 1 | BD34: =SUM(BA34,BC34) -> 1 | BH34: =SUM(BE34,BG34) -> 0 | BI34: 2 | BJ34: 1 | BK34: 1 | BL34: =SUM(BI34,BK34) -> 3 | BM34: 0 | BN34: 1 | BO34: 1 | BP34: =SUM(BM34,BO34) -> 1 | BQ34: 1 | BR34: 1 | BS34: 2 | BT34: =SUM(BQ34,BS34) -> 3 | CJ34: =SUM(CG34,CI34) -> 0 | CN34: =SUM(CK34,CM34) -> 0 | CR34: =SUM(CO34,CQ34) -> 0
A35: 31 | C35: 31 | D35: Mike Connor | E35: Purple Heys | F35: 9 | G35: 3 | H35: 5 | I35: 2 | J35: =SUM(G35:I35) -> 10 | K35: 1 | L35: 1 | Q35: 4 | R35: 4 | S35: 1 | T35: =(Q35*2+S35)/(SUM(Q35:S35)*2) -> 0.5 | U35: 31 | V35: 34 | AN35: =SUM(AK35,AM35) -> 0 | AO35: 0 | AP35: 1 | AQ35: 1 | AR35: =SUM(AO35,AQ35) -> 1 | AS35: 0 | AT35: 1 | AU35: 2 | AV35: =SUM(AS35,AU35) -> 2 | AW35: 0 | AX35: 1 | AY35: 1 | AZ35: =SUM(AW35,AY35) -> 1 | BA35: 1 | BB35: 1 | BC35: 1 | BD35: =SUM(BA35,BC35) -> 2 | BH35: =SUM(BE35,BG35) -> 0 | BL35: =SUM(BI35,BK35) -> 0 | BM35: 1 | BN35: 3 | BO35: 1 | BP35: =SUM(BM35,BO35) -> 2 | BQ35: 0 | BR35: 1 | BS35: 0 | BT35: =SUM(BQ35,BS35) -> 0 | BU35: 1 | BV35: 1 | BW35: 1 | CJ35: =SUM(CG35,CI35) -> 0 | CN35: =SUM(CK35,CM35) -> 0 | CR35: =SUM(CO35,CQ35) -> 0
A36: 32 | C36: 22 | D36: Doug Virtue | E36: Slashing Pumpkins | F36: 9 | G36: 0 | H36: 4 | I36: 6 | J36: =SUM(G36:I36) -> 10 | L36: 2 | P36: 1 | Q36: 8 | R36: 1 | T36: =(Q36*2+S36)/(SUM(Q36:S36)*2) -> 0.8888888889 | U36: 52 | V36: 26 | AK36: 0 | AL36: 1 | AM36: 1 | AN36: =SUM(AK36,AM36) -> 1 | AO36: 0 | AP36: 1 | AQ36: 1 | AR36: =SUM(AO36,AQ36) -> 1 | AV36: =SUM(AS36,AU36) -> 0 | AW36: 0 | AX36: 1 | AY36: 0 | AZ36: =SUM(AW36,AY36) -> 0 | BA36: 0 | BB36: 1 | BC36: 2 | BD36: =SUM(BA36,BC36) -> 2 | BH36: =SUM(BE36,BG36) -> 0 | BI36: 0 | BJ36: 1 | BK36: 0 | BL36: =SUM(BI36,BK36) -> 0 | BM36: 0 | BN36: 2 | BO36: 2 | BP36: =SUM(BM36,BO36) -> 2 | BQ36: 0 | BR36: 1 | BS36: 1 | BT36: =SUM(BQ36,BS36) -> 1 | BY36: 0 | BZ36: 1 | CA36: 3 | CJ36: =SUM(CG36,CI36) -> 0 | CN36: =SUM(CK36,CM36) -> 0 | CR36: =SUM(CO36,CQ36) -> 0
A37: 33 | C37: 28 | D37: Trevor Graham | E37: Slashing Pumpkins | F37: 9 | G37: 2 | H37: 2 | I37: 5 | J37: =SUM(G37:I37) -> 9 | L37: 1 | P37: 1 | Q37: 8 | R37: 1 | T37: =(Q37*2+S37)/(SUM(Q37:S37)*2) -> 0.8888888889 | U37: 52 | V37: 26 | AK37: 0 | AL37: 1 | AM37: 0 | AN37: =SUM(AK37,AM37) -> 0 | AO37: 1 | AP37: 1 | AQ37: 0 | AR37: =SUM(AO37,AQ37) -> 1 | AV37: =SUM(AS37,AU37) -> 0 | AW37: 0 | AX37: 1 | AY37: 0 | AZ37: =SUM(AW37,AY37) -> 0 | BA37: 0 | BB37: 1 | BC37: 1 | BD37: =SUM(BA37,BC37) -> 1 | BH37: =SUM(BE37,BG37) -> 0 | BI37: 0 | BJ37: 1 | BK37: 2 | BL37: =SUM(BI37,BK37) -> 2 | BM37: 0 | BN37: 2 | BO37: 1 | BP37: =SUM(BM37,BO37) -> 1 | BQ37: 0 | BR37: 1 | BS37: 1 | BT37: =SUM(BQ37,BS37) -> 1 | BY37: 1 | BZ37: 1 | CA37: 2 | CJ37: =SUM(CG37,CI37) -> 0 | CN37: =SUM(CK37,CM37) -> 0 | CR37: =SUM(CO37,CQ37) -> 0
A38: 34 | C38: 43 | D38: Matthew Petitpas | E38: Blue Storm | F38: 9 | G38: 6 | H38: 2 | I38: 0 | J38: =SUM(G38:I38) -> 8 | K38: 1 | Q38: 4 | R38: 5 | T38: =(Q38*2+S38)/(SUM(Q38:S38)*2) -> 0.4444444444 | U38: 32 | V38: 44 | AN38: =SUM(AK38,AM38) -> 0 | AO38: 1 | AP38: 1 | AQ38: 0 | AR38: =SUM(AO38,AQ38) -> 1 | AS38: 1 | AT38: 1 | AU38: 1 | AV38: =SUM(AS38,AU38) -> 2 | AW38: 0 | AX38: 1 | AY38: 0 | AZ38: =SUM(AW38,AY38) -> 0 | BA38: 1 | BB38: 1 | BC38: 1 | BD38: =SUM(BA38,BC38) -> 2 | BH38: =SUM(BE38,BG38) -> 0 | BI38: 1 | BJ38: 3 | BK38: 0 | BL38: =SUM(BI38,BK38) -> 1 | BP38: =SUM(BM38,BO38) -> 0 | BQ38: 1 | BR38: 1 | BS38: 0 | BT38: =SUM(BQ38,BS38) -> 1 | BU38: 1 | BV38: 1 | BW38: 0 | CJ38: =SUM(CG38,CI38) -> 0 | CN38: =SUM(CK38,CM38) -> 0 | CR38: =SUM(CO38,CQ38) -> 0
A39: 35 | C39: 24 | D39: John Stewart | E39: Slashing Pumpkins | F39: 9 | G39: 3 | H39: 4 | I39: 1 | J39: =SUM(G39:I39) -> 8 | K39: 1 | O39: 1 | P39: 1 | Q39: 8 | R39: 1 | T39: =(Q39*2+S39)/(SUM(Q39:S39)*2) -> 0.8888888889 | U39: 52 | V39: 26 | AK39: 0 | AL39: 1 | AM39: 0 | AN39: =SUM(AK39,AM39) -> 0 | AO39: 1 | AP39: 1 | AQ39: 1 | AR39: =SUM(AO39,AQ39) -> 2 | AV39: =SUM(AS39,AU39) -> 0 | AW39: 0 | AX39: 1 | AY39: 0 | AZ39: =SUM(AW39,AY39) -> 0 | BA39: 2 | BB39: 1 | BC39: 0 | BD39: =SUM(BA39,BC39) -> 2 | BH39: =SUM(BE39,BG39) -> 0 | BI39: 0 | BJ39: 1 | BK39: 0 | BL39: =SUM(BI39,BK39) -> 0 | BM39: 0 | BN39: 2 | BO39: 2 | BP39: =SUM(BM39,BO39) -> 2 | BQ39: 0 | BR39: 1 | BS39: 0 | BT39: =SUM(BQ39,BS39) -> 0 | BY39: 0 | BZ39: 1 | CA39: 2 | CJ39: =SUM(CG39,CI39) -> 0 | CN39: =SUM(CK39,CM39) -> 0 | CR39: =SUM(CO39,CQ39) -> 0
A40: 36 | C40: 66 | D40: Sly Villenueve | E40: Red Light District | F40: 3 | G40: 3 | H40: 4 | I40: 0 | J40: =SUM(G40:I40) -> 7 | L40: 1 | Q40: 2 | R40: 1 | T40: =(Q40*2+S40)/(SUM(Q40:S40)*2) -> 0.6666666667 | U40: 15 | V40: 10 | AN40: =SUM(AK40,AM40) -> 0 | AR40: =SUM(AO40,AQ40) -> 0 | AV40: =SUM(AS40,AU40) -> 0 | AW40: 0 | AX40: 1 | AY40: 0 | AZ40: =SUM(AW40,AY40) -> 0 | BD40: =SUM(BA40,BC40) -> 0 | BH40: =SUM(BE40,BG40) -> 0 | BI40: 2 | BJ40: 1 | BK40: 3 | BL40: =SUM(BI40,BK40) -> 5 | BM40: 1 | BN40: 1 | BO40: 1 | BP40: =SUM(BM40,BO40) -> 2 | BT40: =SUM(BQ40,BS40) -> 0 | CJ40: =SUM(CG40,CI40) -> 0 | CN40: =SUM(CK40,CM40) -> 0 | CR40: =SUM(CO40,CQ40) -> 0
A41: 37 | C41: 52 | D41: Chris Benoit | E41: Golden Panthers | F41: 9 | G41: 2 | H41: 4 | I41: 1 | J41: =SUM(G41:I41) -> 7 | L41: 1 | M41: 1 | Q41: 4 | R41: 3 | S41: 2 | T41: =(Q41*2+S41)/(SUM(Q41:S41)*2) -> 0.5555555556 | U41: 44 | V41: 32 | AN41: =SUM(AK41,AM41) -> 0 | AR41: =SUM(AO41,AQ41) -> 0 | AS41: 0 | AT41: 1 | AU41: 0 | AV41: =SUM(AS41,AU41) -> 0 | AW41: 0 | AX41: 1 | AY41: 1 | AZ41: =SUM(AW41,AY41) -> 1 | BA41: 1 | BB41: 3 | BC41: 0 | BD41: =SUM(BA41,BC41) -> 1 | BH41: =SUM(BE41,BG41) -> 0 | BI41: 1 | BJ41: 1 | BK41: 0 | BL41: =SUM(BI41,BK41) -> 1 | BM41: 0 | BN41: 1 | BO41: 1 | BP41: =SUM(BM41,BO41) -> 1 | BQ41: 0 | BR41: 1 | BS41: 0 | BT41: =SUM(BQ41,BS41) -> 0 | BY41: 0 | BZ41: 1 | CA41: 3 | CJ41: =SUM(CG41,CI41) -> 0 | CN41: =SUM(CK41,CM41) -> 0 | CR41: =SUM(CO41,CQ41) -> 0
A42: 38 | C42: 13 | D42: Larry Condly | E42: White Lightning | F42: 9 | G42: 2 | H42: 2 | I42: 3 | J42: =SUM(G42:I42) -> 7 | R42: 8 | S42: 1 | T42: =(Q42*2+S42)/(SUM(Q42:S42)*2) -> 0.05555555556 | U42: 24 | V42: 66 | AK42: 0 | AL42: 1 | AM42: 0 | AN42: =SUM(AK42,AM42) -> 0 | AR42: =SUM(AO42,AQ42) -> 0 | AS42: 1 | AT42: 3 | AU42: 0 | AV42: =SUM(AS42,AU42) -> 1 | AW42: 1 | AX42: 1 | AY42: 0 | AZ42: =SUM(AW42,AY42) -> 1 | BA42: 0 | BB42: 1 | BC42: 2 | BD42: =SUM(BA42,BC42) -> 2 | BH42: =SUM(BE42,BG42) -> 0 | BI42: 0 | BJ42: 1 | BK42: 1 | BL42: =SUM(BI42,BK42) -> 1 | BM42: 0 | BN42: 1 | BO42: 0 | BP42: =SUM(BM42,BO42) -> 0 | BQ42: 0 | BR42: 1 | BS42: 2 | BT42: =SUM(BQ42,BS42) -> 2 | CJ42: =SUM(CG42,CI42) -> 0 | CN42: =SUM(CK42,CM42) -> 0 | CR42: =SUM(CO42,CQ42) -> 0
A43: 39 | C43: 63 | D43: Harold Plante | E43: Red Light District | F43: 9 | G43: 2 | H43: 1 | I43: 4 | J43: =SUM(G43:I43) -> 7 | Q43: 3 | R43: 5 | S43: 1 | T43: =(Q43*2+S43)/(SUM(Q43:S43)*2) -> 0.3888888889 | U43: 38 | V43: 44 | AN43: =SUM(AK43,AM43) -> 0 | AO43: 1 | AP43: 1 | AQ43: 0 | AR43: =SUM(AO43,AQ43) -> 1 | AS43: 0 | AT43: 1 | AU43: 0 | AV43: =SUM(AS43,AU43) -> 0 | AW43: 0 | AX43: 3 | AY43: 2 | AZ43: =SUM(AW43,AY43) -> 2 | BA43: 0 | BB43: 1 | BC43: 0 | BD43: =SUM(BA43,BC43) -> 0 | BH43: =SUM(BE43,BG43) -> 0 | BI43: 0 | BJ43: 1 | BK43: 1 | BL43: =SUM(BI43,BK43) -> 1 | BM43: 0 | BN43: 1 | BO43: 2 | BP43: =SUM(BM43,BO43) -> 2 | BQ43: 1 | BR43: 1 | BS43: 0 | BT43: =SUM(BQ43,BS43) -> 1 | CJ43: =SUM(CG43,CI43) -> 0 | CN43: =SUM(CK43,CM43) -> 0 | CR43: =SUM(CO43,CQ43) -> 0
A44: 40 | C44: 86 | D44: Scott McLean | E44: The Green Machine | F44: 6 | G44: 5 | H44: 0 | I44: 0 | J44: =SUM(G44:I44) -> 5 | Q44: 1 | R44: 5 | T44: =(Q44*2+S44)/(SUM(Q44:S44)*2) -> 0.1666666667 | U44: 20 | V44: 27 | AN44: =SUM(AK44,AM44) -> 0 | AR44: =SUM(AO44,AQ44) -> 0 | AV44: =SUM(AS44,AU44) -> 0 | AW44: 0 | AX44: 1 | AY44: 0 | AZ44: =SUM(AW44,AY44) -> 0 | BD44: =SUM(BA44,BC44) -> 0 | BH44: =SUM(BE44,BG44) -> 0 | BI44: 1 | BJ44: 1 | BK44: 0 | BL44: =SUM(BI44,BK44) -> 1 | BM44: 2 | BN44: 1 | BO44: 0 | BP44: =SUM(BM44,BO44) -> 2 | BQ44: 1 | BR44: 2 | BS44: 0 | BT44: =SUM(BQ44,BS44) -> 1 | BU44: 1 | BV44: 1 | BW44: 0 | CJ44: =SUM(CG44,CI44) -> 0 | CN44: =SUM(CK44,CM44) -> 0 | CR44: =SUM(CO44,CQ44) -> 0
A45: 41 | C45: 76 | D45: Dwayne Johnson | E45: Retribution | F45: 9 | G45: 2 | H45: 2 | I45: 2 | J45: =SUM(G45:I45) -> 6 | P45: 1 | Q45: 8 | R45: 1 | T45: =(Q45*2+S45)/(SUM(Q45:S45)*2) -> 0.8888888889 | U45: 60 | V45: 30 | AN45: =SUM(AK45,AM45) -> 0 | AO45: 0 | AP45: 1 | AQ45: 1 | AR45: =SUM(AO45,AQ45) -> 1 | AS45: 0 | AT45: 1 | AU45: 0 | AV45: =SUM(AS45,AU45) -> 0 | AZ45: =SUM(AW45,AY45) -> 0 | BA45: 0 | BB45: 1 | BC45: 0 | BD45: =SUM(BA45,BC45) -> 0 | BH45: =SUM(BE45,BG45) -> 0 | BI45: 0 | BJ45: 1 | BK45: 1 | BL45: =SUM(BI45,BK45) -> 1 | BM45: 0 | BN45: 1 | BO45: 0 | BP45: =SUM(BM45,BO45) -> 0 | BQ45: 2 | BR45: 4 | BS45: 2 | BT45: =SUM(BQ45,BS45) -> 4 | CJ45: =SUM(CG45,CI45) -> 0 | CN45: =SUM(CK45,CM45) -> 0 | CR45: =SUM(CO45,CQ45) -> 0
A46: 42 | C46: 48 | D46: Yvon Mayer | E46: Blue Storm | F46: 9 | G46: 2 | H46: 2 | I46: 2 | J46: =SUM(G46:I46) -> 6 | Q46: 4 | R46: 5 | T46: =(Q46*2+S46)/(SUM(Q46:S46)*2) -> 0.4444444444 | U46: 32 | V46: 44 | AN46: =SUM(AK46,AM46) -> 0 | AO46: 1 | AP46: 1 | AQ46: 2 | AR46: =SUM(AO46,AQ46) -> 3 | AS46: 0 | AT46: 1 | AU46: 0 | AV46: =SUM(AS46,AU46) -> 0 | AW46: 0 | AX46: 1 | AY46: 0 | AZ46: =SUM(AW46,AY46) -> 0 | BA46: 0 | BB46: 1 | BC46: 1 | BD46: =SUM(BA46,BC46) -> 1 | BH46: =SUM(BE46,BG46) -> 0 | BI46: 1 | BJ46: 3 | BK46: 1 | BL46: =SUM(BI46,BK46) -> 2 | BP46: =SUM(BM46,BO46) -> 0 | BQ46: 0 | BR46: 1 | BS46: 0 | BT46: =SUM(BQ46,BS46) -> 0 | BU46: 0 | BV46: 1 | BW46: 0 | CJ46: =SUM(CG46,CI46) -> 0 | CN46: =SUM(CK46,CM46) -> 0 | CR46: =SUM(CO46,CQ46) -> 0
A47: 43 | C47: 82 | D47: Bryan Letcher | E47: The Green Machine | F47: 9 | G47: 1 | H47: 4 | I47: 2 | J47: =SUM(G47:I47) -> 7 | P47: 1 | Q47: 2 | R47: 6 | S47: 1 | T47: =(Q47*2+S47)/(SUM(Q47:S47)*2) -> 0.2777777778 | U47: 35 | V47: 40 | AK47: 0 | AL47: 1 | AM47: 1 | AN47: =SUM(AK47,AM47) -> 1 | AR47: =SUM(AO47,AQ47) -> 0 | AS47: 0 | AT47: 1 | AU47: 1 | AV47: =SUM(AS47,AU47) -> 1 | AW47: 0 | AX47: 1 | AY47: 0 | AZ47: =SUM(AW47,AY47) -> 0 | BD47: =SUM(BA47,BC47) -> 0 | BH47: =SUM(BE47,BG47) -> 0 | BI47: 0 | BJ47: 1 | BK47: 1 | BL47: =SUM(BI47,BK47) -> 1 | BM47: 0 | BN47: 1 | BO47: 0 | BP47: =SUM(BM47,BO47) -> 0 | BQ47: 0 | BR47: 2 | BS47: 0 | BT47: =SUM(BQ47,BS47) -> 0 | BU47: 0 | BV47: 1 | BW47: 1 | BY47: 1 | BZ47: 1 | CA47: 2 | CJ47: =SUM(CG47,CI47) -> 0 | CN47: =SUM(CK47,CM47) -> 0 | CR47: =SUM(CO47,CQ47) -> 0
A48: 44 | C48: 56 | D48: Josh Sewell | E48: Golden Panthers | F48: 9 | G48: 4 | H48: 1 | I48: 0 | J48: =SUM(G48:I48) -> 5 | O48: 2 | Q48: 4 | R48: 3 | S48: 2 | T48: =(Q48*2+S48)/(SUM(Q48:S48)*2) -> 0.5555555556 | U48: 44 | V48: 32 | AN48: =SUM(AK48,AM48) -> 0 | AR48: =SUM(AO48,AQ48) -> 0 | AS48: 0 | AT48: 1 | AU48: 0 | AV48: =SUM(AS48,AU48) -> 0 | AW48: 0 | AX48: 1 | AY48: 0 | AZ48: =SUM(AW48,AY48) -> 0 | BA48: 1 | BB48: 3 | BC48: 0 | BD48: =SUM(BA48,BC48) -> 1 | BH48: =SUM(BE48,BG48) -> 0 | BI48: 1 | BJ48: 1 | BK48: 0 | BL48: =SUM(BI48,BK48) -> 1 | BM48: 1 | BN48: 1 | BO48: 0 | BP48: =SUM(BM48,BO48) -> 1 | BQ48: 0 | BR48: 1 | BS48: 0 | BT48: =SUM(BQ48,BS48) -> 0 | BY48: 1 | BZ48: 1 | CA48: 1 | CJ48: =SUM(CG48,CI48) -> 0 | CN48: =SUM(CK48,CM48) -> 0 | CR48: =SUM(CO48,CQ48) -> 0
A49: 45 | C49: 58 | D49: Travis Muxworthy | E49: Golden Panthers | F49: 9 | G49: 2 | H49: 2 | I49: 1 | J49: =SUM(G49:I49) -> 5 | P49: 1 | Q49: 4 | R49: 3 | S49: 2 | T49: =(Q49*2+S49)/(SUM(Q49:S49)*2) -> 0.5555555556 | U49: 44 | V49: 32 | AN49: =SUM(AK49,AM49) -> 0 | AR49: =SUM(AO49,AQ49) -> 0 | AS49: 0 | AT49: 1 | AU49: 0 | AV49: =SUM(AS49,AU49) -> 0 | AW49: 0 | AX49: 1 | AY49: 0 | AZ49: =SUM(AW49,AY49) -> 0 | BA49: 0 | BB49: 3 | BC49: 0 | BD49: =SUM(BA49,BC49) -> 0 | BH49: =SUM(BE49,BG49) -> 0 | BI49: 0 | BJ49: 1 | BK49: 0 | BL49: =SUM(BI49,BK49) -> 0 | BM49: 0 | BN49: 1 | BO49: 2 | BP49: =SUM(BM49,BO49) -> 2 | BQ49: 0 | BR49: 1 | BS49: 0 | BT49: =SUM(BQ49,BS49) -> 0 | BY49: 2 | BZ49: 1 | CA49: 1 | CJ49: =SUM(CG49,CI49) -> 0 | CN49: =SUM(CK49,CM49) -> 0 | CR49: =SUM(CO49,CQ49) -> 0
A50: 46 | C50: 34 | D50: Christian Haines | E50: Purple Heys | F50: 9 | G50: 1 | H50: 3 | I50: 1 | J50: =SUM(G50:I50) -> 5 | K50: 1 | Q50: 4 | R50: 4 | S50: 1 | T50: =(Q50*2+S50)/(SUM(Q50:S50)*2) -> 0.5 | U50: 31 | V50: 34 | AN50: =SUM(AK50,AM50) -> 0 | AO50: 0 | AP50: 1 | AQ50: 0 | AR50: =SUM(AO50,AQ50) -> 0 | AS50: 0 | AT50: 1 | AU50: 0 | AV50: =SUM(AS50,AU50) -> 0 | AW50: 0 | AX50: 1 | AY50: 1 | AZ50: =SUM(AW50,AY50) -> 1 | BA50: 0 | BB50: 1 | BC50: 0 | BD50: =SUM(BA50,BC50) -> 0 | BH50: =SUM(BE50,BG50) -> 0 | BL50: =SUM(BI50,BK50) -> 0 | BM50: 1 | BN50: 3 | BO50: 3 | BP50: =SUM(BM50,BO50) -> 4 | BQ50: 0 | BR50: 1 | BS50: 0 | BT50: =SUM(BQ50,BS50) -> 0 | BU50: 0 | BV50: 1 | BW50: 0 | CJ50: =SUM(CG50,CI50) -> 0 | CN50: =SUM(CK50,CM50) -> 0 | CR50: =SUM(CO50,CQ50) -> 0
A51: 47 | C51: 46 | D51: Rakesh Rajput | E51: Blue Storm | F51: 6 | G51: 0 | H51: 4 | I51: 1 | J51: =SUM(G51:I51) -> 5 | L51: 1 | Q51: 3 | R51: 3 | T51: =(Q51*2+S51)/(SUM(Q51:S51)*2) -> 0.5 | U51: 21 | V51: 29 | AN51: =SUM(AK51,AM51) -> 0 | AR51: =SUM(AO51,AQ51) -> 0 | AV51: =SUM(AS51,AU51) -> 0 | AW51: 0 | AX51: 1 | AY51: 1 | AZ51: =SUM(AW51,AY51) -> 1 | BA51: 0 | BB51: 1 | BC51: 1 | BD51: =SUM(BA51,BC51) -> 1 | BH51: =SUM(BE51,BG51) -> 0 | BI51: 0 | BJ51: 2 | BK51: 1 | BL51: =SUM(BI51,BK51) -> 1 | BP51: =SUM(BM51,BO51) -> 0 | BQ51: 0 | BR51: 1 | BS51: 2 | BT51: =SUM(BQ51,BS51) -> 2 | BU51: 0 | BV51: 1 | BW51: 0 | CJ51: =SUM(CG51,CI51) -> 0 | CN51: =SUM(CK51,CM51) -> 0 | CR51: =SUM(CO51,CQ51) -> 0
A52: 48 | C52: 85 | D52: Ray Basque | E52: The Green Machine | F52: 9 | G52: 1 | H52: 3 | I52: 0 | J52: =SUM(G52:I52) -> 4 | L52: 1 | Q52: 2 | R52: 6 | S52: 1 | T52: =(Q52*2+S52)/(SUM(Q52:S52)*2) -> 0.2777777778 | U52: 35 | V52: 40 | AK52: 0 | AL52: 1 | AM52: 0 | AN52: =SUM(AK52,AM52) -> 0 | AR52: =SUM(AO52,AQ52) -> 0 | AS52: 0 | AT52: 1 | AU52: 0 | AV52: =SUM(AS52,AU52) -> 0 | AW52: 0 | AX52: 1 | AY52: 0 | AZ52: =SUM(AW52,AY52) -> 0 | BD52: =SUM(BA52,BC52) -> 0 | BH52: =SUM(BE52,BG52) -> 0 | BI52: 0 | BJ52: 1 | BK52: 0 | BL52: =SUM(BI52,BK52) -> 0 | BM52: 0 | BN52: 1 | BO52: 1 | BP52: =SUM(BM52,BO52) -> 1 | BQ52: 0 | BR52: 2 | BS52: 0 | BT52: =SUM(BQ52,BS52) -> 0 | BU52: 0 | BV52: 1 | BW52: 0 | BY52: 1 | BZ52: 1 | CA52: 2 | CJ52: =SUM(CG52,CI52) -> 0 | CN52: =SUM(CK52,CM52) -> 0 | CR52: =SUM(CO52,CQ52) -> 0
A53: 49 | C53: 78 | D53: Rene Pitre | E53: Retribution | F53: 9 | G53: 1 | H53: 2 | I53: 1 | J53: =SUM(G53:I53) -> 4 | Q53: 8 | R53: 1 | T53: =(Q53*2+S53)/(SUM(Q53:S53)*2) -> 0.8888888889 | U53: 60 | V53: 30 | AN53: =SUM(AK53,AM53) -> 0 | AO53: 0 | AP53: 1 | AQ53: 2 | AR53: =SUM(AO53,AQ53) -> 2 | AS53: 0 | AT53: 1 | AU53: 0 | AV53: =SUM(AS53,AU53) -> 0 | AZ53: =SUM(AW53,AY53) -> 0 | BA53: 0 | BB53: 1 | BC53: 0 | BD53: =SUM(BA53,BC53) -> 0 | BH53: =SUM(BE53,BG53) -> 0 | BI53: 0 | BJ53: 1 | BK53: 0 | BL53: =SUM(BI53,BK53) -> 0 | BM53: 0 | BN53: 1 | BO53: 0 | BP53: =SUM(BM53,BO53) -> 0 | BQ53: 1 | BR53: 4 | BS53: 1 | BT53: =SUM(BQ53,BS53) -> 2 | CJ53: =SUM(CG53,CI53) -> 0 | CN53: =SUM(CK53,CM53) -> 0 | CR53: =SUM(CO53,CQ53) -> 0
A54: 50 | C54: 33 | D54: Carl Brown | E54: Purple Heys | F54: 9 | G54: 1 | H54: 0 | I54: 3 | J54: =SUM(G54:I54) -> 4 | Q54: 4 | R54: 4 | S54: 1 | T54: =(Q54*2+S54)/(SUM(Q54:S54)*2) -> 0.5 | U54: 31 | V54: 34 | AN54: =SUM(AK54,AM54) -> 0 | AO54: 0 | AP54: 1 | AQ54: 1 | AR54: =SUM(AO54,AQ54) -> 1 | AS54: 0 | AT54: 1 | AU54: 0 | AV54: =SUM(AS54,AU54) -> 0 | AW54: 0 | AX54: 1 | AY54: 0 | AZ54: =SUM(AW54,AY54) -> 0 | BA54: 0 | BB54: 1 | BC54: 1 | BD54: =SUM(BA54,BC54) -> 1 | BH54: =SUM(BE54,BG54) -> 0 | BL54: =SUM(BI54,BK54) -> 0 | BM54: 1 | BN54: 3 | BO54: 1 | BP54: =SUM(BM54,BO54) -> 2 | BQ54: 0 | BR54: 1 | BS54: 0 | BT54: =SUM(BQ54,BS54) -> 0 | BU54: 0 | BV54: 1 | BW54: 0 | CJ54: =SUM(CG54,CI54) -> 0 | CN54: =SUM(CK54,CM54) -> 0 | CR54: =SUM(CO54,CQ54) -> 0
A55: 51 | C55: 84 | D55: Matthew Wedge | E55: The Green Machine | F55: 4 | G55: 2 | H55: 1 | I55: 0 | J55: =SUM(G55:I55) -> 3 | K55: 1 | Q55: 1 | R55: 3 | T55: =(Q55*2+S55)/(SUM(Q55:S55)*2) -> 0.25 | U55: 14 | V55: 17 | AN55: =SUM(AK55,AM55) -> 0 | AR55: =SUM(AO55,AQ55) -> 0 | AV55: =SUM(AS55,AU55) -> 0 | AW55: 0 | AX55: 1 | AY55: 0 | AZ55: =SUM(AW55,AY55) -> 0 | BD55: =SUM(BA55,BC55) -> 0 | BH55: =SUM(BE55,BG55) -> 0 | BL55: =SUM(BI55,BK55) -> 0 | BP55: =SUM(BM55,BO55) -> 0 | BQ55: 2 | BR55: 2 | BS55: 1 | BT55: =SUM(BQ55,BS55) -> 3 | BU55: 0 | BV55: 1 | BW55: 0 | CJ55: =SUM(CG55,CI55) -> 0 | CN55: =SUM(CK55,CM55) -> 0 | CR55: =SUM(CO55,CQ55) -> 0
A56: 52 | C56: 11 | D56: Darryl Moorcroft | E56: White Lightning | F56: 6 | G56: 2 | H56: 1 | I56: 0 | J56: =SUM(G56:I56) -> 3 | R56: 5 | S56: 1 | T56: =(Q56*2+S56)/(SUM(Q56:S56)*2) -> 0.08333333333 | U56: 19 | V56: 34 | AN56: =SUM(AK56,AM56) -> 0 | AR56: =SUM(AO56,AQ56) -> 0 | AS56: 0 | AT56: 2 | AU56: 0 | AV56: =SUM(AS56,AU56) -> 0 | AW56: 0 | AX56: 1 | AY56: 0 | AZ56: =SUM(AW56,AY56) -> 0 | BD56: =SUM(BA56,BC56) -> 0 | BH56: =SUM(BE56,BG56) -> 0 | BI56: 0 | BJ56: 1 | BK56: 0 | BL56: =SUM(BI56,BK56) -> 0 | BM56: 0 | BN56: 1 | BO56: 1 | BP56: =SUM(BM56,BO56) -> 1 | BQ56: 2 | BR56: 1 | BS56: 0 | BT56: =SUM(BQ56,BS56) -> 2 | CJ56: =SUM(CG56,CI56) -> 0 | CN56: =SUM(CK56,CM56) -> 0 | CR56: =SUM(CO56,CQ56) -> 0
A57: 53 | C57: 42 | D57: Garrett Ramey | E57: Blue Storm | F57: 3 | G57: 2 | H57: 1 | I57: 0 | J57: =SUM(G57:I57) -> 3 | Q57: 1 | R57: 2 | T57: =(Q57*2+S57)/(SUM(Q57:S57)*2) -> 0.3333333333 | U57: 12 | V57: 17 | AN57: =SUM(AK57,AM57) -> 0 | AR57: =SUM(AO57,AQ57) -> 0 | AV57: =SUM(AS57,AU57) -> 0 | AZ57: =SUM(AW57,AY57) -> 0 | BA57: 2 | BB57: 1 | BC57: 0 | BD57: =SUM(BA57,BC57) -> 2 | BH57: =SUM(BE57,BG57) -> 0 | BI57: 0 | BJ57: 1 | BK57: 0 | BL57: =SUM(BI57,BK57) -> 0 | BP57: =SUM(BM57,BO57) -> 0 | BT57: =SUM(BQ57,BS57) -> 0 | BU57: 0 | BV57: 1 | BW57: 1 | CJ57: =SUM(CG57,CI57) -> 0 | CN57: =SUM(CK57,CM57) -> 0 | CR57: =SUM(CO57,CQ57) -> 0
A58: 54 | C58: 38 | D58: Justin Lawson | E58: Purple Heys | F58: 9 | G58: 2 | H58: 0 | I58: 1 | J58: =SUM(G58:I58) -> 3 | Q58: 4 | R58: 4 | S58: 1 | T58: =(Q58*2+S58)/(SUM(Q58:S58)*2) -> 0.5 | U58: 31 | V58: 34 | AN58: =SUM(AK58,AM58) -> 0 | AO58: 1 | AP58: 1 | AQ58: 0 | AR58: =SUM(AO58,AQ58) -> 1 | AS58: 0 | AT58: 1 | AU58: 0 | AV58: =SUM(AS58,AU58) -> 0 | AW58: 0 | AX58: 1 | AY58: 0 | AZ58: =SUM(AW58,AY58) -> 0 | BA58: 0 | BB58: 1 | BC58: 0 | BD58: =SUM(BA58,BC58) -> 0 | BH58: =SUM(BE58,BG58) -> 0 | BL58: =SUM(BI58,BK58) -> 0 | BM58: 1 | BN58: 3 | BO58: 1 | BP58: =SUM(BM58,BO58) -> 2 | BQ58: 0 | BR58: 1 | BS58: 0 | BT58: =SUM(BQ58,BS58) -> 0 | BU58: 0 | BV58: 1 | BW58: 0 | CJ58: =SUM(CG58,CI58) -> 0 | CN58: =SUM(CK58,CM58) -> 0 | CR58: =SUM(CO58,CQ58) -> 0
A59: 55 | C59: 44 | D59: Michael Luff | E59: Blue Storm | F59: 6 | G59: 1 | H59: 0 | I59: 2 | J59: =SUM(G59:I59) -> 3 | Q59: 3 | R59: 3 | T59: =(Q59*2+S59)/(SUM(Q59:S59)*2) -> 0.5 | U59: 21 | V59: 29 | AN59: =SUM(AK59,AM59) -> 0 | AR59: =SUM(AO59,AQ59) -> 0 | AV59: =SUM(AS59,AU59) -> 0 | AW59: 0 | AX59: 1 | AY59: 0 | AZ59: =SUM(AW59,AY59) -> 0 | BA59: 1 | BB59: 1 | BC59: 1 | BD59: =SUM(BA59,BC59) -> 2 | BH59: =SUM(BE59,BG59) -> 0 | BI59: 0 | BJ59: 2 | BK59: 0 | BL59: =SUM(BI59,BK59) -> 0 | BP59: =SUM(BM59,BO59) -> 0 | BQ59: 0 | BR59: 1 | BS59: 0 | BT59: =SUM(BQ59,BS59) -> 0 | BU59: 0 | BV59: 1 | BW59: 1 | CJ59: =SUM(CG59,CI59) -> 0 | CN59: =SUM(CK59,CM59) -> 0 | CR59: =SUM(CO59,CQ59) -> 0
A60: 56 | C60: 16 | D60: Mike Wood | E60: White Lightning | F60: 5 | G60: 1 | H60: 1 | I60: 0 | J60: =SUM(G60:I60) -> 2 | R60: 5 | T60: =(Q60*2+S60)/(SUM(Q60:S60)*2) -> 0 | U60: 10 | V60: 33 | AK60: 0 | AL60: 1 | AM60: 0 | AN60: =SUM(AK60,AM60) -> 0 | AR60: =SUM(AO60,AQ60) -> 0 | AS60: 0 | AT60: 1 | AU60: 0 | AV60: =SUM(AS60,AU60) -> 0 | AZ60: =SUM(AW60,AY60) -> 0 | BA60: 0 | BB60: 1 | BC60: 1 | BD60: =SUM(BA60,BC60) -> 1 | BH60: =SUM(BE60,BG60) -> 0 | BI60: 0 | BJ60: 1 | BK60: 0 | BL60: =SUM(BI60,BK60) -> 0 | BM60: 1 | BN60: 1 | BO60: 0 | BP60: =SUM(BM60,BO60) -> 1 | BT60: =SUM(BQ60,BS60) -> 0 | CJ60: =SUM(CG60,CI60) -> 0 | CN60: =SUM(CK60,CM60) -> 0 | CR60: =SUM(CO60,CQ60) -> 0
A61: 57 | C61: 12 | D61: Dave MacKenzie | E61: White Lightning | J61: =SUM(G61:I61) -> 0 | T61: =(Q61*2+S61)/(SUM(Q61:S61)*2) ->  | AN61: =SUM(AK61,AM61) -> 0 | AR61: =SUM(AO61,AQ61) -> 0 | AV61: =SUM(AS61,AU61) -> 0 | AZ61: =SUM(AW61,AY61) -> 0 | BD61: =SUM(BA61,BC61) -> 0 | BH61: =SUM(BE61,BG61) -> 0 | BL61: =SUM(BI61,BK61) -> 0 | BP61: =SUM(BM61,BO61) -> 0 | BT61: =SUM(BQ61,BS61) -> 0 | CJ61: =SUM(CG61,CI61) -> 0 | CN61: =SUM(CK61,CM61) -> 0 | CR61: =SUM(CO61,CQ61) -> 0
A62: 58 | C62: 87 | D62: Scott Praught | E62: The Green Machine | F62: 6 | G62: 1 | H62: 0 | I62: 1 | J62: =SUM(G62:I62) -> 2 | Q62: 1 | R62: 5 | T62: =(Q62*2+S62)/(SUM(Q62:S62)*2) -> 0.1666666667 | U62: 20 | V62: 27 | AN62: =SUM(AK62,AM62) -> 0 | AR62: =SUM(AO62,AQ62) -> 0 | AV62: =SUM(AS62,AU62) -> 0 | AW62: 0 | AX62: 1 | AY62: 0 | AZ62: =SUM(AW62,AY62) -> 0 | BD62: =SUM(BA62,BC62) -> 0 | BH62: =SUM(BE62,BG62) -> 0 | BI62: 0 | BJ62: 1 | BK62: 0 | BL62: =SUM(BI62,BK62) -> 0 | BM62: 0 | BN62: 1 | BO62: 0 | BP62: =SUM(BM62,BO62) -> 0 | BQ62: 1 | BR62: 2 | BS62: 0 | BT62: =SUM(BQ62,BS62) -> 1 | BU62: 0 | BV62: 1 | BW62: 1 | CJ62: =SUM(CG62,CI62) -> 0 | CN62: =SUM(CK62,CM62) -> 0 | CR62: =SUM(CO62,CQ62) -> 0
A63: 59 | C63: 65 | D63: Matt Davis | E63: Red Light District | F63: 6 | G63: 0 | H63: 1 | I63: 1 | J63: =SUM(G63:I63) -> 2 | Q63: 1 | R63: 4 | S63: 1 | T63: =(Q63*2+S63)/(SUM(Q63:S63)*2) -> 0.25 | U63: 23 | V63: 34 | AN63: =SUM(AK63,AM63) -> 0 | AO63: 0 | AP63: 1 | AQ63: 1 | AR63: =SUM(AO63,AQ63) -> 1 | AS63: 0 | AT63: 1 | AU63: 0 | AV63: =SUM(AS63,AU63) -> 0 | AW63: 0 | AX63: 2 | AY63: 0 | AZ63: =SUM(AW63,AY63) -> 0 | BA63: 0 | BB63: 1 | BC63: 0 | BD63: =SUM(BA63,BC63) -> 0 | BH63: =SUM(BE63,BG63) -> 0 | BL63: =SUM(BI63,BK63) -> 0 | BP63: =SUM(BM63,BO63) -> 0 | BQ63: 0 | BR63: 1 | BS63: 1 | BT63: =SUM(BQ63,BS63) -> 1 | CJ63: =SUM(CG63,CI63) -> 0 | CN63: =SUM(CK63,CM63) -> 0 | CR63: =SUM(CO63,CQ63) -> 0
A64: 60 | C64: 62 | D64: Cole Tweedy | E64: Red Light District | F64: 3 | G64: 1 | H64: 0 | I64: 0 | J64: =SUM(G64:I64) -> 1 | Q64: 1 | R64: 2 | T64: =(Q64*2+S64)/(SUM(Q64:S64)*2) -> 0.3333333333 | U64: 12 | V64: 19 | AN64: =SUM(AK64,AM64) -> 0 | AR64: =SUM(AO64,AQ64) -> 0 | AV64: =SUM(AS64,AU64) -> 0 | AW64: 0 | AX64: 1 | AY64: 0 | AZ64: =SUM(AW64,AY64) -> 0 | BA64: 0 | BB64: 1 | BC64: 0 | BD64: =SUM(BA64,BC64) -> 0 | BH64: =SUM(BE64,BG64) -> 0 | BL64: =SUM(BI64,BK64) -> 0 | BP64: =SUM(BM64,BO64) -> 0 | BQ64: 1 | BR64: 1 | BS64: 0 | BT64: =SUM(BQ64,BS64) -> 1 | CJ64: =SUM(CG64,CI64) -> 0 | CN64: =SUM(CK64,CM64) -> 0 | CR64: =SUM(CO64,CQ64) -> 0
A65: 61 | C65: 32 | D65: Ben Warren | E65: Purple Heys | F65: 5 | G65: 0 | H65: 0 | I65: 1 | J65: =SUM(G65:I65) -> 1 | Q65: 3 | R65: 1 | S65: 1 | T65: =(Q65*2+S65)/(SUM(Q65:S65)*2) -> 0.7 | U65: 21 | V65: 16 | AN65: =SUM(AK65,AM65) -> 0 | AR65: =SUM(AO65,AQ65) -> 0 | AS65: 0 | AT65: 1 | AU65: 0 | AV65: =SUM(AS65,AU65) -> 0 | AZ65: =SUM(AW65,AY65) -> 0 | BA65: 0 | BB65: 1 | BC65: 0 | BD65: =SUM(BA65,BC65) -> 0 | BH65: =SUM(BE65,BG65) -> 0 | BL65: =SUM(BI65,BK65) -> 0 | BM65: 0 | BN65: 2 | BO65: 1 | BP65: =SUM(BM65,BO65) -> 1 | BT65: =SUM(BQ65,BS65) -> 0 | BU65: 0 | BV65: 1 | BW65: 0 | CJ65: =SUM(CG65,CI65) -> 0 | CN65: =SUM(CK65,CM65) -> 0 | CR65: =SUM(CO65,CQ65) -> 0
A66: 62 | C66: 74 | D66: Darius Brenton | E66: Retribution | J66: =SUM(G66:I66) -> 0 | T66: =(Q66*2+S66)/(SUM(Q66:S66)*2) ->  | AN66: =SUM(AK66,AM66) -> 0 | AR66: =SUM(AO66,AQ66) -> 0 | AV66: =SUM(AS66,AU66) -> 0 | AZ66: =SUM(AW66,AY66) -> 0 | BD66: =SUM(BA66,BC66) -> 0 | BH66: =SUM(BE66,BG66) -> 0 | BL66: =SUM(BI66,BK66) -> 0 | BP66: =SUM(BM66,BO66) -> 0 | BT66: =SUM(BQ66,BS66) -> 0 | CJ66: =SUM(CG66,CI66) -> 0 | CN66: =SUM(CK66,CM66) -> 0 | CR66: =SUM(CO66,CQ66) -> 0
A67: 63 | C67: 19 | D67: Jeff King | E67: White Lightning | F67: 4 | G67: 1 | H67: 0 | I67: 0 | J67: =SUM(G67:I67) -> 1 | R67: 4 | T67: =(Q67*2+S67)/(SUM(Q67:S67)*2) -> 0 | U67: 9 | V67: 23 | AN67: =SUM(AK67,AM67) -> 0 | AR67: =SUM(AO67,AQ67) -> 0 | AS67: 0 | AT67: 1 | AU67: 0 | AV67: =SUM(AS67,AU67) -> 0 | AZ67: =SUM(AW67,AY67) -> 0 | BA67: 0 | BB67: 1 | BC67: 0 | BD67: =SUM(BA67,BC67) -> 0 | BH67: =SUM(BE67,BG67) -> 0 | BI67: 0 | BJ67: 1 | BK67: 0 | BL67: =SUM(BI67,BK67) -> 0 | BM67: 1 | BN67: 1 | BO67: 0 | BP67: =SUM(BM67,BO67) -> 1 | BT67: =SUM(BQ67,BS67) -> 0 | CJ67: =SUM(CG67,CI67) -> 0 | CN67: =SUM(CK67,CM67) -> 0 | CR67: =SUM(CO67,CQ67) -> 0
C68: 10 | D68: Mark Farrell | E68: White Lightning
C69: 20 | D69: Brandon Leet-MacFarlane | E69: Slashing Pumpkins
C70: 30 | D70: Chris Day | E70: Purple Heys
C71: 40 | D71: Tony Bonnar | E71: Blue Storm
C72: 50 | D72: Mike Bannister | E72: Golden Panthers
C73: 60 | D73: Dave Hickman | E73: Red Light District
C74: 70 | D74: Rick Kent | E74: Retribution
C75: 80 | D75: Paul Richard | E75: The Green Machine
C76: 90
C77: 100
C78: 110
C79: 120
C80: 130
C81: 91
C82: 92
C83: 93
C84: 94
C85: 95
C86: 96 | F86: 1 | G86: 2 | H86: 0 | I86: 0 | R86: 1 | U86: 3 | V86: 12 | AS86: 2 | AT86: 1 | AU86: 0
C87: 97 | F87: 2 | G87: 1 | H87: 3 | I87: 0 | M87: 1 | R87: 1 | S87: 1 | U87: 8 | V87: 17 | AO87: 1 | AP87: 1 | AQ87: 1 | AS87: 0 | AT87: 1 | AU87: 2
C88: 98
C89: 99 | F89: 1 | G89: 0 | H89: 0 | I89: 0 | R89: 1 | U89: 1 | V89: 10 | AK89: 0 | AL89: 1 | AM89: 0
F90: 301 | G90: 0 | H90: 0 | I90: 0 | Q90: 127 | R90: 146 | S90: 28 | U90: 1288 | V90: 1389 | AK90: 0 | AL90: 15 | AM90: 0 | AO90: 0 | AP90: 22 | AQ90: 0 | AS90: 0 | AT90: 45 | AU90: 0 | AW90: 0 | AX90: 40 | AY90: 0 | BA90: 0 | BB90: 35 | BC90: 0 | BI90: 0 | BJ90: 38 | BK90: 0 | BM90: 0 | BN90: 37 | BO90: 0 | BQ90: 0 | BR90: 47 | BS90: 0 | BU90: 0 | BV90: 9 | BW90: 0 | BY90: 0 | BZ90: 13 | CA90: 0

Sheet GoalieStats_Week03
N1: Record Against | R1: Record Against | V1: Record Against | Z1: Record Against | AD1: Record Against | AH1: Record Against | AL1: Record Against | AP1: Record Against
L2: Goals | M2: Assts | N2: White Lightning | O2: White Lightning | P2: White Lightning | Q2: White Lightning | R2: Slashing Pumpkins | S2: Slashing Pumpkins | T2: Slashing Pumpkins | U2: Slashing Pumpkins | V2: Purple Heys | W2: Purple Heys | X2: Purple Heys | Y2: Purple Heys | Z2: Blue Storm | AA2: Blue Storm | AB2: Blue Storm | AC2: Blue Storm | AD2: Golden Panthers | AE2: Golden Panthers | AF2: Golden Panthers | AG2: Golden Panthers | AH2: Red Light District | AI2: Red Light District | AJ2: Red Light District | AK2: Red Light District | AL2: Retribution | AM2: Retribution | AN2: Retribution | AO2: Retribution | AP2: The Green Machine | AQ2: The Green Machine | AR2: The Green Machine | AS2: The Green Machine
B3: Number | C3: Name | D3: Team | E3: Wins | F3: Losses | G3: Ties | H3: GA | I3: GAA | J3: Shots Against | K3: Save % | N3: W | O3: L | P3: T | Q3: GA | R3: W | S3: L | T3: T | U3: GA | V3: W | W3: L | X3: T | Y3: GA | Z3: W | AA3: L | AB3: T | AC3: GA | AD3: W | AE3: L | AF3: T | AG3: GA | AH3: W | AI3: L | AJ3: T | AK3: GA | AL3: W | AM3: L | AN3: T | AO3: GA | AP3: W | AQ3: L | AR3: T | AS3: GA
B4: 20 | C4: Brandon Leet-Macfarlane | D4: Slashing Pumpkins | E4: 8 | F4: 1 | H4: 26 | I4: =H4/SUM(E4:G4) -> 2.888888889 | N4: 3 | Q4: 8 | V4: 1 | Y4: 3 | Z4: 1 | AC4: 3 | AD4: 1 | AG4: 1 | AH4: 1 | AK4: 2 | AM4: 1 | AO4: 7 | AP4: 1 | AS4: 2
B5: 50 | C5: Mike Bannister | D5: Golden Panthers | E5: 1 | F5: 1 | G5: 1 | H5: 6 | I5: =H5/SUM(E5:G5) -> 2 | N5: 1 | Q5: 1 | S5: 1 | U5: 2 | AR5: 1 | AS5: 3
B6: 70 | C6: Rick Kent | D6: Retribution | E6: 8 | F6: 1 | H6: 30 | I6: =H6/SUM(E6:G6) -> 3.333333333 | N6: 1 | Q6: 4 | R6: 1 | U6: 3 | V6: 1 | Y6: 4 | AA6: 1 | AC6: 3 | AD6: 1 | AG6: 3 | AH6: 3 | AK6: 10 | AP6: 1 | AS6: 3
B7: 30 | C7: Chris Day | D7: Purple Heys | E7: 4 | F7: 4 | G7: 1 | H7: 34 | I7: =H7/SUM(E7:G7) -> 3.777777778 | N7: 1 | Q7: 1 | S7: 1 | U7: 4 | Z7: 2 | AA7: 1 | AC7: 9 | AF7: 1 | AG7: 5 | AI7: 1 | AK7: 6 | AM7: 1 | AO7: 7 | AP7: 1 | AS7: 2
B8: 92 | C8: Shawn Merrithew | D8: Spare | E8: 2 | G8: 1 | H8: 12 | I8: =H8/SUM(E8:G8) -> 4 | X8: 1 | Y8: 5 | Z8: 1 | AC8: 2 | AP8: 1 | AS8: 5
B9: 80 | C9: Paul Richard | D9: The Green Machine | E9: 2 | F9: 6 | G9: 1 | H9: 40 | I9: =H9/SUM(E9:G9) -> 4.444444444 | N9: 1 | Q9: 1 | S9: 1 | U9: 9 | W9: 1 | Y9: 3 | AA9: 1 | AC9: 7 | AE9: 2 | AF9: 1 | AG9: 14 | AH9: 1 | AK9: 2 | AM9: 1 | AO9: 4
B10: 90 | C10: Frederic Mailhot Landry | D10: Red Light District | E10: 4 | F10: 7 | G10: 1 | H10: 58 | I10: =H10/SUM(E10:G10) -> 4.833333333 | P10: 1 | Q10: 5 | S10: 1 | U10: 5 | V10: 1 | Y10: 1 | Z10: 1 | AC10: 2 | AD10: 1 | AG10: 3 | AI10: 1 | AK10: 5 | AM10: 4 | AO10: 31 | AP10: 1 | AQ10: 1 | AS10: 6
B11: 40 | C11: Tony Bonnar | D11: Blue Storm | E11: 4 | F11: 6 | H11: 49 | I11: =H11/SUM(E11:G11) -> 4.9 | N11: 1 | Q11: 4 | S11: 2 | U11: 11 | V11: 1 | W11: 2 | Y11: 13 | AE11: 1 | AG11: 8 | AI11: 1 | AK11: 8 | AL11: 1 | AO11: 1 | AP11: 1 | AS11: 4
B12: 10 | C12: Mark Farrell | D12: White Lightning | F12: 4 | G12: 1 | H12: 29 | I12: =H12/SUM(E12:G12) -> 5.8 | S12: 1 | U12: 6 | W12: 1 | Y12: 2 | AA12: 1 | AC12: 6 | AJ12: 1 | AK12: 5 | AM12: 1 | AO12: 10
B13: 60 | C13: Dave Hickman | D13: Red Light District | I13: =H13/SUM(E13:G13) -> 
B14: 95 | C14: Darryl Moorcroft | D14: Spare | I14: =H14/SUM(E14:G14) -> 
B15: 94 | C15: Bruce Parent | D15: Spare | I15: =H15/SUM(E15:G15) -> 
B16: 91 | C16: Dave MacFarlane | D16: Spare | F16: 3 | H16: 32 | I16: =H16/SUM(E16:G16) -> 10.66666667 | S16: 1 | U16: 12 | AE16: 1 | AG16: 10 | AQ16: 1 | AS16: 10
B17: 93 | C17: Brandon Moss | D17: Spare | I17: =H17/SUM(E17:G17) -> 
D19: Standings Thru Week | E19: W | F19: L | G19: T | H19: PTS | I19: GF | J19: GA | K19: Winning % | L19: Shots | M19: Shot % | N19: +/-
D20: Slashing Pumpkins | H20: =(E20*2)+G20 -> 0 | K20: =H20/(SUM(E20:G20)*2) ->  | N20: =I20-J20 -> 0
D21: Retribution | H21: =(E21*2)+G21 -> 0 | K21: =H21/(SUM(E21:G21)*2) ->  | N21: =I21-J21 -> 0
D22: Red Light District | H22: =(E22*2)+G22 -> 0 | K22: =H22/(SUM(E22:G22)*2) ->  | N22: =I22-J22 -> 0
D23: Blue Storm | H23: =(E23*2)+G23 -> 0 | K23: =H23/(SUM(E23:G23)*2) ->  | N23: =I23-J23 -> 0
D24: Golden Panthers | H24: =(E24*2)+G24 -> 0 | K24: =H24/(SUM(E24:G24)*2) ->  | N24: =I24-J24 -> 0
D25: The Green Machine | H25: =(E25*2)+G25 -> 0 | K25: =H25/(SUM(E25:G25)*2) ->  | N25: =I25-J25 -> 0
D26: Purple Heys | H26: =(E26*2)+G26 -> 0 | K26: =H26/(SUM(E26:G26)*2) ->  | N26: =I26-J26 -> 0
D27: White Lightning | H27: =(E27*2)+G27 -> 0 | K27: =H27/(SUM(E27:G27)*2) ->  | N27: =I27-J27 -> 0
D31: Standings Thru Week 1 | E31: W | F31: L | G31: T | H31: PTS | I31: GF | J31: GA | K31: Winning % | L31: Shots | M31: Shot % | N31: +/-
D32: Retribution | E32: 3 | H32: 6 | I32: 22 | J32: 11 | K32: 1 | N32: 11
D33: Slashing Pumpkins | E33: 3 | H33: 6 | I33: 15 | J33: 9 | K33: 1 | N33: 6
D34: Purple Heys | E34: 2 | F34: 1 | H34: 4 | I34: 10 | J34: 7 | K34: 0.6666666667 | N34: 3
D35: The Green Machine | E35: 1 | F35: 2 | H35: 2 | I35: 9 | J35: 10 | K35: 0.3333333333 | N35: -1
D36: Blue Storm | E36: 1 | F36: 2 | H36: 2 | I36: 11 | J36: 15 | K36: 0.3333333333 | N36: -4
D37: Golden Panthers | E37: 1 | F37: 2 | H37: 2 | I37: 10 | J37: 14 | K37: 0.3333333333 | N37: -4
D38: Red Light District | E38: 1 | F38: 2 | H38: 2 | I38: 12 | J38: 18 | K38: 0.3333333333 | N38: -6
D39: White Lightning | F39: 3 | H39: 0 | I39: 8 | J39: 13 | K39: 0 | N39: -5
D41: Standings Thru Week 2 | E41: W | F41: L | G41: T | H41: PTS | I41: GF | J41: GA | K41: Winning % | L41: Shots | M41: Shot % | N41: +/-
D42: Slashing Pumpkins | E42: 6 | H42: =(E42*2)+G42 -> 12 | I42: 38 | J42: 15 | K42: =H42/(SUM(E42:G42)*2) -> 1 | N42: =I42-J42 -> 23
D43: Retribution | E43: 5 | F43: 1 | H43: =(E43*2)+G43 -> 10 | I43: 35 | J43: 19 | K43: =H43/(SUM(E43:G43)*2) -> 0.8333333333 | N43: =I43-J43 -> 16
D44: Red Light District | E44: 3 | F44: 3 | H44: =(E44*2)+G44 -> 6 | I44: 27 | J44: 26 | K44: =H44/(SUM(E44:G44)*2) -> 0.5 | N44: =I44-J44 -> 1
D45: Blue Storm | E45: 3 | F45: 3 | H45: =(E45*2)+G45 -> 6 | I45: 20 | J45: 27 | K45: =H45/(SUM(E45:G45)*2) -> 0.5 | N45: =I45-J45 -> -7
D46: Golden Panthers | E46: 2 | F46: 3 | G46: 1 | H46: =(E46*2)+G46 -> 5 | I46: 24 | J46: 20 | K46: =H46/(SUM(E46:G46)*2) -> 0.4166666667 | N46: =I46-J46 -> 4
D47: The Green Machine | E47: 2 | F47: 3 | G47: 1 | H47: =(E47*2)+G47 -> 5 | I47: 24 | J47: 23 | K47: =H47/(SUM(E47:G47)*2) -> 0.4166666667 | N47: =I47-J47 -> 1
D48: Purple Heys | E48: 2 | F48: 4 | H48: =(E48*2)+G48 -> 4 | I48: 18 | J48: 24 | K48: =H48/(SUM(E48:G48)*2) -> 0.3333333333 | N48: =I48-J48 -> -6
D49: White Lightning | F49: 6 | H49: =(E49*2)+G49 -> 0 | I49: 13 | J49: 45 | K49: =H49/(SUM(E49:G49)*2) -> 0 | N49: =I49-J49 -> -32
D51: Standings Thru Week 3 | E51: W | F51: L | G51: T | H51: PTS | I51: GF | J51: GA | K51: Winning % | L51: Shots | M51: Shot % | N51: +/-
D52: Retribution | E52: 8 | F52: 1 | H52: =(E52*2)+G52 -> 16 | I52: 57 | J52: 30 | K52: =H52/(SUM(E52:G52)*2) -> 0.8888888889 | N52: =I52-J52 -> 27
D53: Slashing Pumpkins | E53: 8 | F53: 1 | H53: =(E53*2)+G53 -> 16 | I53: 52 | J53: 26 | K53: =H53/(SUM(E53:G53)*2) -> 0.8888888889 | N53: =I53-J53 -> 26
D54: Golden Panthers | E54: 4 | F54: 3 | G54: 2 | H54: =(E54*2)+G54 -> 10 | I54: 44 | J54: 32 | K54: =H54/(SUM(E54:G54)*2) -> 0.5555555556 | N54: =I54-J54 -> 12
D55: Purple Heys | E55: 4 | F55: 4 | G55: 1 | H55: =(E55*2)+G55 -> 9 | I55: 31 | J55: 34 | K55: =H55/(SUM(E55:G55)*2) -> 0.5 | N55: =I55-J55 -> -3
D56: Blue Storm | E56: 4 | F56: 5 | H56: =(E56*2)+G56 -> 8 | I56: 32 | J56: 44 | K56: =H56/(SUM(E56:G56)*2) -> 0.4444444444 | N56: =I56-J56 -> -12
D57: Red Light District | E57: 3 | F57: 5 | G57: 1 | H57: =(E57*2)+G57 -> 7 | I57: 38 | J57: 41 | K57: =H57/(SUM(E57:G57)*2) -> 0.3888888889 | N57: =I57-J57 -> -3
D58: The Green Machine | E58: 2 | F58: 6 | G58: 1 | H58: =(E58*2)+G58 -> 5 | I58: 35 | J58: 40 | K58: =H58/(SUM(E58:G58)*2) -> 0.2777777778 | N58: =I58-J58 -> -5
D59: White Lightning | F59: 8 | G59: 1 | H59: =(E59*2)+G59 -> 1 | I59: 24 | J59: 66 | K59: =H59/(SUM(E59:G59)*2) -> 0.05555555556 | N59: =I59-J59 -> -42
D61: Standings Thru Week | E61: W | F61: L | G61: T | H61: PTS | I61: GF | J61: GA | K61: Winning % | L61: Shots | M61: Shot % | N61: +/-
D62: Slashing Pumpkins | E62: 11 | F62: 1 | H62: =(E62*2)+G62 -> 22 | I62: 80 | J62: 35 | K62: =H62/(SUM(E62:G62)*2) -> 0.9166666667 | N62: =I62-J62 -> 45
D63: Retribution | E63: 10 | F63: 2 | H63: =(E63*2)+G63 -> 20 | I63: 73 | J63: 42 | K63: =H63/(SUM(E63:G63)*2) -> 0.8333333333 | N63: =I63-J63 -> 31
D64: Golden Panthers | E64: 6 | F64: 4 | G64: 2 | H64: =(E64*2)+G64 -> 14 | I64: 59 | J64: 45 | K64: =H64/(SUM(E64:G64)*2) -> 0.5833333333 | N64: =I64-J64 -> 14
D65: Purple Heys | E65: 6 | F65: 5 | G65: 1 | H65: =(E65*2)+G65 -> 13 | I65: 52 | J65: 44 | K65: =H65/(SUM(E65:G65)*2) -> 0.5416666667 | N65: =I65-J65 -> 8
D66: Blue Storm | E66: 6 | F66: 6 | H66: =(E66*2)+G66 -> 12 | I66: 47 | J66: 55 | K66: =H66/(SUM(E66:G66)*2) -> 0.5 | N66: =I66-J66 -> -8
D67: Red Light District | E67: 4 | F67: 7 | G67: 1 | H67: =(E67*2)+G67 -> 9 | I67: 50 | J67: 63 | K67: =H67/(SUM(E67:G67)*2) -> 0.375 | N67: =I67-J67 -> -13
D68: The Green Machine | E68: 2 | F68: 9 | G68: 1 | H68: =(E68*2)+G68 -> 5 | I68: 46 | J68: 71 | K68: =H68/(SUM(E68:G68)*2) -> 0.2083333333 | N68: =I68-J68 -> -25
D69: White Lightning | F69: 11 | G69: 1 | H69: =(E69*2)+G69 -> 1 | I69: 35 | J69: 87 | K69: =H69/(SUM(E69:G69)*2) -> 0.04166666667 | N69: =I69-J69 -> -52

Sheet PlayerStats_Week04
C1: Week | G1: =MAX(G4:G66) -> 29 | H1: =MAX(H4:H66) -> 14 | I1: =MAX(I4:I66) -> 8 | J1: =MAX(J4:J66) -> 47 | AK1: =MAX(AK4:AK66) -> 2 | AL1: =MAX(AL4:AL66) -> 2 | AM1: =MAX(AM4:AM66) -> 2 | AN1: =MAX(AN4:AN66) -> 4 | AO1: =MAX(AO4:AO66) -> 4 | AP1: =MAX(AP4:AP66) -> 1 | AQ1: =MAX(AQ4:AQ66) -> 3 | AR1: =MAX(AR4:AR66) -> 6 | AS1: =MAX(AS4:AS66) -> 4 | AT1: =MAX(AT4:AT66) -> 3 | AU1: =MAX(AU4:AU66) -> 3 | AV1: =MAX(AV4:AV66) -> 5 | AW1: =MAX(AW4:AW66) -> 4 | AX1: =MAX(AX4:AX66) -> 3 | AY1: =MAX(AY4:AY66) -> 3 | AZ1: =MAX(AZ4:AZ66) -> 5 | BA1: =MAX(BA4:BA66) -> 5 | BB1: =MAX(BB4:BB66) -> 3 | BC1: =MAX(BC4:BC66) -> 4 | BD1: =MAX(BD4:BD66) -> 8 | BE1: =MAX(BE4:BE66) -> 0 | BF1: =MAX(BF4:BF66) -> 0 | BG1: =MAX(BG4:BG66) -> 0 | BH1: =MAX(BH4:BH66) -> 0 | BI1: =MAX(BI4:BI66) -> 6 | BJ1: =MAX(BJ4:BJ66) -> 3 | BK1: =MAX(BK4:BK66) -> 5 | BL1: =MAX(BL4:BL66) -> 9 | BM1: =MAX(BM4:BM66) -> 6 | BN1: =MAX(BN4:BN66) -> 3 | BO1: =MAX(BO4:BO66) -> 6 | BP1: =MAX(BP4:BP66) -> 7 | BQ1: =MAX(BQ4:BQ66) -> 10 | BR1: =MAX(BR4:BR66) -> 4 | BS1: =MAX(BS4:BS66) -> 9 | BT1: =MAX(BT4:BT66) -> 18 | BU1: =MAX(BU4:BU66) -> 2 | BV1: =MAX(BV4:BV66) -> 1 | BW1: =MAX(BW4:BW66) -> 3 | BX1: =MAX(BX4:BX66) -> 0 | BY1: =MAX(BY4:BY66) -> 5 | BZ1: =MAX(BZ4:BZ66) -> 1 | CA1: =MAX(CA4:CA66) -> 4 | CB1: =MAX(CB4:CB66) -> 0 | CC1: =MAX(CC4:CC66) -> 4 | CD1: =MAX(CD4:CD66) -> 1 | CE1: =MAX(CE4:CE66) -> 3 | CF1: =MAX(CF4:CF66) -> 0 | CG1: =MAX(CG4:CG66) -> 2 | CH1: =MAX(CH4:CH66) -> 1 | CI1: =MAX(CI4:CI66) -> 4 | CJ1: =MAX(CJ4:CJ66) -> 6 | CK1: =MAX(CK4:CK66) -> 4 | CL1: =MAX(CL4:CL66) -> 1 | CM1: =MAX(CM4:CM66) -> 2 | CN1: =MAX(CN4:CN66) -> 6 | CO1: =MAX(CO4:CO66) -> 0 | CP1: =MAX(CP4:CP66) -> 0 | CQ1: =MAX(CQ4:CQ66) -> 0 | CR1: =MAX(CR4:CR66) -> 0
C2: Game | G2: With Team | X2: As Spare | AS2: GOALS AGAINST GOALIE….
A3: 1 | B3: 2 | C3: 3 | D3: 4 | E3: 5 | F3: 6 | G3: 7 | H3: 8 | I3: 9 | J3: 10 | K3: 11 | L3: 12 | M3: 13 | N3: 14 | O3: 15 | P3: 16 | Q3: 17 | R3: 18 | S3: 19 | T3: 20 | U3: 21 | V3: 22 | W3: 23 | X3: 24 | Y3: 25 | Z3: 26 | AA3: 27 | AB3: 28 | AC3: 29 | AD3: 30 | AE3: 31 | AF3: 32 | AG3: 33 | AH3: 34 | AI3: 35 | AJ3: 36 | AK3: 37 | AL3: 38 | AM3: 39 | AN3: 40 | AO3: 41 | AP3: 42 | AQ3: 43 | AR3: 44 | AS3: 45 | AT3: 46 | AU3: 47 | AV3: 48 | AW3: 49 | AX3: 50 | AY3: 51 | AZ3: 52 | BA3: 53 | BB3: 54 | BC3: 55 | BD3: 56 | BE3: 57 | BF3: 58 | BG3: 59 | BH3: 60 | BI3: 61 | BJ3: 62 | BK3: 63 | BL3: 64 | BQ3: 65 | BR3: 66 | BS3: 67 | BT3: 68 | BU3: 69 | BV3: 70 | BW3: 71 | BX3: 72 | BY3: 65 | BZ3: 66 | CA3: 67 | CB3: 68 | CC3: 65 | CD3: 66 | CE3: 67 | CF3: 68 | CG3: 65 | CH3: 66 | CI3: 67 | CJ3: 68 | CK3: 65 | CL3: 66 | CM3: 67 | CN3: 68 | CO3: 65 | CP3: 66 | CQ3: 67 | CR3: 68
C4: Number | D4: Name | E4: Team | F4: GP | G4: Goals | H4: 1st Asst | I4: 2nd Asst | J4: Total | K4: GWG | L4: GWA | M4: GTG | N4: GTA | O4: Fluff Goals | P4: Fluff Assts | Q4: Wins | R4: Losses | S4: Ties | T4: Winning% | U4: GF | V4: GA | W4: +/- | X4: GP | Y4: Goals | Z4: 1st Asst | AA4: 2nd Asst | AB4: Total | AC4: Wins | AD4: Losses | AE4: Ties | AF4: Winning% | AG4: GF | AH4: GA | AI4: missing | AJ4: sum | AK4: Mike Bannister | AL4: Games Against | AM4: Assts | AN4: Totals | AO4: Mark Farrell | AP4: Games Against | AQ4: Assts | AR4: Totals | AS4: Brandon Leet-Macfarlane | AT4: Games Against | AU4: Assts | AV4: Totals | AW4: Rick Kent | AX4: Games Against | AY4: Assts | AZ4: Totals | BA4: Paul Richard | BB4: Games Against | BC4: Assts | BD4: Totals | BE4: Dave Hickman | BF4: Games Against | BG4: Assts | BH4: Totals | BI4: Chris Day | BJ4: Games Against | BK4: Assts | BL4: Totals | BM4: Tony Bonnar | BN4: Games Against | BO4: Assts | BP4: Totals | BQ4: Frederic Mailhot Landry | BR4: Games Against | BS4: Assts | BT4: Totals | BU4: Shawn Merrithew | BV4: Games Against | BW4: Assts | BX4: Totals | BY4: Dave MacFarlane | BZ4: Games Against | CA4: Assts | CB4: Totals | CC4: Brandon Moss | CD4: Games Against | CE4: Assts | CF4: Totals | CG4: Bruce Parent | CH4: Games Against | CI4: Assts | CJ4: Totals | CK4: Darryl Moorcroft | CL4: Games Against | CM4: Assts | CN4: Totals | CP4: Games Against | CQ4: Assts | CR4: Totals
A5: 1 | C5: 77 | D5: Ray Chase | E5: Retribution | F5: 12 | G5: 29 | H5: 14 | I5: 4 | J5: =SUM(G5:I5) -> 47 | K5: 3 | L5: 2 | O5: 4 | P5: 1 | Q5: 10 | R5: 2 | T5: =(Q5*2+S5)/(SUM(Q5:S5)*2) -> 0.8333333333 | U5: 76 | V5: 42 | AK5: 2 | AL5: 1 | AM5: 2 | AN5: =SUM(AK5,AM5) -> 4 | AO5: 4 | AP5: 1 | AQ5: 1 | AR5: =SUM(AO5,AQ5) -> 5 | AS5: 3 | AT5: 1 | AU5: 1 | AV5: =SUM(AS5,AU5) -> 4 | AZ5: =SUM(AW5,AY5) -> 0 | BA5: 3 | BB5: 1 | BC5: 0 | BD5: =SUM(BA5,BC5) -> 3 | BH5: =SUM(BE5,BG5) -> 0 | BI5: 2 | BJ5: 1 | BK5: 3 | BL5: =SUM(BI5,BK5) -> 5 | BM5: 1 | BN5: 2 | BO5: 1 | BP5: =SUM(BM5,BO5) -> 2 | BQ5: 10 | BR5: 4 | BS5: 8 | BT5: =SUM(BQ5,BS5) -> 18 | CJ5: =SUM(CG5,CI5) -> 0 | CK5: 4 | CL5: 1 | CM5: 2 | CN5: =SUM(CK5,CM5) -> 6 | CR5: =SUM(CO5,CQ5) -> 0
A6: 2 | C6: 71 | D6: Marc Guitard | E6: Retribution | F6: 12 | G6: 14 | H6: 14 | I6: 6 | J6: =SUM(G6:I6) -> 34 | K6: 2 | L6: 1 | P6: 4 | Q6: 10 | R6: 2 | T6: =(Q6*2+S6)/(SUM(Q6:S6)*2) -> 0.8333333333 | U6: 76 | V6: 42 | AK6: 0 | AL6: 1 | AM6: 1 | AN6: =SUM(AK6,AM6) -> 1 | AO6: 2 | AP6: 1 | AQ6: 2 | AR6: =SUM(AO6,AQ6) -> 4 | AS6: 1 | AT6: 1 | AU6: 0 | AV6: =SUM(AS6,AU6) -> 1 | AZ6: =SUM(AW6,AY6) -> 0 | BA6: 0 | BB6: 1 | BC6: 3 | BD6: =SUM(BA6,BC6) -> 3 | BH6: =SUM(BE6,BG6) -> 0 | BI6: 0 | BJ6: 1 | BK6: 2 | BL6: =SUM(BI6,BK6) -> 2 | BM6: 2 | BN6: 2 | BO6: 1 | BP6: =SUM(BM6,BO6) -> 3 | BQ6: 7 | BR6: 4 | BS6: 9 | BT6: =SUM(BQ6,BS6) -> 16 | CJ6: =SUM(CG6,CI6) -> 0 | CK6: 2 | CL6: 1 | CM6: 2 | CN6: =SUM(CK6,CM6) -> 4 | CR6: =SUM(CO6,CQ6) -> 0
A7: 3 | C7: 26 | D7: Richard Kwiatkowski | E7: Slashing Pumpkins | F7: 12 | G7: 25 | H7: 9 | I7: 4 | J7: =SUM(G7:I7) -> 38 | K7: 3 | L7: 2 | O7: 2 | P7: 3 | Q7: 11 | R7: 1 | T7: =(Q7*2+S7)/(SUM(Q7:S7)*2) -> 0.9166666667 | U7: 80 | V7: 35 | AK7: 1 | AL7: 1 | AM7: 0 | AN7: =SUM(AK7,AM7) -> 1 | AO7: 3 | AP7: 1 | AQ7: 1 | AR7: =SUM(AO7,AQ7) -> 4 | AV7: =SUM(AS7,AU7) -> 0 | AW7: 1 | AX7: 1 | AY7: 1 | AZ7: =SUM(AW7,AY7) -> 2 | BA7: 2 | BB7: 1 | BC7: 1 | BD7: =SUM(BA7,BC7) -> 3 | BH7: =SUM(BE7,BG7) -> 0 | BI7: 3 | BJ7: 2 | BK7: 0 | BL7: =SUM(BI7,BK7) -> 3 | BM7: 6 | BN7: 2 | BO7: 0 | BP7: =SUM(BM7,BO7) -> 6 | BQ7: 2 | BR7: 2 | BS7: 6 | BT7: =SUM(BQ7,BS7) -> 8 | BY7: 3 | BZ7: 1 | CA7: 2 | CC7: 4 | CD7: 1 | CE7: 2 | CJ7: =SUM(CG7,CI7) -> 0 | CN7: =SUM(CK7,CM7) -> 0 | CR7: =SUM(CO7,CQ7) -> 0
A8: 4 | C8: 72 | D8: Aaron Cornish | E8: Retribution | F8: 12 | G8: 13 | H8: 11 | I8: 3 | J8: =SUM(G8:I8) -> 27 | K8: 3 | O8: 1 | Q8: 10 | R8: 2 | T8: =(Q8*2+S8)/(SUM(Q8:S8)*2) -> 0.8333333333 | U8: 76 | V8: 42 | AK8: 1 | AL8: 1 | AM8: 0 | AN8: =SUM(AK8,AM8) -> 1 | AO8: 3 | AP8: 1 | AQ8: 3 | AR8: =SUM(AO8,AQ8) -> 6 | AS8: 1 | AT8: 1 | AU8: 1 | AV8: =SUM(AS8,AU8) -> 2 | AZ8: =SUM(AW8,AY8) -> 0 | BA8: 1 | BB8: 1 | BC8: 0 | BD8: =SUM(BA8,BC8) -> 1 | BH8: =SUM(BE8,BG8) -> 0 | BI8: 2 | BJ8: 1 | BK8: 1 | BL8: =SUM(BI8,BK8) -> 3 | BM8: 0 | BN8: 2 | BO8: 1 | BP8: =SUM(BM8,BO8) -> 1 | BQ8: 5 | BR8: 4 | BS8: 7 | BT8: =SUM(BQ8,BS8) -> 12 | CJ8: =SUM(CG8,CI8) -> 0 | CK8: 0 | CL8: 1 | CM8: 1 | CN8: =SUM(CK8,CM8) -> 1 | CR8: =SUM(CO8,CQ8) -> 0
A9: 5 | C9: 25 | D9: Matt Vautour | E9: Slashing Pumpkins | F9: 12 | G9: 19 | H9: 9 | I9: 4 | J9: =SUM(G9:I9) -> 32 | K9: 1 | L9: 3 | O9: 4 | P9: 3 | Q9: 11 | R9: 1 | T9: =(Q9*2+S9)/(SUM(Q9:S9)*2) -> 0.9166666667 | U9: 80 | V9: 35 | AK9: 1 | AL9: 1 | AM9: 1 | AN9: =SUM(AK9,AM9) -> 2 | AO9: 0 | AP9: 1 | AQ9: 1 | AR9: =SUM(AO9,AQ9) -> 1 | AV9: =SUM(AS9,AU9) -> 0 | AW9: 1 | AX9: 1 | AY9: 0 | AZ9: =SUM(AW9,AY9) -> 1 | BA9: 3 | BB9: 1 | BC9: 0 | BD9: =SUM(BA9,BC9) -> 3 | BH9: =SUM(BE9,BG9) -> 0 | BI9: 3 | BJ9: 2 | BK9: 1 | BL9: =SUM(BI9,BK9) -> 4 | BM9: 1 | BN9: 2 | BO9: 2 | BP9: =SUM(BM9,BO9) -> 3 | BQ9: 3 | BR9: 2 | BS9: 5 | BT9: =SUM(BQ9,BS9) -> 8 | BY9: 5 | BZ9: 1 | CA9: 1 | CC9: 2 | CD9: 1 | CE9: 2 | CJ9: =SUM(CG9,CI9) -> 0 | CN9: =SUM(CK9,CM9) -> 0 | CR9: =SUM(CO9,CQ9) -> 0
A10: 6 | C10: 55 | D10: Ian Stevens | E10: Golden Panthers | F10: 12 | G10: 14 | H10: 9 | I10: 8 | J10: =SUM(G10:I10) -> 31 | K10: 1 | L10: 1 | O10: 1 | P10: 1 | Q10: 6 | R10: 4 | S10: 2 | T10: =(Q10*2+S10)/(SUM(Q10:S10)*2) -> 0.5833333333 | U10: 59 | V10: 45 | AN10: =SUM(AK10,AM10) -> 0 | AR10: =SUM(AO10,AQ10) -> 0 | AS10: 1 | AT10: 1 | AU10: 0 | AV10: =SUM(AS10,AU10) -> 1 | AW10: 2 | AX10: 2 | AY10: 2 | AZ10: =SUM(AW10,AY10) -> 4 | BA10: 5 | BB10: 3 | BC10: 3 | BD10: =SUM(BA10,BC10) -> 8 | BH10: =SUM(BE10,BG10) -> 0 | BI10: 1 | BJ10: 1 | BK10: 2 | BL10: =SUM(BI10,BK10) -> 3 | BM10: 1 | BN10: 2 | BO10: 6 | BP10: =SUM(BM10,BO10) -> 7 | BQ10: 0 | BR10: 1 | BS10: 1 | BT10: =SUM(BQ10,BS10) -> 1 | BY10: 2 | BZ10: 1 | CA10: 3 | CJ10: =SUM(CG10,CI10) -> 0 | CK10: 2 | CL10: 1 | CM10: 0 | CN10: =SUM(CK10,CM10) -> 2 | CR10: =SUM(CO10,CQ10) -> 0
A11: 7 | C11: 81 | D11: Collin Sleep | E11: The Green Machine | F11: 12 | G11: 17 | H11: 8 | I11: 4 | J11: =SUM(G11:I11) -> 29 | K11: 1 | N11: 1 | O11: 1 | P11: 2 | Q11: 2 | R11: 9 | S11: 1 | T11: =(Q11*2+S11)/(SUM(Q11:S11)*2) -> 0.2083333333 | U11: 46 | V11: 71 | AK11: 1 | AL11: 1 | AM11: 2 | AN11: =SUM(AK11,AM11) -> 3 | AR11: =SUM(AO11,AQ11) -> 0 | AS11: 3 | AT11: 2 | AU11: 2 | AV11: =SUM(AS11,AU11) -> 5 | AW11: 0 | AX11: 1 | AY11: 0 | AZ11: =SUM(AW11,AY11) -> 0 | BD11: =SUM(BA11,BC11) -> 0 | BH11: =SUM(BE11,BG11) -> 0 | BI11: 2 | BJ11: 2 | BK11: 1 | BL11: =SUM(BI11,BK11) -> 3 | BM11: 2 | BN11: 1 | BO11: 0 | BP11: =SUM(BM11,BO11) -> 2 | BQ11: 4 | BR11: 3 | BS11: 1 | BT11: =SUM(BQ11,BS11) -> 5 | BU11: 1 | BV11: 1 | BW11: 3 | BY11: 4 | BZ11: 1 | CA11: 3 | CJ11: =SUM(CG11,CI11) -> 0 | CN11: =SUM(CK11,CM11) -> 0 | CR11: =SUM(CO11,CQ11) -> 0
A12: 8 | C12: 37 | D12: Joel Thorne | E12: Purple Heys | F12: 12 | G12: 14 | H12: 12 | I12: 4 | J12: =SUM(G12:I12) -> 30 | K12: 1 | L12: 1 | P12: 1 | Q12: 6 | R12: 5 | S12: 1 | T12: =(Q12*2+S12)/(SUM(Q12:S12)*2) -> 0.5416666667 | U12: 52 | V12: 44 | AN12: =SUM(AK12,AM12) -> 0 | AO12: 0 | AP12: 1 | AQ12: 0 | AR12: =SUM(AO12,AQ12) -> 0 | AS12: 2 | AT12: 2 | AU12: 2 | AV12: =SUM(AS12,AU12) -> 4 | AW12: 2 | AX12: 1 | AY12: 1 | AZ12: =SUM(AW12,AY12) -> 3 | BA12: 1 | BB12: 1 | BC12: 2 | BD12: =SUM(BA12,BC12) -> 3 | BH12: =SUM(BE12,BG12) -> 0 | BL12: =SUM(BI12,BK12) -> 0 | BM12: 5 | BN12: 3 | BO12: 2 | BP12: =SUM(BM12,BO12) -> 7 | BQ12: 1 | BR12: 1 | BS12: 0 | BT12: =SUM(BQ12,BS12) -> 1 | BU12: 0 | BV12: 1 | BW12: 3 | CC12: 1 | CD12: 1 | CE12: 2 | CG12: 2 | CH12: 1 | CI12: 4 | CJ12: =SUM(CG12,CI12) -> 6 | CN12: =SUM(CK12,CM12) -> 0 | CR12: =SUM(CO12,CQ12) -> 0
A13: 9 | C13: 54 | D13: Ian LaPointe | E13: Golden Panthers | F13: 9 | G13: 14 | H13: 4 | I13: 1 | J13: =SUM(G13:I13) -> 19 | K13: 1 | Q13: 4 | R13: 3 | S13: 2 | T13: =(Q13*2+S13)/(SUM(Q13:S13)*2) -> 0.5555555556 | U13: 44 | V13: 32 | AN13: =SUM(AK13,AM13) -> 0 | AR13: =SUM(AO13,AQ13) -> 0 | AS13: 0 | AT13: 1 | AU13: 0 | AV13: =SUM(AS13,AU13) -> 0 | AW13: 1 | AX13: 1 | AY13: 0 | AZ13: =SUM(AW13,AY13) -> 1 | BA13: 4 | BB13: 3 | BC13: 3 | BD13: =SUM(BA13,BC13) -> 7 | BH13: =SUM(BE13,BG13) -> 0 | BI13: 1 | BJ13: 1 | BK13: 0 | BL13: =SUM(BI13,BK13) -> 1 | BM13: 4 | BN13: 1 | BO13: 1 | BP13: =SUM(BM13,BO13) -> 5 | BQ13: 2 | BR13: 1 | BS13: 0 | BT13: =SUM(BQ13,BS13) -> 2 | BY13: 2 | BZ13: 1 | CA13: 1 | CJ13: =SUM(CG13,CI13) -> 0 | CN13: =SUM(CK13,CM13) -> 0 | CR13: =SUM(CO13,CQ13) -> 0
A14: 10 | C14: 64 | D14: Jamie Williams | E14: Red Light District | F14: 12 | G14: 15 | H14: 8 | I14: 2 | J14: =SUM(G14:I14) -> 25 | K14: 2 | N14: 1 | O14: 1 | Q14: 4 | R14: 7 | S14: 1 | T14: =(Q14*2+S14)/(SUM(Q14:S14)*2) -> 0.375 | U14: 50 | V14: 66 | AN14: =SUM(AK14,AM14) -> 0 | AO14: 2 | AP14: 1 | AQ14: 2 | AR14: =SUM(AO14,AQ14) -> 4 | AS14: 0 | AT14: 2 | AU14: 2 | AV14: =SUM(AS14,AU14) -> 2 | AW14: 3 | AX14: 3 | AY14: 1 | AZ14: =SUM(AW14,AY14) -> 4 | BA14: 0 | BB14: 1 | BC14: 0 | BD14: =SUM(BA14,BC14) -> 0 | BH14: =SUM(BE14,BG14) -> 0 | BI14: 5 | BJ14: 3 | BK14: 4 | BL14: =SUM(BI14,BK14) -> 9 | BM14: 4 | BN14: 1 | BO14: 0 | BP14: =SUM(BM14,BO14) -> 4 | BQ14: 1 | BR14: 1 | BS14: 1 | BT14: =SUM(BQ14,BS14) -> 2 | CJ14: =SUM(CG14,CI14) -> 0 | CN14: =SUM(CK14,CM14) -> 0 | CR14: =SUM(CO14,CQ14) -> 0
A15: 11 | C15: 83 | D15: Craig Maranda | E15: The Green Machine | F15: 12 | G15: 14 | H15: 7 | I15: 2 | J15: =SUM(G15:I15) -> 23 | M15: 1 | O15: 1 | P15: 1 | Q15: 2 | R15: 9 | S15: 1 | T15: =(Q15*2+S15)/(SUM(Q15:S15)*2) -> 0.2083333333 | U15: 46 | V15: 71 | AK15: 1 | AL15: 1 | AM15: 1 | AN15: =SUM(AK15,AM15) -> 2 | AR15: =SUM(AO15,AQ15) -> 0 | AS15: 2 | AT15: 2 | AU15: 1 | AV15: =SUM(AS15,AU15) -> 3 | AW15: 3 | AX15: 1 | AY15: 0 | AZ15: =SUM(AW15,AY15) -> 3 | BD15: =SUM(BA15,BC15) -> 0 | BH15: =SUM(BE15,BG15) -> 0 | BI15: 2 | BJ15: 2 | BK15: 1 | BL15: =SUM(BI15,BK15) -> 3 | BM15: 0 | BN15: 1 | BO15: 1 | BP15: =SUM(BM15,BO15) -> 1 | BQ15: 1 | BR15: 3 | BS15: 2 | BT15: =SUM(BQ15,BS15) -> 3 | BU15: 2 | BV15: 1 | BW15: 1 | BY15: 3 | BZ15: 1 | CA15: 2 | CJ15: =SUM(CG15,CI15) -> 0 | CN15: =SUM(CK15,CM15) -> 0 | CR15: =SUM(CO15,CQ15) -> 0
A16: 12 | C16: 41 | D16: Michael Moore | E16: Blue Storm | F16: 12 | G16: 15 | H16: 8 | I16: 2 | J16: =SUM(G16:I16) -> 25 | K16: 3 | L16: 1 | Q16: 6 | R16: 6 | T16: =(Q16*2+S16)/(SUM(Q16:S16)*2) -> 0.5 | U16: 47 | V16: 55 | AK16: 2 | AL16: 1 | AM16: 0 | AN16: =SUM(AK16,AM16) -> 2 | AO16: 2 | AP16: 1 | AQ16: 1 | AR16: =SUM(AO16,AQ16) -> 3 | AS16: 1 | AT16: 1 | AU16: 2 | AV16: =SUM(AS16,AU16) -> 3 | AW16: 2 | AX16: 2 | AY16: 2 | AZ16: =SUM(AW16,AY16) -> 4 | BA16: 1 | BB16: 1 | BC16: 2 | BD16: =SUM(BA16,BC16) -> 3 | BH16: =SUM(BE16,BG16) -> 0 | BI16: 6 | BJ16: 3 | BK16: 2 | BL16: =SUM(BI16,BK16) -> 8 | BP16: =SUM(BM16,BO16) -> 0 | BQ16: 0 | BR16: 1 | BS16: 0 | BT16: =SUM(BQ16,BS16) -> 0 | BU16: 0 | BV16: 1 | BW16: 0 | CJ16: =SUM(CG16,CI16) -> 0 | CK16: 1 | CL16: 1 | CM16: 1 | CN16: =SUM(CK16,CM16) -> 2 | CR16: =SUM(CO16,CQ16) -> 0
A17: 13 | C17: 36 | D17: Jeff Schriver | E17: Purple Heys | F17: 12 | G17: 13 | H17: 8 | I17: 3 | J17: =SUM(G17:I17) -> 24 | K17: 1 | L17: 1 | Q17: 6 | R17: 5 | S17: 1 | T17: =(Q17*2+S17)/(SUM(Q17:S17)*2) -> 0.5416666667 | U17: 52 | V17: 44 | AN17: =SUM(AK17,AM17) -> 0 | AO17: 1 | AP17: 1 | AQ17: 0 | AR17: =SUM(AO17,AQ17) -> 1 | AS17: 3 | AT17: 2 | AU17: 1 | AV17: =SUM(AS17,AU17) -> 4 | AW17: 1 | AX17: 1 | AY17: 0 | AZ17: =SUM(AW17,AY17) -> 1 | BA17: 1 | BB17: 1 | BC17: 0 | BD17: =SUM(BA17,BC17) -> 1 | BH17: =SUM(BE17,BG17) -> 0 | BL17: =SUM(BI17,BK17) -> 0 | BM17: 2 | BN17: 3 | BO17: 4 | BP17: =SUM(BM17,BO17) -> 6 | BQ17: 0 | BR17: 1 | BS17: 1 | BT17: =SUM(BQ17,BS17) -> 1 | BU17: 2 | BV17: 1 | BW17: 2 | CC17: 2 | CD17: 1 | CE17: 0 | CG17: 1 | CH17: 1 | CI17: 3 | CJ17: =SUM(CG17,CI17) -> 4 | CN17: =SUM(CK17,CM17) -> 0 | CR17: =SUM(CO17,CQ17) -> 0
A18: 14 | C18: 73 | D18: Brian Kelly | E18: Retribution | F18: 12 | G18: 9 | H18: 7 | I18: 5 | J18: =SUM(G18:I18) -> 21 | K18: 1 | L18: 2 | Q18: 10 | R18: 2 | T18: =(Q18*2+S18)/(SUM(Q18:S18)*2) -> 0.8333333333 | U18: 76 | V18: 42 | AK18: 0 | AL18: 1 | AM18: 1 | AN18: =SUM(AK18,AM18) -> 1 | AO18: 1 | AP18: 1 | AQ18: 2 | AR18: =SUM(AO18,AQ18) -> 3 | AS18: 1 | AT18: 1 | AU18: 1 | AV18: =SUM(AS18,AU18) -> 2 | AZ18: =SUM(AW18,AY18) -> 0 | BA18: 0 | BB18: 1 | BC18: 0 | BD18: =SUM(BA18,BC18) -> 0 | BH18: =SUM(BE18,BG18) -> 0 | BI18: 3 | BJ18: 1 | BK18: 1 | BL18: =SUM(BI18,BK18) -> 4 | BM18: 0 | BN18: 2 | BO18: 1 | BP18: =SUM(BM18,BO18) -> 1 | BQ18: 3 | BR18: 4 | BS18: 4 | BT18: =SUM(BQ18,BS18) -> 7 | CJ18: =SUM(CG18,CI18) -> 0 | CK18: 1 | CL18: 1 | CM18: 2 | CN18: =SUM(CK18,CM18) -> 3 | CR18: =SUM(CO18,CQ18) -> 0
A19: 15 | C19: 53 | D19: Douglas Taylor | E19: Golden Panthers | F19: 12 | G19: 9 | H19: 8 | I19: 7 | J19: =SUM(G19:I19) -> 24 | K19: 1 | Q19: 6 | R19: 4 | S19: 2 | T19: =(Q19*2+S19)/(SUM(Q19:S19)*2) -> 0.5833333333 | U19: 59 | V19: 45 | AN19: =SUM(AK19,AM19) -> 0 | AR19: =SUM(AO19,AQ19) -> 0 | AS19: 0 | AT19: 1 | AU19: 0 | AV19: =SUM(AS19,AU19) -> 0 | AW19: 1 | AX19: 2 | AY19: 1 | AZ19: =SUM(AW19,AY19) -> 2 | BA19: 3 | BB19: 3 | BC19: 4 | BD19: =SUM(BA19,BC19) -> 7 | BH19: =SUM(BE19,BG19) -> 0 | BI19: 0 | BJ19: 1 | BK19: 2 | BL19: =SUM(BI19,BK19) -> 2 | BM19: 2 | BN19: 2 | BO19: 3 | BP19: =SUM(BM19,BO19) -> 5 | BQ19: 1 | BR19: 1 | BS19: 1 | BT19: =SUM(BQ19,BS19) -> 2 | BY19: 0 | BZ19: 1 | CA19: 2 | CJ19: =SUM(CG19,CI19) -> 0 | CK19: 2 | CL19: 1 | CM19: 2 | CN19: =SUM(CK19,CM19) -> 4 | CR19: =SUM(CO19,CQ19) -> 0
A20: 16 | C20: 51 | D20: Vince MacDonald | E20: Golden Panthers | F20: 12 | G20: 11 | H20: 8 | I20: 2 | J20: =SUM(G20:I20) -> 21 | K20: 2 | L20: 1 | P20: 3 | Q20: 6 | R20: 4 | S20: 2 | T20: =(Q20*2+S20)/(SUM(Q20:S20)*2) -> 0.5833333333 | U20: 59 | V20: 45 | AN20: =SUM(AK20,AM20) -> 0 | AR20: =SUM(AO20,AQ20) -> 0 | AS20: 0 | AT20: 1 | AU20: 0 | AV20: =SUM(AS20,AU20) -> 0 | AW20: 2 | AX20: 2 | AY20: 1 | AZ20: =SUM(AW20,AY20) -> 3 | BA20: 0 | BB20: 3 | BC20: 1 | BD20: =SUM(BA20,BC20) -> 1 | BH20: =SUM(BE20,BG20) -> 0 | BI20: 1 | BJ20: 1 | BK20: 0 | BL20: =SUM(BI20,BK20) -> 1 | BM20: 4 | BN20: 2 | BO20: 3 | BP20: =SUM(BM20,BO20) -> 7 | BQ20: 0 | BR20: 1 | BS20: 0 | BT20: =SUM(BQ20,BS20) -> 0 | BY20: 3 | BZ20: 1 | CA20: 4 | CJ20: =SUM(CG20,CI20) -> 0 | CK20: 1 | CL20: 1 | CM20: 1 | CN20: =SUM(CK20,CM20) -> 2 | CR20: =SUM(CO20,CQ20) -> 0
A21: 17 | C21: 61 | D21: Jon Loubert | E21: Red Light District | F21: 12 | G21: 12 | H21: 4 | I21: 2 | J21: =SUM(G21:I21) -> 18 | L21: 2 | N21: 1 | Q21: 4 | R21: 7 | S21: 1 | T21: =(Q21*2+S21)/(SUM(Q21:S21)*2) -> 0.375 | U21: 50 | V21: 66 | AN21: =SUM(AK21,AM21) -> 0 | AO21: 1 | AP21: 1 | AQ21: 1 | AR21: =SUM(AO21,AQ21) -> 2 | AS21: 4 | AT21: 2 | AU21: 0 | AV21: =SUM(AS21,AU21) -> 4 | AW21: 2 | AX21: 3 | AY21: 2 | AZ21: =SUM(AW21,AY21) -> 4 | BA21: 0 | BB21: 1 | BC21: 0 | BD21: =SUM(BA21,BC21) -> 0 | BH21: =SUM(BE21,BG21) -> 0 | BI21: 2 | BJ21: 3 | BK21: 1 | BL21: =SUM(BI21,BK21) -> 3 | BM21: 3 | BN21: 1 | BO21: 2 | BP21: =SUM(BM21,BO21) -> 5 | BQ21: 0 | BR21: 1 | BS21: 0 | BT21: =SUM(BQ21,BS21) -> 0 | CJ21: =SUM(CG21,CI21) -> 0 | CN21: =SUM(CK21,CM21) -> 0 | CR21: =SUM(CO21,CQ21) -> 0
A22: 18 | C22: 68 | D22: Troy Doyle | E22: Red Light District | F22: 12 | G22: 8 | H22: 7 | I22: 3 | J22: =SUM(G22:I22) -> 18 | K22: 1 | P22: 1 | Q22: 4 | R22: 7 | S22: 1 | T22: =(Q22*2+S22)/(SUM(Q22:S22)*2) -> 0.375 | U22: 50 | V22: 66 | AN22: =SUM(AK22,AM22) -> 0 | AO22: 0 | AP22: 1 | AQ22: 0 | AR22: =SUM(AO22,AQ22) -> 0 | AS22: 0 | AT22: 2 | AU22: 1 | AV22: =SUM(AS22,AU22) -> 1 | AW22: 4 | AX22: 3 | AY22: 1 | AZ22: =SUM(AW22,AY22) -> 5 | BA22: 2 | BB22: 1 | BC22: 0 | BD22: =SUM(BA22,BC22) -> 2 | BH22: =SUM(BE22,BG22) -> 0 | BI22: 1 | BJ22: 3 | BK22: 4 | BL22: =SUM(BI22,BK22) -> 5 | BM22: 0 | BN22: 1 | BO22: 4 | BP22: =SUM(BM22,BO22) -> 4 | BQ22: 1 | BR22: 1 | BS22: 0 | BT22: =SUM(BQ22,BS22) -> 1 | CJ22: =SUM(CG22,CI22) -> 0 | CN22: =SUM(CK22,CM22) -> 0 | CR22: =SUM(CO22,CQ22) -> 0
A23: 19 | C23: 27 | D23: Rick Bartlett | E23: Slashing Pumpkins | F23: 12 | G23: 8 | H23: 10 | I23: 3 | J23: =SUM(G23:I23) -> 21 | K23: 2 | L23: 2 | O23: 2 | P23: 2 | Q23: 11 | R23: 1 | T23: =(Q23*2+S23)/(SUM(Q23:S23)*2) -> 0.9166666667 | U23: 80 | V23: 35 | AK23: 0 | AL23: 1 | AM23: 0 | AN23: =SUM(AK23,AM23) -> 0 | AO23: 0 | AP23: 1 | AQ23: 2 | AR23: =SUM(AO23,AQ23) -> 2 | AV23: =SUM(AS23,AU23) -> 0 | AW23: 1 | AX23: 1 | AY23: 0 | AZ23: =SUM(AW23,AY23) -> 1 | BA23: 0 | BB23: 1 | BC23: 1 | BD23: =SUM(BA23,BC23) -> 1 | BH23: =SUM(BE23,BG23) -> 0 | BI23: 0 | BJ23: 2 | BK23: 1 | BL23: =SUM(BI23,BK23) -> 1 | BM23: 0 | BN23: 2 | BO23: 3 | BP23: =SUM(BM23,BO23) -> 3 | BQ23: 4 | BR23: 2 | BS23: 1 | BT23: =SUM(BQ23,BS23) -> 5 | BY23: 1 | BZ23: 1 | CA23: 3 | CC23: 2 | CD23: 1 | CE23: 2 | CJ23: =SUM(CG23,CI23) -> 0 | CN23: =SUM(CK23,CM23) -> 0 | CR23: =SUM(CO23,CQ23) -> 0
A24: 20 | C24: 23 | D24: Jacob Wilson | E24: Slashing Pumpkins | F24: 12 | G24: 14 | H24: 5 | I24: 2 | J24: =SUM(G24:I24) -> 21 | K24: 2 | L24: 1 | O24: 2 | Q24: 11 | R24: 1 | T24: =(Q24*2+S24)/(SUM(Q24:S24)*2) -> 0.9166666667 | U24: 80 | V24: 35 | AK24: 0 | AL24: 1 | AM24: 0 | AN24: =SUM(AK24,AM24) -> 0 | AO24: 0 | AP24: 1 | AQ24: 1 | AR24: =SUM(AO24,AQ24) -> 1 | AV24: =SUM(AS24,AU24) -> 0 | AW24: 0 | AX24: 1 | AY24: 0 | AZ24: =SUM(AW24,AY24) -> 0 | BA24: 2 | BB24: 1 | BC24: 1 | BD24: =SUM(BA24,BC24) -> 3 | BH24: =SUM(BE24,BG24) -> 0 | BI24: 1 | BJ24: 2 | BK24: 0 | BL24: =SUM(BI24,BK24) -> 1 | BM24: 4 | BN24: 2 | BO24: 0 | BP24: =SUM(BM24,BO24) -> 4 | BQ24: 3 | BR24: 2 | BS24: 3 | BT24: =SUM(BQ24,BS24) -> 6 | BY24: 2 | BZ24: 1 | CA24: 0 | CC24: 2 | CD24: 1 | CE24: 2 | CJ24: =SUM(CG24,CI24) -> 0 | CN24: =SUM(CK24,CM24) -> 0 | CR24: =SUM(CO24,CQ24) -> 0
A25: 21 | C25: 14 | D25: Mark Whitlock | E25: White Lightning | F25: 12 | G25: 7 | H25: 5 | I25: 1 | J25: =SUM(G25:I25) -> 13 | R25: 11 | S25: 1 | T25: =(Q25*2+S25)/(SUM(Q25:S25)*2) -> 0.04166666667 | U25: 35 | V25: 87 | AK25: 0 | AL25: 2 | AM25: 1 | AN25: =SUM(AK25,AM25) -> 1 | AR25: =SUM(AO25,AQ25) -> 0 | AS25: 2 | AT25: 3 | AU25: 3 | AV25: =SUM(AS25,AU25) -> 5 | AW25: 2 | AX25: 2 | AY25: 0 | AZ25: =SUM(AW25,AY25) -> 2 | BA25: 0 | BB25: 1 | BC25: 0 | BD25: =SUM(BA25,BC25) -> 0 | BH25: =SUM(BE25,BG25) -> 0 | BI25: 0 | BJ25: 1 | BK25: 1 | BL25: =SUM(BI25,BK25) -> 1 | BM25: 1 | BN25: 2 | BO25: 0 | BP25: =SUM(BM25,BO25) -> 1 | BQ25: 2 | BR25: 1 | BS25: 1 | BT25: =SUM(BQ25,BS25) -> 3 | CJ25: =SUM(CG25,CI25) -> 0 | CN25: =SUM(CK25,CM25) -> 0 | CR25: =SUM(CO25,CQ25) -> 0
A26: 22 | C26: 88 | D26: Stephen Atherton | E26: The Green Machine | F26: 9 | G26: 3 | H26: 6 | I26: 3 | J26: =SUM(G26:I26) -> 12 | N26: 1 | O26: 1 | Q26: 2 | R26: 6 | S26: 1 | T26: =(Q26*2+S26)/(SUM(Q26:S26)*2) -> 0.2777777778 | U26: 35 | V26: 40 | AK26: 1 | AL26: 1 | AM26: 1 | AN26: =SUM(AK26,AM26) -> 2 | AR26: =SUM(AO26,AQ26) -> 0 | AS26: 0 | AT26: 1 | AU26: 0 | AV26: =SUM(AS26,AU26) -> 0 | AW26: 0 | AX26: 1 | AY26: 1 | AZ26: =SUM(AW26,AY26) -> 1 | BD26: =SUM(BA26,BC26) -> 0 | BH26: =SUM(BE26,BG26) -> 0 | BI26: 0 | BJ26: 1 | BK26: 0 | BL26: =SUM(BI26,BK26) -> 0 | BM26: 0 | BN26: 1 | BO26: 2 | BP26: =SUM(BM26,BO26) -> 2 | BQ26: 0 | BR26: 2 | BS26: 2 | BT26: =SUM(BQ26,BS26) -> 2 | BU26: 1 | BV26: 1 | BW26: 1 | BY26: 1 | BZ26: 1 | CA26: 2 | CJ26: =SUM(CG26,CI26) -> 0 | CN26: =SUM(CK26,CM26) -> 0 | CR26: =SUM(CO26,CQ26) -> 0
A27: 23 | C27: 21 | D27: James Campbell | E27: Slashing Pumpkins | F27: 12 | G27: 2 | H27: 12 | I27: 4 | J27: =SUM(G27:I27) -> 18 | K27: 1 | L27: 3 | O27: 1 | P27: 2 | Q27: 11 | R27: 1 | T27: =(Q27*2+S27)/(SUM(Q27:S27)*2) -> 0.9166666667 | U27: 80 | V27: 35 | AK27: 0 | AL27: 1 | AM27: 0 | AN27: =SUM(AK27,AM27) -> 0 | AO27: 1 | AP27: 1 | AQ27: 1 | AR27: =SUM(AO27,AQ27) -> 2 | AV27: =SUM(AS27,AU27) -> 0 | AW27: 0 | AX27: 1 | AY27: 0 | AZ27: =SUM(AW27,AY27) -> 0 | BA27: 0 | BB27: 1 | BC27: 2 | BD27: =SUM(BA27,BC27) -> 2 | BH27: =SUM(BE27,BG27) -> 0 | BI27: 0 | BJ27: 2 | BK27: 3 | BL27: =SUM(BI27,BK27) -> 3 | BM27: 0 | BN27: 2 | BO27: 2 | BP27: =SUM(BM27,BO27) -> 2 | BQ27: 1 | BR27: 2 | BS27: 2 | BT27: =SUM(BQ27,BS27) -> 3 | BY27: 0 | BZ27: 1 | CA27: 3 | CC27: 0 | CD27: 1 | CE27: 3 | CJ27: =SUM(CG27,CI27) -> 0 | CN27: =SUM(CK27,CM27) -> 0 | CR27: =SUM(CO27,CQ27) -> 0
A28: 24 | C28: 15 | D28: Sean Keenan | E28: White Lightning | F28: 7 | G28: 5 | H28: 5 | I28: 1 | J28: =SUM(G28:I28) -> 11 | R28: 6 | S28: 1 | T28: =(Q28*2+S28)/(SUM(Q28:S28)*2) -> 0.07142857143 | U28: 23 | V28: 42 | AN28: =SUM(AK28,AM28) -> 0 | AR28: =SUM(AO28,AQ28) -> 0 | AS28: 2 | AT28: 2 | AU28: 3 | AV28: =SUM(AS28,AU28) -> 5 | AW28: 0 | AX28: 2 | AY28: 2 | AZ28: =SUM(AW28,AY28) -> 2 | BD28: =SUM(BA28,BC28) -> 0 | BH28: =SUM(BE28,BG28) -> 0 | BI28: 1 | BJ28: 1 | BK28: 0 | BL28: =SUM(BI28,BK28) -> 1 | BM28: 1 | BN28: 1 | BO28: 0 | BP28: =SUM(BM28,BO28) -> 1 | BQ28: 1 | BR28: 1 | BS28: 1 | BT28: =SUM(BQ28,BS28) -> 2 | CJ28: =SUM(CG28,CI28) -> 0 | CN28: =SUM(CK28,CM28) -> 0 | CR28: =SUM(CO28,CQ28) -> 0
A29: 25 | C29: 45 | D29: Mike Clarke | E29: Blue Storm | F29: 9 | G29: 7 | H29: 4 | I29: 2 | J29: =SUM(G29:I29) -> 13 | Q29: 3 | R29: 6 | T29: =(Q29*2+S29)/(SUM(Q29:S29)*2) -> 0.3333333333 | U29: 34 | V29: 48 | AK29: 0 | AL29: 1 | AM29: 0 | AN29: =SUM(AK29,AM29) -> 0 | AO29: 1 | AP29: 1 | AQ29: 1 | AR29: =SUM(AO29,AQ29) -> 2 | AS29: 1 | AT29: 1 | AU29: 1 | AV29: =SUM(AS29,AU29) -> 2 | AW29: 2 | AX29: 1 | AY29: 0 | AZ29: =SUM(AW29,AY29) -> 2 | BA29: 2 | BB29: 1 | BC29: 1 | BD29: =SUM(BA29,BC29) -> 3 | BH29: =SUM(BE29,BG29) -> 0 | BI29: 0 | BJ29: 2 | BK29: 2 | BL29: =SUM(BI29,BK29) -> 2 | BP29: =SUM(BM29,BO29) -> 0 | BQ29: 0 | BR29: 1 | BS29: 0 | BT29: =SUM(BQ29,BS29) -> 0 | BU29: 1 | BV29: 1 | BW29: 1 | CJ29: =SUM(CG29,CI29) -> 0 | CN29: =SUM(CK29,CM29) -> 0 | CR29: =SUM(CO29,CQ29) -> 0
A30: 26 | C30: 75 | D30: Denis Loubert | E30: Retribution | F30: 12 | G30: 5 | H30: 7 | I30: 2 | J30: =SUM(G30:I30) -> 14 | L30: 1 | P30: 1 | Q30: 10 | R30: 2 | T30: =(Q30*2+S30)/(SUM(Q30:S30)*2) -> 0.8333333333 | U30: 76 | V30: 42 | AK30: 0 | AL30: 1 | AM30: 0 | AN30: =SUM(AK30,AM30) -> 0 | AO30: 0 | AP30: 1 | AQ30: 0 | AR30: =SUM(AO30,AQ30) -> 0 | AS30: 1 | AT30: 1 | AU30: 2 | AV30: =SUM(AS30,AU30) -> 3 | AZ30: =SUM(AW30,AY30) -> 0 | BA30: 0 | BB30: 1 | BC30: 1 | BD30: =SUM(BA30,BC30) -> 1 | BH30: =SUM(BE30,BG30) -> 0 | BI30: 0 | BJ30: 1 | BK30: 1 | BL30: =SUM(BI30,BK30) -> 1 | BM30: 1 | BN30: 2 | BO30: 0 | BP30: =SUM(BM30,BO30) -> 1 | BQ30: 3 | BR30: 4 | BS30: 3 | BT30: =SUM(BQ30,BS30) -> 6 | CJ30: =SUM(CG30,CI30) -> 0 | CK30: 0 | CL30: 1 | CM30: 2 | CN30: =SUM(CK30,CM30) -> 2 | CR30: =SUM(CO30,CQ30) -> 0
A31: 27 | C31: 47 | D31: Stephen Rafuse | E31: Blue Storm | F31: 9 | G31: 6 | H31: 3 | I31: 1 | J31: =SUM(G31:I31) -> 10 | K31: 1 | L31: 2 | Q31: 4 | R31: 5 | T31: =(Q31*2+S31)/(SUM(Q31:S31)*2) -> 0.4444444444 | U31: 32 | V31: 44 | AN31: =SUM(AK31,AM31) -> 0 | AO31: 1 | AP31: 1 | AQ31: 1 | AR31: =SUM(AO31,AQ31) -> 2 | AS31: 0 | AT31: 1 | AU31: 1 | AV31: =SUM(AS31,AU31) -> 1 | AW31: 3 | AX31: 1 | AY31: 0 | AZ31: =SUM(AW31,AY31) -> 3 | BA31: 0 | BB31: 1 | BC31: 2 | BD31: =SUM(BA31,BC31) -> 2 | BH31: =SUM(BE31,BG31) -> 0 | BI31: 1 | BJ31: 3 | BK31: 0 | BL31: =SUM(BI31,BK31) -> 1 | BP31: =SUM(BM31,BO31) -> 0 | BQ31: 1 | BR31: 1 | BS31: 0 | BT31: =SUM(BQ31,BS31) -> 1 | BU31: 0 | BV31: 1 | BW31: 0 | CJ31: =SUM(CG31,CI31) -> 0 | CN31: =SUM(CK31,CM31) -> 0 | CR31: =SUM(CO31,CQ31) -> 0
A32: 28 | C32: 35 | D32: Jamie Carson | E32: Purple Heys | F32: 12 | G32: 7 | H32: 4 | I32: 5 | J32: =SUM(G32:I32) -> 16 | Q32: 6 | R32: 5 | S32: 1 | T32: =(Q32*2+S32)/(SUM(Q32:S32)*2) -> 0.5416666667 | U32: 52 | V32: 44 | AN32: =SUM(AK32,AM32) -> 0 | AO32: 0 | AP32: 1 | AQ32: 0 | AR32: =SUM(AO32,AQ32) -> 0 | AS32: 1 | AT32: 2 | AU32: 2 | AV32: =SUM(AS32,AU32) -> 3 | AW32: 1 | AX32: 1 | AY32: 1 | AZ32: =SUM(AW32,AY32) -> 2 | BA32: 0 | BB32: 1 | BC32: 1 | BD32: =SUM(BA32,BC32) -> 1 | BH32: =SUM(BE32,BG32) -> 0 | BL32: =SUM(BI32,BK32) -> 0 | BM32: 2 | BN32: 3 | BO32: 0 | BP32: =SUM(BM32,BO32) -> 2 | BQ32: 0 | BR32: 1 | BS32: 1 | BT32: =SUM(BQ32,BS32) -> 1 | BU32: 2 | BV32: 1 | BW32: 1 | CC32: 1 | CD32: 1 | CE32: 2 | CG32: 0 | CH32: 1 | CI32: 1 | CJ32: =SUM(CG32,CI32) -> 1 | CN32: =SUM(CK32,CM32) -> 0 | CR32: =SUM(CO32,CQ32) -> 0
A33: 29 | C33: 17 | D33: Wayne Helpard | E33: White Lightning | F33: 12 | G33: 4 | H33: 5 | I33: 5 | J33: =SUM(G33:I33) -> 14 | R33: 11 | S33: 1 | T33: =(Q33*2+S33)/(SUM(Q33:S33)*2) -> 0.04166666667 | U33: 35 | V33: 87 | AK33: 1 | AL33: 2 | AM33: 0 | AN33: =SUM(AK33,AM33) -> 1 | AR33: =SUM(AO33,AQ33) -> 0 | AS33: 1 | AT33: 3 | AU33: 2 | AV33: =SUM(AS33,AU33) -> 3 | AW33: 1 | AX33: 2 | AY33: 3 | AZ33: =SUM(AW33,AY33) -> 4 | BA33: 1 | BB33: 1 | BC33: 1 | BD33: =SUM(BA33,BC33) -> 2 | BH33: =SUM(BE33,BG33) -> 0 | BI33: 0 | BJ33: 1 | BK33: 0 | BL33: =SUM(BI33,BK33) -> 0 | BM33: 0 | BN33: 2 | BO33: 3 | BP33: =SUM(BM33,BO33) -> 3 | BQ33: 0 | BR33: 1 | BS33: 1 | BT33: =SUM(BQ33,BS33) -> 1 | CJ33: =SUM(CG33,CI33) -> 0 | CN33: =SUM(CK33,CM33) -> 0 | CR33: =SUM(CO33,CQ33) -> 0
A34: 30 | C34: 67 | D34: Tim O'Leary | E34: Red Light District | F34: 7 | G34: 4 | H34: 2 | I34: 4 | J34: =SUM(G34:I34) -> 10 | K34: 1 | L34: 2 | Q34: 4 | R34: 3 | T34: =(Q34*2+S34)/(SUM(Q34:S34)*2) -> 0.5714285714 | U34: 35 | V34: 33 | AN34: =SUM(AK34,AM34) -> 0 | AR34: =SUM(AO34,AQ34) -> 0 | AV34: =SUM(AS34,AU34) -> 0 | AW34: 1 | AX34: 2 | AY34: 1 | AZ34: =SUM(AW34,AY34) -> 2 | BA34: 0 | BB34: 1 | BC34: 1 | BD34: =SUM(BA34,BC34) -> 1 | BH34: =SUM(BE34,BG34) -> 0 | BI34: 2 | BJ34: 2 | BK34: 1 | BL34: =SUM(BI34,BK34) -> 3 | BM34: 0 | BN34: 1 | BO34: 1 | BP34: =SUM(BM34,BO34) -> 1 | BQ34: 1 | BR34: 1 | BS34: 2 | BT34: =SUM(BQ34,BS34) -> 3 | CJ34: =SUM(CG34,CI34) -> 0 | CN34: =SUM(CK34,CM34) -> 0 | CR34: =SUM(CO34,CQ34) -> 0
A35: 31 | C35: 31 | D35: Mike Connor | E35: Purple Heys | F35: 12 | G35: 5 | H35: 7 | I35: 3 | J35: =SUM(G35:I35) -> 15 | K35: 2 | L35: 1 | Q35: 6 | R35: 5 | S35: 1 | T35: =(Q35*2+S35)/(SUM(Q35:S35)*2) -> 0.5416666667 | U35: 52 | V35: 44 | AN35: =SUM(AK35,AM35) -> 0 | AO35: 0 | AP35: 1 | AQ35: 1 | AR35: =SUM(AO35,AQ35) -> 1 | AS35: 0 | AT35: 2 | AU35: 3 | AV35: =SUM(AS35,AU35) -> 3 | AW35: 0 | AX35: 1 | AY35: 1 | AZ35: =SUM(AW35,AY35) -> 1 | BA35: 1 | BB35: 1 | BC35: 1 | BD35: =SUM(BA35,BC35) -> 2 | BH35: =SUM(BE35,BG35) -> 0 | BL35: =SUM(BI35,BK35) -> 0 | BM35: 1 | BN35: 3 | BO35: 1 | BP35: =SUM(BM35,BO35) -> 2 | BQ35: 0 | BR35: 1 | BS35: 0 | BT35: =SUM(BQ35,BS35) -> 0 | BU35: 1 | BV35: 1 | BW35: 1 | CC35: 1 | CD35: 1 | CE35: 1 | CG35: 1 | CH35: 1 | CI35: 1 | CJ35: =SUM(CG35,CI35) -> 2 | CN35: =SUM(CK35,CM35) -> 0 | CR35: =SUM(CO35,CQ35) -> 0
A36: 32 | C36: 22 | D36: Doug Virtue | E36: Slashing Pumpkins | F36: 9 | G36: 0 | H36: 4 | I36: 6 | J36: =SUM(G36:I36) -> 10 | L36: 2 | P36: 1 | Q36: 8 | R36: 1 | T36: =(Q36*2+S36)/(SUM(Q36:S36)*2) -> 0.8888888889 | U36: 52 | V36: 26 | AK36: 0 | AL36: 1 | AM36: 1 | AN36: =SUM(AK36,AM36) -> 1 | AO36: 0 | AP36: 1 | AQ36: 1 | AR36: =SUM(AO36,AQ36) -> 1 | AV36: =SUM(AS36,AU36) -> 0 | AW36: 0 | AX36: 1 | AY36: 0 | AZ36: =SUM(AW36,AY36) -> 0 | BA36: 0 | BB36: 1 | BC36: 2 | BD36: =SUM(BA36,BC36) -> 2 | BH36: =SUM(BE36,BG36) -> 0 | BI36: 0 | BJ36: 1 | BK36: 0 | BL36: =SUM(BI36,BK36) -> 0 | BM36: 0 | BN36: 2 | BO36: 2 | BP36: =SUM(BM36,BO36) -> 2 | BQ36: 0 | BR36: 1 | BS36: 1 | BT36: =SUM(BQ36,BS36) -> 1 | BY36: 0 | BZ36: 1 | CA36: 3 | CJ36: =SUM(CG36,CI36) -> 0 | CN36: =SUM(CK36,CM36) -> 0 | CR36: =SUM(CO36,CQ36) -> 0
A37: 33 | C37: 28 | D37: Trevor Graham | E37: Slashing Pumpkins | F37: 12 | G37: 5 | H37: 3 | I37: 7 | J37: =SUM(G37:I37) -> 15 | K37: 1 | L37: 2 | O37: 1 | P37: 1 | Q37: 11 | R37: 1 | T37: =(Q37*2+S37)/(SUM(Q37:S37)*2) -> 0.9166666667 | U37: 80 | V37: 35 | AK37: 0 | AL37: 1 | AM37: 0 | AN37: =SUM(AK37,AM37) -> 0 | AO37: 1 | AP37: 1 | AQ37: 0 | AR37: =SUM(AO37,AQ37) -> 1 | AV37: =SUM(AS37,AU37) -> 0 | AW37: 0 | AX37: 1 | AY37: 0 | AZ37: =SUM(AW37,AY37) -> 0 | BA37: 0 | BB37: 1 | BC37: 1 | BD37: =SUM(BA37,BC37) -> 1 | BH37: =SUM(BE37,BG37) -> 0 | BI37: 0 | BJ37: 2 | BK37: 2 | BL37: =SUM(BI37,BK37) -> 2 | BM37: 0 | BN37: 2 | BO37: 1 | BP37: =SUM(BM37,BO37) -> 1 | BQ37: 0 | BR37: 2 | BS37: 2 | BT37: =SUM(BQ37,BS37) -> 2 | BY37: 1 | BZ37: 1 | CA37: 2 | CC37: 3 | CD37: 1 | CE37: 2 | CJ37: =SUM(CG37,CI37) -> 0 | CN37: =SUM(CK37,CM37) -> 0 | CR37: =SUM(CO37,CQ37) -> 0
A38: 34 | C38: 43 | D38: Matthew Petitpas | E38: Blue Storm | F38: 12 | G38: 7 | H38: 3 | I38: 0 | J38: =SUM(G38:I38) -> 10 | K38: 1 | Q38: 6 | R38: 6 | T38: =(Q38*2+S38)/(SUM(Q38:S38)*2) -> 0.5 | U38: 47 | V38: 55 | AK38: 0 | AL38: 1 | AM38: 0 | AN38: =SUM(AK38,AM38) -> 0 | AO38: 1 | AP38: 1 | AQ38: 0 | AR38: =SUM(AO38,AQ38) -> 1 | AS38: 1 | AT38: 1 | AU38: 1 | AV38: =SUM(AS38,AU38) -> 2 | AW38: 0 | AX38: 2 | AY38: 0 | AZ38: =SUM(AW38,AY38) -> 0 | BA38: 1 | BB38: 1 | BC38: 1 | BD38: =SUM(BA38,BC38) -> 2 | BH38: =SUM(BE38,BG38) -> 0 | BI38: 1 | BJ38: 3 | BK38: 0 | BL38: =SUM(BI38,BK38) -> 1 | BP38: =SUM(BM38,BO38) -> 0 | BQ38: 1 | BR38: 1 | BS38: 0 | BT38: =SUM(BQ38,BS38) -> 1 | BU38: 1 | BV38: 1 | BW38: 0 | CJ38: =SUM(CG38,CI38) -> 0 | CK38: 1 | CL38: 1 | CM38: 1 | CN38: =SUM(CK38,CM38) -> 2 | CR38: =SUM(CO38,CQ38) -> 0
A39: 35 | C39: 24 | D39: John Stewart | E39: Slashing Pumpkins | F39: 12 | G39: 7 | H39: 6 | I39: 1 | J39: =SUM(G39:I39) -> 14 | K39: 1 | O39: 1 | P39: 2 | Q39: 11 | R39: 1 | T39: =(Q39*2+S39)/(SUM(Q39:S39)*2) -> 0.9166666667 | U39: 80 | V39: 35 | AK39: 0 | AL39: 1 | AM39: 0 | AN39: =SUM(AK39,AM39) -> 0 | AO39: 1 | AP39: 1 | AQ39: 1 | AR39: =SUM(AO39,AQ39) -> 2 | AV39: =SUM(AS39,AU39) -> 0 | AW39: 0 | AX39: 1 | AY39: 0 | AZ39: =SUM(AW39,AY39) -> 0 | BA39: 2 | BB39: 1 | BC39: 0 | BD39: =SUM(BA39,BC39) -> 2 | BH39: =SUM(BE39,BG39) -> 0 | BI39: 2 | BJ39: 2 | BK39: 0 | BL39: =SUM(BI39,BK39) -> 2 | BM39: 0 | BN39: 2 | BO39: 2 | BP39: =SUM(BM39,BO39) -> 2 | BQ39: 1 | BR39: 2 | BS39: 1 | BT39: =SUM(BQ39,BS39) -> 2 | BY39: 0 | BZ39: 1 | CA39: 2 | CC39: 1 | CD39: 1 | CE39: 1 | CJ39: =SUM(CG39,CI39) -> 0 | CN39: =SUM(CK39,CM39) -> 0 | CR39: =SUM(CO39,CQ39) -> 0
A40: 36 | C40: 66 | D40: Sly Villenueve | E40: Red Light District | F40: 4 | G40: 3 | H40: 4 | I40: 0 | J40: =SUM(G40:I40) -> 7 | L40: 1 | Q40: 3 | R40: 1 | T40: =(Q40*2+S40)/(SUM(Q40:S40)*2) -> 0.75 | U40: 23 | V40: 14 | AN40: =SUM(AK40,AM40) -> 0 | AR40: =SUM(AO40,AQ40) -> 0 | AV40: =SUM(AS40,AU40) -> 0 | AW40: 0 | AX40: 1 | AY40: 0 | AZ40: =SUM(AW40,AY40) -> 0 | BD40: =SUM(BA40,BC40) -> 0 | BH40: =SUM(BE40,BG40) -> 0 | BI40: 2 | BJ40: 2 | BK40: 3 | BL40: =SUM(BI40,BK40) -> 5 | BM40: 1 | BN40: 1 | BO40: 1 | BP40: =SUM(BM40,BO40) -> 2 | BT40: =SUM(BQ40,BS40) -> 0 | CJ40: =SUM(CG40,CI40) -> 0 | CN40: =SUM(CK40,CM40) -> 0 | CR40: =SUM(CO40,CQ40) -> 0
A41: 37 | C41: 52 | D41: Chris Benoit | E41: Golden Panthers | F41: 12 | G41: 2 | H41: 6 | I41: 2 | J41: =SUM(G41:I41) -> 10 | L41: 1 | M41: 1 | Q41: 6 | R41: 4 | S41: 2 | T41: =(Q41*2+S41)/(SUM(Q41:S41)*2) -> 0.5833333333 | U41: 59 | V41: 45 | AN41: =SUM(AK41,AM41) -> 0 | AR41: =SUM(AO41,AQ41) -> 0 | AS41: 0 | AT41: 1 | AU41: 0 | AV41: =SUM(AS41,AU41) -> 0 | AW41: 0 | AX41: 2 | AY41: 1 | AZ41: =SUM(AW41,AY41) -> 1 | BA41: 1 | BB41: 3 | BC41: 0 | BD41: =SUM(BA41,BC41) -> 1 | BH41: =SUM(BE41,BG41) -> 0 | BI41: 1 | BJ41: 1 | BK41: 0 | BL41: =SUM(BI41,BK41) -> 1 | BM41: 0 | BN41: 2 | BO41: 2 | BP41: =SUM(BM41,BO41) -> 2 | BQ41: 0 | BR41: 1 | BS41: 0 | BT41: =SUM(BQ41,BS41) -> 0 | BY41: 0 | BZ41: 1 | CA41: 3 | CJ41: =SUM(CG41,CI41) -> 0 | CK41: 0 | CL41: 1 | CM41: 2 | CN41: =SUM(CK41,CM41) -> 2 | CR41: =SUM(CO41,CQ41) -> 0
A42: 38 | C42: 13 | D42: Larry Condly | E42: White Lightning | F42: 12 | G42: 3 | H42: 2 | I42: 3 | J42: =SUM(G42:I42) -> 8 | R42: 11 | S42: 1 | T42: =(Q42*2+S42)/(SUM(Q42:S42)*2) -> 0.04166666667 | U42: 35 | V42: 87 | AK42: 0 | AL42: 2 | AM42: 0 | AN42: =SUM(AK42,AM42) -> 0 | AR42: =SUM(AO42,AQ42) -> 0 | AS42: 1 | AT42: 3 | AU42: 0 | AV42: =SUM(AS42,AU42) -> 1 | AW42: 2 | AX42: 2 | AY42: 0 | AZ42: =SUM(AW42,AY42) -> 2 | BA42: 0 | BB42: 1 | BC42: 2 | BD42: =SUM(BA42,BC42) -> 2 | BH42: =SUM(BE42,BG42) -> 0 | BI42: 0 | BJ42: 1 | BK42: 1 | BL42: =SUM(BI42,BK42) -> 1 | BM42: 0 | BN42: 2 | BO42: 0 | BP42: =SUM(BM42,BO42) -> 0 | BQ42: 0 | BR42: 1 | BS42: 2 | BT42: =SUM(BQ42,BS42) -> 2 | CJ42: =SUM(CG42,CI42) -> 0 | CN42: =SUM(CK42,CM42) -> 0 | CR42: =SUM(CO42,CQ42) -> 0
A43: 39 | C43: 63 | D43: Harold Plante | E43: Red Light District | F43: 12 | G43: 4 | H43: 4 | I43: 5 | J43: =SUM(G43:I43) -> 13 | L43: 1 | Q43: 4 | R43: 7 | S43: 1 | T43: =(Q43*2+S43)/(SUM(Q43:S43)*2) -> 0.375 | U43: 50 | V43: 66 | AN43: =SUM(AK43,AM43) -> 0 | AO43: 1 | AP43: 1 | AQ43: 0 | AR43: =SUM(AO43,AQ43) -> 1 | AS43: 0 | AT43: 2 | AU43: 0 | AV43: =SUM(AS43,AU43) -> 0 | AW43: 0 | AX43: 3 | AY43: 2 | AZ43: =SUM(AW43,AY43) -> 2 | BA43: 0 | BB43: 1 | BC43: 0 | BD43: =SUM(BA43,BC43) -> 0 | BH43: =SUM(BE43,BG43) -> 0 | BI43: 2 | BJ43: 3 | BK43: 5 | BL43: =SUM(BI43,BK43) -> 7 | BM43: 0 | BN43: 1 | BO43: 2 | BP43: =SUM(BM43,BO43) -> 2 | BQ43: 1 | BR43: 1 | BS43: 0 | BT43: =SUM(BQ43,BS43) -> 1 | CJ43: =SUM(CG43,CI43) -> 0 | CN43: =SUM(CK43,CM43) -> 0 | CR43: =SUM(CO43,CQ43) -> 0
A44: 40 | C44: 86 | D44: Scott McLean | E44: The Green Machine | F44: 6 | G44: 5 | H44: 0 | I44: 0 | J44: =SUM(G44:I44) -> 5 | Q44: 1 | R44: 5 | T44: =(Q44*2+S44)/(SUM(Q44:S44)*2) -> 0.1666666667 | U44: 20 | V44: 27 | AN44: =SUM(AK44,AM44) -> 0 | AR44: =SUM(AO44,AQ44) -> 0 | AV44: =SUM(AS44,AU44) -> 0 | AW44: 0 | AX44: 1 | AY44: 0 | AZ44: =SUM(AW44,AY44) -> 0 | BD44: =SUM(BA44,BC44) -> 0 | BH44: =SUM(BE44,BG44) -> 0 | BI44: 1 | BJ44: 1 | BK44: 0 | BL44: =SUM(BI44,BK44) -> 1 | BM44: 2 | BN44: 1 | BO44: 0 | BP44: =SUM(BM44,BO44) -> 2 | BQ44: 1 | BR44: 2 | BS44: 0 | BT44: =SUM(BQ44,BS44) -> 1 | BU44: 1 | BV44: 1 | BW44: 0 | CJ44: =SUM(CG44,CI44) -> 0 | CN44: =SUM(CK44,CM44) -> 0 | CR44: =SUM(CO44,CQ44) -> 0
A45: 41 | C45: 76 | D45: Dwayne Johnson | E45: Retribution | F45: 12 | G45: 4 | H45: 2 | I45: 4 | J45: =SUM(G45:I45) -> 10 | K45: 1 | P45: 1 | Q45: 10 | R45: 2 | T45: =(Q45*2+S45)/(SUM(Q45:S45)*2) -> 0.8333333333 | U45: 76 | V45: 42 | AK45: 1 | AL45: 1 | AM45: 0 | AN45: =SUM(AK45,AM45) -> 1 | AO45: 0 | AP45: 1 | AQ45: 1 | AR45: =SUM(AO45,AQ45) -> 1 | AS45: 0 | AT45: 1 | AU45: 0 | AV45: =SUM(AS45,AU45) -> 0 | AZ45: =SUM(AW45,AY45) -> 0 | BA45: 0 | BB45: 1 | BC45: 0 | BD45: =SUM(BA45,BC45) -> 0 | BH45: =SUM(BE45,BG45) -> 0 | BI45: 0 | BJ45: 1 | BK45: 1 | BL45: =SUM(BI45,BK45) -> 1 | BM45: 0 | BN45: 2 | BO45: 2 | BP45: =SUM(BM45,BO45) -> 2 | BQ45: 2 | BR45: 4 | BS45: 2 | BT45: =SUM(BQ45,BS45) -> 4 | CJ45: =SUM(CG45,CI45) -> 0 | CK45: 1 | CL45: 1 | CM45: 0 | CN45: =SUM(CK45,CM45) -> 1 | CR45: =SUM(CO45,CQ45) -> 0
A46: 42 | C46: 48 | D46: Yvon Mayer | E46: Blue Storm | F46: 12 | G46: 5 | H46: 5 | I46: 2 | J46: =SUM(G46:I46) -> 12 | L46: 1 | Q46: 6 | R46: 6 | T46: =(Q46*2+S46)/(SUM(Q46:S46)*2) -> 0.5 | U46: 47 | V46: 55 | AK46: 1 | AL46: 1 | AM46: 0 | AN46: =SUM(AK46,AM46) -> 1 | AO46: 1 | AP46: 1 | AQ46: 2 | AR46: =SUM(AO46,AQ46) -> 3 | AS46: 0 | AT46: 1 | AU46: 0 | AV46: =SUM(AS46,AU46) -> 0 | AW46: 1 | AX46: 2 | AY46: 2 | AZ46: =SUM(AW46,AY46) -> 3 | BA46: 0 | BB46: 1 | BC46: 1 | BD46: =SUM(BA46,BC46) -> 1 | BH46: =SUM(BE46,BG46) -> 0 | BI46: 1 | BJ46: 3 | BK46: 1 | BL46: =SUM(BI46,BK46) -> 2 | BP46: =SUM(BM46,BO46) -> 0 | BQ46: 0 | BR46: 1 | BS46: 0 | BT46: =SUM(BQ46,BS46) -> 0 | BU46: 0 | BV46: 1 | BW46: 0 | CJ46: =SUM(CG46,CI46) -> 0 | CK46: 1 | CL46: 1 | CM46: 1 | CN46: =SUM(CK46,CM46) -> 2 | CR46: =SUM(CO46,CQ46) -> 0
A47: 43 | C47: 82 | D47: Bryan Letcher | E47: The Green Machine | F47: 12 | G47: 1 | H47: 7 | I47: 2 | J47: =SUM(G47:I47) -> 10 | P47: 1 | Q47: 2 | R47: 9 | S47: 1 | T47: =(Q47*2+S47)/(SUM(Q47:S47)*2) -> 0.2083333333 | U47: 46 | V47: 71 | AK47: 0 | AL47: 1 | AM47: 1 | AN47: =SUM(AK47,AM47) -> 1 | AR47: =SUM(AO47,AQ47) -> 0 | AS47: 0 | AT47: 2 | AU47: 2 | AV47: =SUM(AS47,AU47) -> 2 | AW47: 0 | AX47: 1 | AY47: 0 | AZ47: =SUM(AW47,AY47) -> 0 | BD47: =SUM(BA47,BC47) -> 0 | BH47: =SUM(BE47,BG47) -> 0 | BI47: 0 | BJ47: 2 | BK47: 2 | BL47: =SUM(BI47,BK47) -> 2 | BM47: 0 | BN47: 1 | BO47: 0 | BP47: =SUM(BM47,BO47) -> 0 | BQ47: 0 | BR47: 3 | BS47: 1 | BT47: =SUM(BQ47,BS47) -> 1 | BU47: 0 | BV47: 1 | BW47: 1 | BY47: 1 | BZ47: 1 | CA47: 2 | CJ47: =SUM(CG47,CI47) -> 0 | CN47: =SUM(CK47,CM47) -> 0 | CR47: =SUM(CO47,CQ47) -> 0
A48: 44 | C48: 56 | D48: Josh Sewell | E48: Golden Panthers | F48: 12 | G48: 4 | H48: 3 | I48: 1 | J48: =SUM(G48:I48) -> 8 | L48: 1 | O48: 2 | Q48: 6 | R48: 4 | S48: 2 | T48: =(Q48*2+S48)/(SUM(Q48:S48)*2) -> 0.5833333333 | U48: 59 | V48: 45 | AN48: =SUM(AK48,AM48) -> 0 | AR48: =SUM(AO48,AQ48) -> 0 | AS48: 0 | AT48: 1 | AU48: 0 | AV48: =SUM(AS48,AU48) -> 0 | AW48: 0 | AX48: 2 | AY48: 0 | AZ48: =SUM(AW48,AY48) -> 0 | BA48: 1 | BB48: 3 | BC48: 0 | BD48: =SUM(BA48,BC48) -> 1 | BH48: =SUM(BE48,BG48) -> 0 | BI48: 1 | BJ48: 1 | BK48: 0 | BL48: =SUM(BI48,BK48) -> 1 | BM48: 1 | BN48: 2 | BO48: 1 | BP48: =SUM(BM48,BO48) -> 2 | BQ48: 0 | BR48: 1 | BS48: 0 | BT48: =SUM(BQ48,BS48) -> 0 | BY48: 1 | BZ48: 1 | CA48: 1 | CJ48: =SUM(CG48,CI48) -> 0 | CK48: 0 | CL48: 1 | CM48: 2 | CN48: =SUM(CK48,CM48) -> 2 | CR48: =SUM(CO48,CQ48) -> 0
A49: 45 | C49: 58 | D49: Travis Muxworthy | E49: Golden Panthers | F49: 12 | G49: 5 | H49: 3 | I49: 1 | J49: =SUM(G49:I49) -> 9 | K49: 1 | L49: 1 | P49: 1 | Q49: 6 | R49: 4 | S49: 2 | T49: =(Q49*2+S49)/(SUM(Q49:S49)*2) -> 0.5833333333 | U49: 59 | V49: 45 | AN49: =SUM(AK49,AM49) -> 0 | AR49: =SUM(AO49,AQ49) -> 0 | AS49: 0 | AT49: 1 | AU49: 0 | AV49: =SUM(AS49,AU49) -> 0 | AW49: 0 | AX49: 2 | AY49: 0 | AZ49: =SUM(AW49,AY49) -> 0 | BA49: 0 | BB49: 3 | BC49: 0 | BD49: =SUM(BA49,BC49) -> 0 | BH49: =SUM(BE49,BG49) -> 0 | BI49: 0 | BJ49: 1 | BK49: 0 | BL49: =SUM(BI49,BK49) -> 0 | BM49: 1 | BN49: 2 | BO49: 2 | BP49: =SUM(BM49,BO49) -> 3 | BQ49: 0 | BR49: 1 | BS49: 0 | BT49: =SUM(BQ49,BS49) -> 0 | BY49: 2 | BZ49: 1 | CA49: 1 | CJ49: =SUM(CG49,CI49) -> 0 | CK49: 2 | CL49: 1 | CM49: 1 | CN49: =SUM(CK49,CM49) -> 3 | CR49: =SUM(CO49,CQ49) -> 0
A50: 46 | C50: 34 | D50: Christian Haines | E50: Purple Heys | F50: 12 | G50: 5 | H50: 4 | I50: 1 | J50: =SUM(G50:I50) -> 10 | K50: 1 | O50: 1 | Q50: 6 | R50: 5 | S50: 1 | T50: =(Q50*2+S50)/(SUM(Q50:S50)*2) -> 0.5416666667 | U50: 52 | V50: 44 | AN50: =SUM(AK50,AM50) -> 0 | AO50: 0 | AP50: 1 | AQ50: 0 | AR50: =SUM(AO50,AQ50) -> 0 | AS50: 0 | AT50: 2 | AU50: 0 | AV50: =SUM(AS50,AU50) -> 0 | AW50: 0 | AX50: 1 | AY50: 1 | AZ50: =SUM(AW50,AY50) -> 1 | BA50: 0 | BB50: 1 | BC50: 0 | BD50: =SUM(BA50,BC50) -> 0 | BH50: =SUM(BE50,BG50) -> 0 | BL50: =SUM(BI50,BK50) -> 0 | BM50: 1 | BN50: 3 | BO50: 3 | BP50: =SUM(BM50,BO50) -> 4 | BQ50: 0 | BR50: 1 | BS50: 0 | BT50: =SUM(BQ50,BS50) -> 0 | BU50: 0 | BV50: 1 | BW50: 0 | CC50: 3 | CD50: 1 | CE50: 0 | CG50: 1 | CH50: 1 | CI50: 1 | CJ50: =SUM(CG50,CI50) -> 2 | CN50: =SUM(CK50,CM50) -> 0 | CR50: =SUM(CO50,CQ50) -> 0
A51: 47 | C51: 46 | D51: Rakesh Rajput | E51: Blue Storm | F51: 6 | G51: 0 | H51: 4 | I51: 1 | J51: =SUM(G51:I51) -> 5 | L51: 1 | Q51: 3 | R51: 3 | T51: =(Q51*2+S51)/(SUM(Q51:S51)*2) -> 0.5 | U51: 21 | V51: 29 | AN51: =SUM(AK51,AM51) -> 0 | AR51: =SUM(AO51,AQ51) -> 0 | AV51: =SUM(AS51,AU51) -> 0 | AW51: 0 | AX51: 1 | AY51: 1 | AZ51: =SUM(AW51,AY51) -> 1 | BA51: 0 | BB51: 1 | BC51: 1 | BD51: =SUM(BA51,BC51) -> 1 | BH51: =SUM(BE51,BG51) -> 0 | BI51: 0 | BJ51: 2 | BK51: 1 | BL51: =SUM(BI51,BK51) -> 1 | BP51: =SUM(BM51,BO51) -> 0 | BQ51: 0 | BR51: 1 | BS51: 2 | BT51: =SUM(BQ51,BS51) -> 2 | BU51: 0 | BV51: 1 | BW51: 0 | CJ51: =SUM(CG51,CI51) -> 0 | CN51: =SUM(CK51,CM51) -> 0 | CR51: =SUM(CO51,CQ51) -> 0
A52: 48 | C52: 85 | D52: Ray Basque | E52: The Green Machine | F52: 12 | G52: 1 | H52: 3 | I52: 1 | J52: =SUM(G52:I52) -> 5 | L52: 1 | Q52: 2 | R52: 9 | S52: 1 | T52: =(Q52*2+S52)/(SUM(Q52:S52)*2) -> 0.2083333333 | U52: 46 | V52: 71 | AK52: 0 | AL52: 1 | AM52: 0 | AN52: =SUM(AK52,AM52) -> 0 | AR52: =SUM(AO52,AQ52) -> 0 | AS52: 0 | AT52: 2 | AU52: 1 | AV52: =SUM(AS52,AU52) -> 1 | AW52: 0 | AX52: 1 | AY52: 0 | AZ52: =SUM(AW52,AY52) -> 0 | BD52: =SUM(BA52,BC52) -> 0 | BH52: =SUM(BE52,BG52) -> 0 | BI52: 0 | BJ52: 2 | BK52: 0 | BL52: =SUM(BI52,BK52) -> 0 | BM52: 0 | BN52: 1 | BO52: 1 | BP52: =SUM(BM52,BO52) -> 1 | BQ52: 0 | BR52: 3 | BS52: 0 | BT52: =SUM(BQ52,BS52) -> 0 | BU52: 0 | BV52: 1 | BW52: 0 | BY52: 1 | BZ52: 1 | CA52: 2 | CJ52: =SUM(CG52,CI52) -> 0 | CN52: =SUM(CK52,CM52) -> 0 | CR52: =SUM(CO52,CQ52) -> 0
A53: 49 | C53: 78 | D53: Rene Pitre | E53: Retribution | F53: 12 | G53: 2 | H53: 3 | I53: 1 | J53: =SUM(G53:I53) -> 6 | Q53: 10 | R53: 2 | T53: =(Q53*2+S53)/(SUM(Q53:S53)*2) -> 0.8333333333 | U53: 76 | V53: 42 | AK53: 1 | AL53: 1 | AM53: 1 | AN53: =SUM(AK53,AM53) -> 2 | AO53: 0 | AP53: 1 | AQ53: 2 | AR53: =SUM(AO53,AQ53) -> 2 | AS53: 0 | AT53: 1 | AU53: 0 | AV53: =SUM(AS53,AU53) -> 0 | AZ53: =SUM(AW53,AY53) -> 0 | BA53: 0 | BB53: 1 | BC53: 0 | BD53: =SUM(BA53,BC53) -> 0 | BH53: =SUM(BE53,BG53) -> 0 | BI53: 0 | BJ53: 1 | BK53: 0 | BL53: =SUM(BI53,BK53) -> 0 | BM53: 0 | BN53: 2 | BO53: 0 | BP53: =SUM(BM53,BO53) -> 0 | BQ53: 1 | BR53: 4 | BS53: 1 | BT53: =SUM(BQ53,BS53) -> 2 | CJ53: =SUM(CG53,CI53) -> 0 | CK53: 0 | CL53: 1 | CM53: 0 | CN53: =SUM(CK53,CM53) -> 0 | CR53: =SUM(CO53,CQ53) -> 0
A54: 50 | C54: 33 | D54: Carl Brown | E54: Purple Heys | F54: 12 | G54: 4 | H54: 3 | I54: 3 | J54: =SUM(G54:I54) -> 10 | K54: 1 | P54: 1 | Q54: 6 | R54: 5 | S54: 1 | T54: =(Q54*2+S54)/(SUM(Q54:S54)*2) -> 0.5416666667 | U54: 52 | V54: 44 | AN54: =SUM(AK54,AM54) -> 0 | AO54: 0 | AP54: 1 | AQ54: 1 | AR54: =SUM(AO54,AQ54) -> 1 | AS54: 0 | AT54: 2 | AU54: 0 | AV54: =SUM(AS54,AU54) -> 0 | AW54: 0 | AX54: 1 | AY54: 0 | AZ54: =SUM(AW54,AY54) -> 0 | BA54: 0 | BB54: 1 | BC54: 1 | BD54: =SUM(BA54,BC54) -> 1 | BH54: =SUM(BE54,BG54) -> 0 | BL54: =SUM(BI54,BK54) -> 0 | BM54: 1 | BN54: 3 | BO54: 1 | BP54: =SUM(BM54,BO54) -> 2 | BQ54: 0 | BR54: 1 | BS54: 0 | BT54: =SUM(BQ54,BS54) -> 0 | BU54: 0 | BV54: 1 | BW54: 0 | CC54: 1 | CD54: 1 | CE54: 2 | CG54: 2 | CH54: 1 | CI54: 1 | CJ54: =SUM(CG54,CI54) -> 3 | CN54: =SUM(CK54,CM54) -> 0 | CR54: =SUM(CO54,CQ54) -> 0
A55: 51 | C55: 84 | D55: Matthew Wedge | E55: The Green Machine | F55: 7 | G55: 2 | H55: 3 | I55: 1 | J55: =SUM(G55:I55) -> 6 | K55: 1 | Q55: 1 | R55: 6 | T55: =(Q55*2+S55)/(SUM(Q55:S55)*2) -> 0.1428571429 | U55: 25 | V55: 48 | AN55: =SUM(AK55,AM55) -> 0 | AR55: =SUM(AO55,AQ55) -> 0 | AS55: 0 | AT55: 1 | AU55: 2 | AV55: =SUM(AS55,AU55) -> 2 | AW55: 0 | AX55: 1 | AY55: 0 | AZ55: =SUM(AW55,AY55) -> 0 | BD55: =SUM(BA55,BC55) -> 0 | BH55: =SUM(BE55,BG55) -> 0 | BI55: 0 | BJ55: 1 | BK55: 0 | BL55: =SUM(BI55,BK55) -> 0 | BP55: =SUM(BM55,BO55) -> 0 | BQ55: 2 | BR55: 3 | BS55: 2 | BT55: =SUM(BQ55,BS55) -> 4 | BU55: 0 | BV55: 1 | BW55: 0 | CJ55: =SUM(CG55,CI55) -> 0 | CN55: =SUM(CK55,CM55) -> 0 | CR55: =SUM(CO55,CQ55) -> 0
A56: 52 | C56: 11 | D56: Darryl Moorcroft | E56: White Lightning | F56: 6 | G56: 2 | H56: 1 | I56: 0 | J56: =SUM(G56:I56) -> 3 | R56: 5 | S56: 1 | T56: =(Q56*2+S56)/(SUM(Q56:S56)*2) -> 0.08333333333 | U56: 19 | V56: 34 | AN56: =SUM(AK56,AM56) -> 0 | AR56: =SUM(AO56,AQ56) -> 0 | AS56: 0 | AT56: 2 | AU56: 0 | AV56: =SUM(AS56,AU56) -> 0 | AW56: 0 | AX56: 1 | AY56: 0 | AZ56: =SUM(AW56,AY56) -> 0 | BD56: =SUM(BA56,BC56) -> 0 | BH56: =SUM(BE56,BG56) -> 0 | BI56: 0 | BJ56: 1 | BK56: 0 | BL56: =SUM(BI56,BK56) -> 0 | BM56: 0 | BN56: 1 | BO56: 1 | BP56: =SUM(BM56,BO56) -> 1 | BQ56: 2 | BR56: 1 | BS56: 0 | BT56: =SUM(BQ56,BS56) -> 2 | CJ56: =SUM(CG56,CI56) -> 0 | CN56: =SUM(CK56,CM56) -> 0 | CR56: =SUM(CO56,CQ56) -> 0
A57: 53 | C57: 42 | D57: Garrett Ramey | E57: Blue Storm | F57: 3 | G57: 2 | H57: 1 | I57: 0 | J57: =SUM(G57:I57) -> 3 | Q57: 1 | R57: 2 | T57: =(Q57*2+S57)/(SUM(Q57:S57)*2) -> 0.3333333333 | U57: 12 | V57: 17 | AN57: =SUM(AK57,AM57) -> 0 | AR57: =SUM(AO57,AQ57) -> 0 | AV57: =SUM(AS57,AU57) -> 0 | AZ57: =SUM(AW57,AY57) -> 0 | BA57: 2 | BB57: 1 | BC57: 0 | BD57: =SUM(BA57,BC57) -> 2 | BH57: =SUM(BE57,BG57) -> 0 | BI57: 0 | BJ57: 1 | BK57: 0 | BL57: =SUM(BI57,BK57) -> 0 | BP57: =SUM(BM57,BO57) -> 0 | BT57: =SUM(BQ57,BS57) -> 0 | BU57: 0 | BV57: 1 | BW57: 1 | CJ57: =SUM(CG57,CI57) -> 0 | CN57: =SUM(CK57,CM57) -> 0 | CR57: =SUM(CO57,CQ57) -> 0
A58: 54 | C58: 38 | D58: Justin Lawson | E58: Purple Heys | F58: 12 | G58: 4 | H58: 1 | I58: 1 | J58: =SUM(G58:I58) -> 6 | O58: 1 | Q58: 6 | R58: 5 | S58: 1 | T58: =(Q58*2+S58)/(SUM(Q58:S58)*2) -> 0.5416666667 | U58: 52 | V58: 44 | AN58: =SUM(AK58,AM58) -> 0 | AO58: 1 | AP58: 1 | AQ58: 0 | AR58: =SUM(AO58,AQ58) -> 1 | AS58: 0 | AT58: 2 | AU58: 0 | AV58: =SUM(AS58,AU58) -> 0 | AW58: 0 | AX58: 1 | AY58: 0 | AZ58: =SUM(AW58,AY58) -> 0 | BA58: 0 | BB58: 1 | BC58: 0 | BD58: =SUM(BA58,BC58) -> 0 | BH58: =SUM(BE58,BG58) -> 0 | BL58: =SUM(BI58,BK58) -> 0 | BM58: 1 | BN58: 3 | BO58: 1 | BP58: =SUM(BM58,BO58) -> 2 | BQ58: 0 | BR58: 1 | BS58: 0 | BT58: =SUM(BQ58,BS58) -> 0 | BU58: 0 | BV58: 1 | BW58: 0 | CC58: 0 | CD58: 1 | CE58: 1 | CG58: 2 | CH58: 1 | CI58: 0 | CJ58: =SUM(CG58,CI58) -> 2 | CN58: =SUM(CK58,CM58) -> 0 | CR58: =SUM(CO58,CQ58) -> 0
A59: 55 | C59: 44 | D59: Michael Luff | E59: Blue Storm | F59: 9 | G59: 1 | H59: 2 | I59: 4 | J59: =SUM(G59:I59) -> 7 | Q59: 5 | R59: 4 | T59: =(Q59*2+S59)/(SUM(Q59:S59)*2) -> 0.5555555556 | U59: 36 | V59: 40 | AK59: 0 | AL59: 1 | AM59: 1 | AN59: =SUM(AK59,AM59) -> 1 | AR59: =SUM(AO59,AQ59) -> 0 | AV59: =SUM(AS59,AU59) -> 0 | AW59: 0 | AX59: 2 | AY59: 1 | AZ59: =SUM(AW59,AY59) -> 1 | BA59: 1 | BB59: 1 | BC59: 1 | BD59: =SUM(BA59,BC59) -> 2 | BH59: =SUM(BE59,BG59) -> 0 | BI59: 0 | BJ59: 2 | BK59: 0 | BL59: =SUM(BI59,BK59) -> 0 | BP59: =SUM(BM59,BO59) -> 0 | BQ59: 0 | BR59: 1 | BS59: 0 | BT59: =SUM(BQ59,BS59) -> 0 | BU59: 0 | BV59: 1 | BW59: 1 | CJ59: =SUM(CG59,CI59) -> 0 | CK59: 0 | CL59: 1 | CM59: 2 | CN59: =SUM(CK59,CM59) -> 2 | CR59: =SUM(CO59,CQ59) -> 0
A60: 56 | C60: 16 | D60: Mike Wood | E60: White Lightning | F60: 8 | G60: 4 | H60: 1 | I60: 1 | J60: =SUM(G60:I60) -> 6 | R60: 8 | T60: =(Q60*2+S60)/(SUM(Q60:S60)*2) -> 0 | U60: 21 | V60: 54 | AK60: 2 | AL60: 2 | AM60: 0 | AN60: =SUM(AK60,AM60) -> 2 | AR60: =SUM(AO60,AQ60) -> 0 | AS60: 0 | AT60: 1 | AU60: 0 | AV60: =SUM(AS60,AU60) -> 0 | AW60: 0 | AX60: 1 | AY60: 1 | AZ60: =SUM(AW60,AY60) -> 1 | BA60: 0 | BB60: 1 | BC60: 1 | BD60: =SUM(BA60,BC60) -> 1 | BH60: =SUM(BE60,BG60) -> 0 | BI60: 0 | BJ60: 1 | BK60: 0 | BL60: =SUM(BI60,BK60) -> 0 | BM60: 2 | BN60: 2 | BO60: 0 | BP60: =SUM(BM60,BO60) -> 2 | BT60: =SUM(BQ60,BS60) -> 0 | CJ60: =SUM(CG60,CI60) -> 0 | CN60: =SUM(CK60,CM60) -> 0 | CR60: =SUM(CO60,CQ60) -> 0
A61: 57 | C61: 12 | D61: Dave MacKenzie | E61: White Lightning | J61: =SUM(G61:I61) -> 0 | T61: =(Q61*2+S61)/(SUM(Q61:S61)*2) ->  | AN61: =SUM(AK61,AM61) -> 0 | AR61: =SUM(AO61,AQ61) -> 0 | AV61: =SUM(AS61,AU61) -> 0 | AZ61: =SUM(AW61,AY61) -> 0 | BD61: =SUM(BA61,BC61) -> 0 | BH61: =SUM(BE61,BG61) -> 0 | BL61: =SUM(BI61,BK61) -> 0 | BP61: =SUM(BM61,BO61) -> 0 | BT61: =SUM(BQ61,BS61) -> 0 | CJ61: =SUM(CG61,CI61) -> 0 | CN61: =SUM(CK61,CM61) -> 0 | CR61: =SUM(CO61,CQ61) -> 0
A62: 58 | C62: 87 | D62: Scott Praught | E62: The Green Machine | F62: 6 | G62: 1 | H62: 0 | I62: 1 | J62: =SUM(G62:I62) -> 2 | Q62: 1 | R62: 5 | T62: =(Q62*2+S62)/(SUM(Q62:S62)*2) -> 0.1666666667 | U62: 20 | V62: 27 | AN62: =SUM(AK62,AM62) -> 0 | AR62: =SUM(AO62,AQ62) -> 0 | AV62: =SUM(AS62,AU62) -> 0 | AW62: 0 | AX62: 1 | AY62: 0 | AZ62: =SUM(AW62,AY62) -> 0 | BD62: =SUM(BA62,BC62) -> 0 | BH62: =SUM(BE62,BG62) -> 0 | BI62: 0 | BJ62: 1 | BK62: 0 | BL62: =SUM(BI62,BK62) -> 0 | BM62: 0 | BN62: 1 | BO62: 0 | BP62: =SUM(BM62,BO62) -> 0 | BQ62: 1 | BR62: 2 | BS62: 0 | BT62: =SUM(BQ62,BS62) -> 1 | BU62: 0 | BV62: 1 | BW62: 1 | CJ62: =SUM(CG62,CI62) -> 0 | CN62: =SUM(CK62,CM62) -> 0 | CR62: =SUM(CO62,CQ62) -> 0
A63: 59 | C63: 65 | D63: Matt Davis | E63: Red Light District | F63: 7 | G63: 0 | H63: 1 | I63: 1 | J63: =SUM(G63:I63) -> 2 | Q63: 2 | R63: 4 | S63: 1 | T63: =(Q63*2+S63)/(SUM(Q63:S63)*2) -> 0.3571428571 | U63: 31 | V63: 38 | AN63: =SUM(AK63,AM63) -> 0 | AO63: 0 | AP63: 1 | AQ63: 1 | AR63: =SUM(AO63,AQ63) -> 1 | AS63: 0 | AT63: 1 | AU63: 0 | AV63: =SUM(AS63,AU63) -> 0 | AW63: 0 | AX63: 2 | AY63: 0 | AZ63: =SUM(AW63,AY63) -> 0 | BA63: 0 | BB63: 1 | BC63: 0 | BD63: =SUM(BA63,BC63) -> 0 | BH63: =SUM(BE63,BG63) -> 0 | BI63: 0 | BJ63: 1 | BK63: 0 | BL63: =SUM(BI63,BK63) -> 0 | BP63: =SUM(BM63,BO63) -> 0 | BQ63: 0 | BR63: 1 | BS63: 1 | BT63: =SUM(BQ63,BS63) -> 1 | CJ63: =SUM(CG63,CI63) -> 0 | CN63: =SUM(CK63,CM63) -> 0 | CR63: =SUM(CO63,CQ63) -> 0
A64: 60 | C64: 62 | D64: Cole Tweedy | E64: Red Light District | F64: 5 | G64: 2 | H64: 0 | I64: 0 | J64: =SUM(G64:I64) -> 2 | O64: 1 | Q64: 2 | R64: 3 | T64: =(Q64*2+S64)/(SUM(Q64:S64)*2) -> 0.4 | U64: 22 | V64: 32 | AN64: =SUM(AK64,AM64) -> 0 | AR64: =SUM(AO64,AQ64) -> 0 | AV64: =SUM(AS64,AU64) -> 0 | AW64: 0 | AX64: 1 | AY64: 0 | AZ64: =SUM(AW64,AY64) -> 0 | BA64: 0 | BB64: 1 | BC64: 0 | BD64: =SUM(BA64,BC64) -> 0 | BH64: =SUM(BE64,BG64) -> 0 | BI64: 1 | BJ64: 2 | BK64: 0 | BL64: =SUM(BI64,BK64) -> 1 | BP64: =SUM(BM64,BO64) -> 0 | BQ64: 1 | BR64: 1 | BS64: 0 | BT64: =SUM(BQ64,BS64) -> 1 | CJ64: =SUM(CG64,CI64) -> 0 | CN64: =SUM(CK64,CM64) -> 0 | CR64: =SUM(CO64,CQ64) -> 0
A65: 61 | C65: 32 | D65: Ben Warren | E65: Purple Heys | F65: 8 | G65: 0 | H65: 1 | I65: 2 | J65: =SUM(G65:I65) -> 3 | Q65: 5 | R65: 2 | S65: 1 | T65: =(Q65*2+S65)/(SUM(Q65:S65)*2) -> 0.6875 | U65: 42 | V65: 26 | AN65: =SUM(AK65,AM65) -> 0 | AR65: =SUM(AO65,AQ65) -> 0 | AS65: 0 | AT65: 2 | AU65: 0 | AV65: =SUM(AS65,AU65) -> 0 | AZ65: =SUM(AW65,AY65) -> 0 | BA65: 0 | BB65: 1 | BC65: 0 | BD65: =SUM(BA65,BC65) -> 0 | BH65: =SUM(BE65,BG65) -> 0 | BL65: =SUM(BI65,BK65) -> 0 | BM65: 0 | BN65: 2 | BO65: 1 | BP65: =SUM(BM65,BO65) -> 1 | BT65: =SUM(BQ65,BS65) -> 0 | BU65: 0 | BV65: 1 | BW65: 0 | CC65: 0 | CD65: 1 | CE65: 0 | CG65: 0 | CH65: 1 | CI65: 2 | CJ65: =SUM(CG65,CI65) -> 2 | CN65: =SUM(CK65,CM65) -> 0 | CR65: =SUM(CO65,CQ65) -> 0
A66: 62 | C66: 74 | D66: Darius Brenton | E66: Retribution | J66: =SUM(G66:I66) -> 0 | T66: =(Q66*2+S66)/(SUM(Q66:S66)*2) ->  | AN66: =SUM(AK66,AM66) -> 0 | AR66: =SUM(AO66,AQ66) -> 0 | AV66: =SUM(AS66,AU66) -> 0 | AZ66: =SUM(AW66,AY66) -> 0 | BD66: =SUM(BA66,BC66) -> 0 | BH66: =SUM(BE66,BG66) -> 0 | BL66: =SUM(BI66,BK66) -> 0 | BP66: =SUM(BM66,BO66) -> 0 | BT66: =SUM(BQ66,BS66) -> 0 | CJ66: =SUM(CG66,CI66) -> 0 | CN66: =SUM(CK66,CM66) -> 0 | CR66: =SUM(CO66,CQ66) -> 0
A67: 63 | C67: 19 | D67: Jeff King | E67: White Lightning | F67: 4 | G67: 1 | H67: 0 | I67: 0 | J67: =SUM(G67:I67) -> 1 | R67: 4 | T67: =(Q67*2+S67)/(SUM(Q67:S67)*2) -> 0 | U67: 9 | V67: 23 | AN67: =SUM(AK67,AM67) -> 0 | AR67: =SUM(AO67,AQ67) -> 0 | AS67: 0 | AT67: 1 | AU67: 0 | AV67: =SUM(AS67,AU67) -> 0 | AZ67: =SUM(AW67,AY67) -> 0 | BA67: 0 | BB67: 1 | BC67: 0 | BD67: =SUM(BA67,BC67) -> 0 | BH67: =SUM(BE67,BG67) -> 0 | BI67: 0 | BJ67: 1 | BK67: 0 | BL67: =SUM(BI67,BK67) -> 0 | BM67: 1 | BN67: 1 | BO67: 0 | BP67: =SUM(BM67,BO67) -> 1 | BT67: =SUM(BQ67,BS67) -> 0 | CJ67: =SUM(CG67,CI67) -> 0 | CN67: =SUM(CK67,CM67) -> 0 | CR67: =SUM(CO67,CQ67) -> 0
C68: 10 | D68: Mark Farrell | E68: White Lightning
C69: 20 | D69: Brandon Leet-MacFarlane | E69: Slashing Pumpkins
C70: 30 | D70: Chris Day | E70: Purple Heys
C71: 40 | D71: Tony Bonnar | E71: Blue Storm
C72: 50 | D72: Mike Bannister | E72: Golden Panthers
C73: 60 | D73: Dave Hickman | E73: Red Light District
C74: 70 | D74: Rick Kent | E74: Retribution
C75: 80 | D75: Paul Richard | E75: The Green Machine
C76: 90
C77: 100
C78: 110
C79: 120
C80: 130
C81: 91
C82: 92
C83: 93
C84: 94 | F84: 5 | G84: 4 | H84: 2 | I84: 1 | Q84: 2 | R84: 3 | U84: 23 | V84: 26 | AK84: 1 | AL84: 2 | AM84: 1 | AW84: 1 | AX84: 2 | AY84: 1 | CK84: 2 | CL84: 1 | CM84: 1
C85: 95 | F85: 7 | G85: 6 | H85: 0 | I85: 1 | K85: 1 | Q85: 2 | R85: 5 | U85: 30 | V85: 49 | AK85: 2 | AL85: 2 | AM85: 0 | AS85: 1 | AT85: 1 | AU85: 1 | AW85: 2 | AX85: 2 | AY85: 0 | BI85: 0 | BJ85: 1 | BK85: 0 | CK85: 1 | CL85: 1 | CM85: 0
C86: 96 | F86: 1 | G86: 2 | H86: 0 | I86: 0 | R86: 1 | U86: 3 | V86: 12 | AS86: 2 | AT86: 1 | AU86: 0
C87: 97 | F87: 2 | G87: 1 | H87: 3 | I87: 0 | M87: 1 | R87: 1 | S87: 1 | U87: 8 | V87: 17 | AO87: 1 | AP87: 1 | AQ87: 1 | AS87: 0 | AT87: 1 | AU87: 2
C88: 98 | F88: 1 | G88: 1 | H88: 2 | I88: 0 | R88: 1 | U88: 3 | V88: 6 | BM88: 1 | BN88: 1 | BO88: 2
C89: 99 | F89: 5 | G89: 3 | H89: 2 | I89: 0 | R89: 5 | U89: 12 | V89: 42 | AK89: 0 | AL89: 1 | AM89: 0 | AS89: 0 | AT89: 1 | AU89: 0 | BI89: 1 | BJ89: 1 | BK89: 0 | BM89: 1 | BN89: 1 | BO89: 0 | BQ89: 1 | BR89: 1 | BS89: 2
F90: 405 | G90: 0 | H90: 0 | I90: 0 | Q90: 175 | R90: 202 | S90: 28 | U90: 1820 | V90: 1978 | AK90: 0 | AL90: 28 | AM90: 0 | AO90: 0 | AP90: 22 | AQ90: 0 | AS90: 0 | AT90: 59 | AU90: 0 | AW90: 0 | AX90: 53 | AY90: 0 | BA90: 0 | BB90: 35 | BC90: 0 | BI90: 0 | BJ90: 55 | BK90: 0 | BM90: 0 | BN90: 51 | BO90: 0 | BQ90: 0 | BR90: 56 | BS90: 0 | BU90: 0 | BV90: 9 | BW90: 0 | BY90: 0 | BZ90: 13 | CA90: 0 | CC90: 0 | CD90: 7 | CE90: 0 | CG90: 0 | CH90: 3 | CI90: 0 | CK90: 0 | CL90: 14 | CM90: 0

Sheet GoalieStats_Week04
N1: Record Against | R1: Record Against | V1: Record Against | Z1: Record Against | AD1: Record Against | AH1: Record Against | AL1: Record Against | AP1: Record Against
L2: Goals | M2: Assts | N2: White Lightning | O2: White Lightning | P2: White Lightning | Q2: White Lightning | R2: Slashing Pumpkins | S2: Slashing Pumpkins | T2: Slashing Pumpkins | U2: Slashing Pumpkins | V2: Purple Heys | W2: Purple Heys | X2: Purple Heys | Y2: Purple Heys | Z2: Blue Storm | AA2: Blue Storm | AB2: Blue Storm | AC2: Blue Storm | AD2: Golden Panthers | AE2: Golden Panthers | AF2: Golden Panthers | AG2: Golden Panthers | AH2: Red Light District | AI2: Red Light District | AJ2: Red Light District | AK2: Red Light District | AL2: Retribution | AM2: Retribution | AN2: Retribution | AO2: Retribution | AP2: The Green Machine | AQ2: The Green Machine | AR2: The Green Machine | AS2: The Green Machine
B3: Number | C3: Name | D3: Team | E3: Wins | F3: Losses | G3: Ties | H3: GA | I3: GAA | J3: Shots Against | K3: Save % | N3: W | O3: L | P3: T | Q3: GA | R3: W | S3: L | T3: T | U3: GA | V3: W | W3: L | X3: T | Y3: GA | Z3: W | AA3: L | AB3: T | AC3: GA | AD3: W | AE3: L | AF3: T | AG3: GA | AH3: W | AI3: L | AJ3: T | AK3: GA | AL3: W | AM3: L | AN3: T | AO3: GA | AP3: W | AQ3: L | AR3: T | AS3: GA
B4: 20 | C4: Brandon Leet-Macfarlane | D4: Slashing Pumpkins | E4: 11 | F4: 1 | H4: 35 | I4: =H4/SUM(E4:G4) -> 2.916666667 | N4: 3 | Q4: 8 | V4: 2 | Y4: 6 | Z4: 1 | AC4: 3 | AD4: 1 | AG4: 1 | AH4: 2 | AK4: 4 | AM4: 1 | AO4: 7 | AP4: 2 | AS4: 6
B5: 50 | C5: Mike Bannister | D5: Golden Panthers | E5: 3 | F5: 2 | G5: 1 | H5: 19 | I5: =H5/SUM(E5:G5) -> 3.166666667 | N5: 2 | Q5: 5 | S5: 1 | U5: 2 | Z5: 1 | AC5: 4 | AM5: 1 | AO5: 5 | AR5: 1 | AS5: 3
B6: 70 | C6: Rick Kent | D6: Retribution | E6: 10 | F6: 2 | H6: 42 | I6: =H6/SUM(E6:G6) -> 3.5 | N6: 2 | Q6: 8 | R6: 1 | U6: 3 | V6: 1 | Y6: 4 | AA6: 2 | AC6: 8 | AD6: 2 | AG6: 6 | AH6: 3 | AK6: 10 | AP6: 1 | AS6: 3
B7: 30 | C7: Chris Day | D7: Purple Heys | E7: 6 | F7: 6 | G7: 1 | H7: 52 | I7: =H7/SUM(E7:G7) -> 4 | N7: 1 | Q7: 1 | S7: 2 | U7: 9 | Z7: 2 | AA7: 1 | AC7: 9 | AF7: 1 | AG7: 5 | AH7: 1 | AI7: 2 | AK7: 16 | AM7: 1 | AO7: 7 | AP7: 2 | AS7: 5
B8: 92 | C8: Shawn Merrithew | D8: Spare | E8: 2 | G8: 1 | H8: 12 | I8: =H8/SUM(E8:G8) -> 4 | X8: 1 | Y8: 5 | Z8: 1 | AC8: 2 | AP8: 1 | AS8: 5
B9: 80 | C9: Paul Richard | D9: The Green Machine | E9: 2 | F9: 6 | G9: 1 | H9: 40 | I9: =H9/SUM(E9:G9) -> 4.444444444 | N9: 1 | Q9: 1 | S9: 1 | U9: 9 | W9: 1 | Y9: 3 | AA9: 1 | AC9: 7 | AE9: 2 | AF9: 1 | AG9: 14 | AH9: 1 | AK9: 2 | AM9: 1 | AO9: 4
B10: 90 | C10: Frederic Mailhot Landry | D10: Red Light District | E10: 4 | F10: 6 | G10: 1 | H10: 52 | I10: =H10/SUM(E10:G10) -> 4.727272727 | P10: 1 | Q10: 5 | S10: 2 | U10: 14 | V10: 1 | Y10: 1 | Z10: 1 | AC10: 2 | AI10: 1 | AK10: 5 | AM10: 3 | AO10: 20 | AP10: 2 | AS10: 5
B11: 40 | C11: Tony Bonnar | D11: Blue Storm | E11: 6 | F11: 7 | H11: 60 | I11: =H11/SUM(E11:G11) -> 4.615384615 | N11: 2 | Q11: 7 | S11: 2 | U11: 11 | V11: 1 | W11: 2 | Y11: 13 | AE11: 2 | AG11: 13 | AI11: 1 | AK11: 8 | AL11: 2 | AO11: 4 | AP11: 1 | AS11: 4
B12: 10 | C12: Mark Farrell | D12: White Lightning | F12: 4 | G12: 1 | H12: 29 | I12: =H12/SUM(E12:G12) -> 5.8 | S12: 1 | U12: 6 | W12: 1 | Y12: 2 | AA12: 1 | AC12: 6 | AJ12: 1 | AK12: 5 | AM12: 1 | AO12: 10
B13: 60 | C13: Dave Hickman | D13: Red Light District | E13: 1 | F13: 2 | H13: 19 | I13: =H13/SUM(E13:G13) -> 6.333333333 | AD13: 1 | AG13: 3 | AM13: 1 | AO13: 11 | AQ13: 1 | AS13: 5
B14: 95 | C14: Darryl Moorcroft | D14: Spare | F14: 3 | H14: 21 | I14: =H14/SUM(E14:G14) -> 7 | AA14: 1 | AC14: 6 | AE14: 1 | AG14: 7 | AM14: 1 | AO14: 8
B15: 94 | C15: Bruce Parent | D15: Spare | F15: 1 | H15: 9 | I15: =H15/SUM(E15:G15) -> 9 | W15: 1 | Y15: 9
B16: 91 | C16: Dave MacFarlane | D16: Spare | F16: 3 | H16: 32 | I16: =H16/SUM(E16:G16) -> 10.66666667 | S16: 1 | U16: 12 | AE16: 1 | AG16: 10 | AQ16: 1 | AS16: 10
B17: 93 | C17: Brandon Moss | D17: Spare | F17: 2 | H17: 23 | I17: =H17/SUM(E17:G17) -> 11.5 | S17: 1 | U17: 14 | W17: 1 | Y17: 9
D19: Standings Thru Week | E19: W | F19: L | G19: T | H19: PTS | I19: GF | J19: GA | K19: Winning % | L19: Shots | M19: Shot % | N19: +/-
D20: Slashing Pumpkins | H20: =(E20*2)+G20 -> 0 | K20: =H20/(SUM(E20:G20)*2) ->  | N20: =I20-J20 -> 0
D21: Retribution | H21: =(E21*2)+G21 -> 0 | K21: =H21/(SUM(E21:G21)*2) ->  | N21: =I21-J21 -> 0
D22: Red Light District | H22: =(E22*2)+G22 -> 0 | K22: =H22/(SUM(E22:G22)*2) ->  | N22: =I22-J22 -> 0
D23: Blue Storm | H23: =(E23*2)+G23 -> 0 | K23: =H23/(SUM(E23:G23)*2) ->  | N23: =I23-J23 -> 0
D24: Golden Panthers | H24: =(E24*2)+G24 -> 0 | K24: =H24/(SUM(E24:G24)*2) ->  | N24: =I24-J24 -> 0
D25: The Green Machine | H25: =(E25*2)+G25 -> 0 | K25: =H25/(SUM(E25:G25)*2) ->  | N25: =I25-J25 -> 0
D26: Purple Heys | H26: =(E26*2)+G26 -> 0 | K26: =H26/(SUM(E26:G26)*2) ->  | N26: =I26-J26 -> 0
D27: White Lightning | H27: =(E27*2)+G27 -> 0 | K27: =H27/(SUM(E27:G27)*2) ->  | N27: =I27-J27 -> 0
D31: Standings Thru Week 1 | E31: W | F31: L | G31: T | H31: PTS | I31: GF | J31: GA | K31: Winning % | L31: Shots | M31: Shot % | N31: +/-
D32: Retribution | E32: 3 | H32: 6 | I32: 22 | J32: 11 | K32: 1 | N32: 11
D33: Slashing Pumpkins | E33: 3 | H33: 6 | I33: 15 | J33: 9 | K33: 1 | N33: 6
D34: Purple Heys | E34: 2 | F34: 1 | H34: 4 | I34: 10 | J34: 7 | K34: 0.6666666667 | N34: 3
D35: The Green Machine | E35: 1 | F35: 2 | H35: 2 | I35: 9 | J35: 10 | K35: 0.3333333333 | N35: -1
D36: Blue Storm | E36: 1 | F36: 2 | H36: 2 | I36: 11 | J36: 15 | K36: 0.3333333333 | N36: -4
D37: Golden Panthers | E37: 1 | F37: 2 | H37: 2 | I37: 10 | J37: 14 | K37: 0.3333333333 | N37: -4
D38: Red Light District | E38: 1 | F38: 2 | H38: 2 | I38: 12 | J38: 18 | K38: 0.3333333333 | N38: -6
D39: White Lightning | F39: 3 | H39: 0 | I39: 8 | J39: 13 | K39: 0 | N39: -5
D41: Standings Thru Week 2 | E41: W | F41: L | G41: T | H41: PTS | I41: GF | J41: GA | K41: Winning % | L41: Shots | M41: Shot % | N41: +/-
D42: Slashing Pumpkins | E42: 6 | H42: =(E42*2)+G42 -> 12 | I42: 38 | J42: 15 | K42: =H42/(SUM(E42:G42)*2) -> 1 | N42: =I42-J42 -> 23
D43: Retribution | E43: 5 | F43: 1 | H43: =(E43*2)+G43 -> 10 | I43: 35 | J43: 19 | K43: =H43/(SUM(E43:G43)*2) -> 0.8333333333 | N43: =I43-J43 -> 16
D44: Red Light District | E44: 3 | F44: 3 | H44: =(E44*2)+G44 -> 6 | I44: 27 | J44: 26 | K44: =H44/(SUM(E44:G44)*2) -> 0.5 | N44: =I44-J44 -> 1
D45: Blue Storm | E45: 3 | F45: 3 | H45: =(E45*2)+G45 -> 6 | I45: 20 | J45: 27 | K45: =H45/(SUM(E45:G45)*2) -> 0.5 | N45: =I45-J45 -> -7
D46: Golden Panthers | E46: 2 | F46: 3 | G46: 1 | H46: =(E46*2)+G46 -> 5 | I46: 24 | J46: 20 | K46: =H46/(SUM(E46:G46)*2) -> 0.4166666667 | N46: =I46-J46 -> 4
D47: The Green Machine | E47: 2 | F47: 3 | G47: 1 | H47: =(E47*2)+G47 -> 5 | I47: 24 | J47: 23 | K47: =H47/(SUM(E47:G47)*2) -> 0.4166666667 | N47: =I47-J47 -> 1
D48: Purple Heys | E48: 2 | F48: 4 | H48: =(E48*2)+G48 -> 4 | I48: 18 | J48: 24 | K48: =H48/(SUM(E48:G48)*2) -> 0.3333333333 | N48: =I48-J48 -> -6
D49: White Lightning | F49: 6 | H49: =(E49*2)+G49 -> 0 | I49: 13 | J49: 45 | K49: =H49/(SUM(E49:G49)*2) -> 0 | N49: =I49-J49 -> -32
D51: Standings Thru Week 3 | E51: W | F51: L | G51: T | H51: PTS | I51: GF | J51: GA | K51: Winning % | L51: Shots | M51: Shot % | N51: +/-
D52: Retribution | E52: 8 | F52: 1 | H52: =(E52*2)+G52 -> 16 | I52: 57 | J52: 30 | K52: =H52/(SUM(E52:G52)*2) -> 0.8888888889 | N52: =I52-J52 -> 27
D53: Slashing Pumpkins | E53: 8 | F53: 1 | H53: =(E53*2)+G53 -> 16 | I53: 52 | J53: 26 | K53: =H53/(SUM(E53:G53)*2) -> 0.8888888889 | N53: =I53-J53 -> 26
D54: Golden Panthers | E54: 4 | F54: 3 | G54: 2 | H54: =(E54*2)+G54 -> 10 | I54: 44 | J54: 32 | K54: =H54/(SUM(E54:G54)*2) -> 0.5555555556 | N54: =I54-J54 -> 12
D55: Purple Heys | E55: 4 | F55: 4 | G55: 1 | H55: =(E55*2)+G55 -> 9 | I55: 31 | J55: 34 | K55: =H55/(SUM(E55:G55)*2) -> 0.5 | N55: =I55-J55 -> -3
D56: Blue Storm | E56: 4 | F56: 5 | H56: =(E56*2)+G56 -> 8 | I56: 32 | J56: 44 | K56: =H56/(SUM(E56:G56)*2) -> 0.4444444444 | N56: =I56-J56 -> -12
D57: Red Light District | E57: 3 | F57: 5 | G57: 1 | H57: =(E57*2)+G57 -> 7 | I57: 38 | J57: 41 | K57: =H57/(SUM(E57:G57)*2) -> 0.3888888889 | N57: =I57-J57 -> -3
D58: The Green Machine | E58: 2 | F58: 6 | G58: 1 | H58: =(E58*2)+G58 -> 5 | I58: 35 | J58: 40 | K58: =H58/(SUM(E58:G58)*2) -> 0.2777777778 | N58: =I58-J58 -> -5
D59: White Lightning | F59: 8 | G59: 1 | H59: =(E59*2)+G59 -> 1 | I59: 24 | J59: 66 | K59: =H59/(SUM(E59:G59)*2) -> 0.05555555556 | N59: =I59-J59 -> -42
D61: Standings Thru Week | E61: W | F61: L | G61: T | H61: PTS | I61: GF | J61: GA | K61: Winning % | L61: Shots | M61: Shot % | N61: +/-
D62: Slashing Pumpkins | E62: 11 | F62: 1 | H62: =(E62*2)+G62 -> 22 | I62: 80 | J62: 35 | K62: =H62/(SUM(E62:G62)*2) -> 0.9166666667 | N62: =I62-J62 -> 45
D63: Retribution | E63: 10 | F63: 2 | H63: =(E63*2)+G63 -> 20 | I63: 73 | J63: 42 | K63: =H63/(SUM(E63:G63)*2) -> 0.8333333333 | N63: =I63-J63 -> 31
D64: Golden Panthers | E64: 6 | F64: 4 | G64: 2 | H64: =(E64*2)+G64 -> 14 | I64: 59 | J64: 45 | K64: =H64/(SUM(E64:G64)*2) -> 0.5833333333 | N64: =I64-J64 -> 14
D65: Purple Heys | E65: 6 | F65: 5 | G65: 1 | H65: =(E65*2)+G65 -> 13 | I65: 52 | J65: 44 | K65: =H65/(SUM(E65:G65)*2) -> 0.5416666667 | N65: =I65-J65 -> 8
D66: Blue Storm | E66: 6 | F66: 6 | H66: =(E66*2)+G66 -> 12 | I66: 47 | J66: 55 | K66: =H66/(SUM(E66:G66)*2) -> 0.5 | N66: =I66-J66 -> -8
D67: Red Light District | E67: 4 | F67: 7 | G67: 1 | H67: =(E67*2)+G67 -> 9 | I67: 50 | J67: 63 | K67: =H67/(SUM(E67:G67)*2) -> 0.375 | N67: =I67-J67 -> -13
D68: The Green Machine | E68: 2 | F68: 9 | G68: 1 | H68: =(E68*2)+G68 -> 5 | I68: 46 | J68: 71 | K68: =H68/(SUM(E68:G68)*2) -> 0.2083333333 | N68: =I68-J68 -> -25
D69: White Lightning | F69: 11 | G69: 1 | H69: =(E69*2)+G69 -> 1 | I69: 35 | J69: 87 | K69: =H69/(SUM(E69:G69)*2) -> 0.04166666667 | N69: =I69-J69 -> -52
